Capital or Revenue,Directorate,Transaction Number,Date,Service Area,Expenses Type,Amount,Supplier Name
Revenue,Head of ASC & Community Wellbeing,5105676451,27.06.2014,Domestic Violence,Professional Services,"2,270.50",REDACTED PERSONAL DATA
Revenue,Director of Childrens Services,5105672025,04.06.2014,Moderation,Bought in Prof Services - Curriculum (Schools),805.00,REDACTED PERSONAL DATA
Revenue,Managing Director & Head of Paid Service,5105674123,18.06.2014,Public Health Core,Payment to Private Contractors,"3,500.00",REDACTED PERSONAL DATA
Revenue,Director of Childrens Services,5105668516,13.06.2014,Early Help Team,Payment to Private Contractors,207.60,REDACTED PERSONAL DATA
Revenue,Director of Childrens Services,5105676435,27.06.2014,Early Help Team,Payment to Private Contractors,208.50,REDACTED PERSONAL DATA
Revenue,Head of HR & Organisational Change,5105672361,06.06.2014,St James Centre,Minor Works,25.00,REDACTED PERSONAL DATA
Revenue,Director of Childrens Services,5105675387,20.06.2014,Hunnyhill Primary School Disposal,Security of Buildings,310.00,REDACTED PERSONAL DATA
Revenue,Director of Childrens Services,5105675387,20.06.2014,Gatten & Lake Primary School Disposal,Security of Buildings,260.00,REDACTED PERSONAL DATA
Revenue,Director of Childrens Services,5105675504,25.06.2014,North & East Provision,Security of Buildings,25.00,REDACTED PERSONAL DATA
Revenue,Director of Childrens Services,5105675387,20.06.2014,Old Cowes Enterprise College,Security of Buildings,"1,240.00",REDACTED PERSONAL DATA
Revenue,Head of HR & Organisational Change,5105675415,25.06.2014,Carisbrooke Contact Centre,Security of Buildings,25.00,REDACTED PERSONAL DATA
Revenue,Head of HR & Organisational Change,5105675415,25.06.2014,Carisbrooke Contact Centre,Security of Buildings,100.00,REDACTED PERSONAL DATA
Revenue,Head of HR & Organisational Change,5105675415,25.06.2014,Carisbrooke Contact Centre,Security of Buildings,100.00,REDACTED PERSONAL DATA
Revenue,Head of HR & Organisational Change,5105672361,06.06.2014,Carisbrooke Contact Centre,Payment to Private Contractors,25.00,REDACTED PERSONAL DATA
Revenue,Head of HR & Organisational Change,5105672361,06.06.2014,Carisbrooke Contact Centre,Payment to Private Contractors,100.00,REDACTED PERSONAL DATA
Revenue,Head of HR & Organisational Change,5105672361,06.06.2014,Carisbrooke Contact Centre,Payment to Private Contractors,100.00,REDACTED PERSONAL DATA
Capital,Head of HR & Organisational Change,5105675415,25.06.2014,Capital Receipts,Payment to Contractors - Capital,100.00,REDACTED PERSONAL DATA
Capital,Head of HR & Organisational Change,5105675415,25.06.2014,Capital Receipts,Payment to Contractors - Capital,100.00,REDACTED PERSONAL DATA
Capital,Head of HR & Organisational Change,5105675415,25.06.2014,Capital Receipts,Payment to Contractors - Capital,300.00,REDACTED PERSONAL DATA
Capital,Head of HR & Organisational Change,5105675415,25.06.2014,Capital Receipts,Payment to Contractors - Capital,100.00,REDACTED PERSONAL DATA
Capital,Head of HR & Organisational Change,5105675415,25.06.2014,Capital Receipts,Payment to Contractors - Capital,100.00,REDACTED PERSONAL DATA
Capital,Head of HR & Organisational Change,5105675415,25.06.2014,Capital Receipts,Payment to Contractors - Capital,100.00,REDACTED PERSONAL DATA
Capital,Head of HR & Organisational Change,5105675415,25.06.2014,Capital Receipts,Payment to Contractors - Capital,100.00,REDACTED PERSONAL DATA
Capital,Head of HR & Organisational Change,5105675415,25.06.2014,Capital Receipts,Payment to Contractors - Capital,100.00,REDACTED PERSONAL DATA
Capital,Head of HR & Organisational Change,5105672361,06.06.2014,Capital Receipts,Payment to Contractors - Capital,100.00,REDACTED PERSONAL DATA
Capital,Head of HR & Organisational Change,5105672361,06.06.2014,Capital Receipts,Payment to Contractors - Capital,100.00,REDACTED PERSONAL DATA
Capital,Head of HR & Organisational Change,5105672361,06.06.2014,Capital Receipts,Payment to Contractors - Capital,300.00,REDACTED PERSONAL DATA
Capital,Head of HR & Organisational Change,5105672361,06.06.2014,Capital Receipts,Payment to Contractors - Capital,100.00,REDACTED PERSONAL DATA
Capital,Head of HR & Organisational Change,5105672361,06.06.2014,Capital Receipts,Payment to Contractors - Capital,100.00,REDACTED PERSONAL DATA
Capital,Head of HR & Organisational Change,5105672361,06.06.2014,Capital Receipts,Payment to Contractors - Capital,100.00,REDACTED PERSONAL DATA
Capital,Head of HR & Organisational Change,5105672361,06.06.2014,Capital Receipts,Payment to Contractors - Capital,100.00,REDACTED PERSONAL DATA
Capital,Head of HR & Organisational Change,5105672361,06.06.2014,Capital Receipts,Payment to Contractors - Capital,100.00,REDACTED PERSONAL DATA
Revenue,Managing Director & Head of Paid Service,5105672012,04.06.2014,Drug Misuse - Adults,Payment to Private Contractors,210.00,REDACTED PERSONAL DATA
Revenue,Managing Director & Head of Paid Service,5105671945,04.06.2014,Drug Misuse - Adults,Payment to Private Contractors,195.00,REDACTED PERSONAL DATA
Revenue,Director of Childrens Services,5105673049,13.06.2014,7725 HW08 GHV Ford Transit Medina High,Vehicle Maintenance Costs,65.00,ISLANDWIDE WINDSCREENS
Revenue,Head of Economy & Tourism,5105671923,13.06.2014,Arts Projects,Professional Services,130.00,REDACTED PERSONAL DATA
Revenue,Head of Planning & Regulatory Services,5105672489,11.06.2014,Policy & Conservation,Consultants Fees,"3,750.00",REDACTED PERSONAL DATA
Revenue,Director of Childrens Services,5105676194,25.06.2014,Accreditation Centre,Training,"1,220.00",REDACTED PERSONAL DATA
Revenue,Head of Exchequer Services,5105675398,20.06.2014,Local Welfare Assistance Scheme,Local Welfare Provision payments,120.00,REDACTED PERSONAL DATA
Revenue,Managing Director & Head of Paid Service,5105675869,25.06.2014,Strengthening Families,Payments to Voluntary and Other Associations,50.00,REDACTED PERSONAL DATA
Revenue,Director of Childrens Services,5105669282,11.06.2014,Support for Looked After Children,Support Children,400.00,ISLAND EQUUS
Revenue,Director of Childrens Services,5105676638,20.06.2014,Clatterford Pupil Referral Unit (PRU),Professional Services,"1,385.00",ISLAND EQUUS
Revenue,Director of Childrens Services,5105676575,20.06.2014,Thompson House Tuition Centre (PRU),Professional Services,250.00,ISLAND EQUUS
Revenue,Director of Childrens Services,5105676578,20.06.2014,Thompson House Tuition Centre (PRU),Professional Services,107.00,ISLAND EQUUS
Revenue,Director of Childrens Services,5105676574,20.06.2014,Thompson House Tuition Centre (PRU),Professional Services,50.00,ISLAND EQUUS
Revenue,Director of Childrens Services,5105671670,04.06.2014,Special Educational Needs Reforms Grant,Agency staff,"1,128.00",REDACTED PERSONAL DATA
Revenue,Director of Childrens Services,5105671670,04.06.2014,Special Educational Needs Reforms Grant,Agency staff,135.15,REDACTED PERSONAL DATA
Revenue,Director of Childrens Services,5105672087,06.06.2014,Practice Teaching Training,Training,"2,492.00",REDACTED PERSONAL DATA
Revenue,Director of Childrens Services,5105674558,18.06.2014,Education Participation Team,Cleaning Contracts,8.00,REDACTED PERSONAL DATA
Revenue,Chief Fire Officer,5105667085,27.06.2014,Road Safety,Operational Equipment,150.00,REDACTED PERSONAL DATA
Revenue,Director of Childrens Services,5105676090,25.06.2014,Short Breaks,Charges from Independent Providers,512.40,REDACTED PERSONAL DATA
Revenue,Director of Childrens Services,5105672058,11.06.2014,LSCB (Local Safeguarding Childrens Board),Travel Expenses,140.00,ONE HOLYROOD
Revenue,Director of Childrens Services,5105674909,18.06.2014,LSCB (Local Safeguarding Childrens Board),Travel Expenses,70.00,ONE HOLYROOD
Revenue,Director of Childrens Services,5105674909,18.06.2014,LSCB (Local Safeguarding Childrens Board),Travel Expenses,280.00,ONE HOLYROOD
Revenue,Director of Childrens Services,5105674909,18.06.2014,LSCB (Local Safeguarding Childrens Board),Travel Expenses,280.00,ONE HOLYROOD
Revenue,Director of Childrens Services,5105675538,20.06.2014,LSCB (Local Safeguarding Childrens Board),Travel Expenses,280.00,ONE HOLYROOD
Revenue,Director of Childrens Services,5105675538,20.06.2014,LSCB (Local Safeguarding Childrens Board),Travel Expenses,210.00,ONE HOLYROOD
Revenue,Director of Childrens Services,5105675538,20.06.2014,LSCB (Local Safeguarding Childrens Board),Travel Expenses,210.00,ONE HOLYROOD
Revenue,Director of Childrens Services,5105675538,20.06.2014,LSCB (Local Safeguarding Childrens Board),Travel Expenses,210.00,ONE HOLYROOD
Revenue,Director of Childrens Services,5105675538,20.06.2014,LSCB (Local Safeguarding Childrens Board),Travel Expenses,280.00,ONE HOLYROOD
Revenue,Director of Childrens Services,5105674909,18.06.2014,LSCB (Local Safeguarding Childrens Board),Consultants Fees,140.00,ONE HOLYROOD
Revenue,Director of Childrens Services,5105672073,27.06.2014,Safeguarding Support,Travel Expenses,280.00,ONE HOLYROOD
Revenue,Director of Childrens Services,5105674909,18.06.2014,Safeguarding Support,Travel Expenses,70.00,ONE HOLYROOD
Revenue,Head of ASC & Community Wellbeing,5105675677,25.06.2014,Leaseholds by LA,Accommodation Costs - Leaseholder Payments,695.89,REDACTED PERSONAL DATA
Revenue,Head of ASC & Community Wellbeing,5105675677,25.06.2014,Leaseholds by LA,Accommodation Costs - Leaseholder Payments,695.89,REDACTED PERSONAL DATA
Revenue,Head of ASC & Community Wellbeing,5105675677,25.06.2014,Leaseholds by LA,Accommodation Costs - Leaseholder Payments,695.89,REDACTED PERSONAL DATA
Revenue,Head of ASC & Community Wellbeing,5105675677,25.06.2014,Leaseholds by LA,Accommodation Costs - Leaseholder Payments,695.89,REDACTED PERSONAL DATA
Revenue,Head of ASC & Community Wellbeing,5105675677,25.06.2014,Leaseholds by LA,Accommodation Costs - Leaseholder Payments,695.89,REDACTED PERSONAL DATA
Revenue,Director of Childrens Services,5105674606,20.06.2014,Leaving Care Costs,Payments to/Aid Provided to Clients,120.00,REDACTED PERSONAL DATA
Revenue,Head of Planning & Regulatory Services,5105673010,13.06.2014,A.O.N.B.,Consultants Fees,480.00,REDACTED PERSONAL DATA
Revenue,Director of Childrens Services,5105675614,20.06.2014,Workforce Development Schools,Training,878.14,REDACTED PERSONAL DATA
Revenue,Head of ASC & Community Wellbeing,5105675697,25.06.2014,Leaseholds by LA,Accommodation Costs - Leaseholder Payments,866.67,2K PROPERTY
Revenue,Head of Economy & Tourism,5105672284,06.06.2014,Medina Leisure Centre,Stock Purchases,65.94,3663 (BFS GROUP LTD)
Revenue,Head of Economy & Tourism,5105674936,18.06.2014,Medina Leisure Centre,Stock Purchases,512.40,3663 (BFS GROUP LTD)
Revenue,Head of Economy & Tourism,5105672950,13.06.2014,Medina Leisure Centre,Stock Purchases,787.23,3663 (BFS GROUP LTD)
Revenue,Head of Economy & Tourism,5105672284,06.06.2014,Medina Leisure Centre,Stock Purchases,195.74,3663 (BFS GROUP LTD)
Revenue,Head of ASC & Community Wellbeing,5105676593,20.06.2014,Westminster House,Catering Purchases,199.83,3663 (BFS GROUP LTD)
Revenue,Head of ASC & Community Wellbeing,5105676594,20.06.2014,Westminster House,Catering Purchases,162.64,3663 (BFS GROUP LTD)
Revenue,Head of ASC & Community Wellbeing,5105676595,20.06.2014,Westminster House,Catering Purchases,101.17,3663 (BFS GROUP LTD)
Revenue,Head of ASC & Community Wellbeing,5105674948,18.06.2014,Westminster House,Catering Purchases,38.85,3663 (BFS GROUP LTD)
Revenue,Head of ASC & Community Wellbeing,5105674947,18.06.2014,Westminster House,Catering Purchases,58.81,3663 (BFS GROUP LTD)
Revenue,Head of ASC & Community Wellbeing,5105674658,18.06.2014,Westminster House,Catering Purchases,116.43,3663 (BFS GROUP LTD)
Revenue,Head of ASC & Community Wellbeing,5105672632,11.06.2014,Westminster House,Catering Purchases,130.05,3663 (BFS GROUP LTD)
Revenue,Head of ASC & Community Wellbeing,5105672633,11.06.2014,Westminster House,Catering Purchases,51.54,3663 (BFS GROUP LTD)
Revenue,Head of ASC & Community Wellbeing,5105672634,11.06.2014,Westminster House,Catering Purchases,74.21,3663 (BFS GROUP LTD)
Revenue,Head of ASC & Community Wellbeing,5105672021,04.06.2014,Westminster House,Catering Purchases,89.55,3663 (BFS GROUP LTD)
Revenue,Head of ASC & Community Wellbeing,5105672635,11.06.2014,Gouldings Resource Centre,Catering Purchases,22.84,3663 (BFS GROUP LTD)
Revenue,Head of ASC & Community Wellbeing,5105674673,18.06.2014,Gouldings Resource Centre,Catering Purchases,319.04,3663 (BFS GROUP LTD)
Revenue,Head of ASC & Community Wellbeing,5105674186,18.06.2014,Gouldings Resource Centre,Catering Purchases,598.77,3663 (BFS GROUP LTD)
Revenue,Head of ASC & Community Wellbeing,5105674186,18.06.2014,Gouldings Resource Centre,Catering Purchases,17.31,3663 (BFS GROUP LTD)
Revenue,Head of ASC & Community Wellbeing,5105676140,25.06.2014,Gouldings Resource Centre,Catering Purchases,323.44,3663 (BFS GROUP LTD)
Revenue,Head of ASC & Community Wellbeing,5105676140,25.06.2014,Gouldings Resource Centre,Catering Purchases,28.99,3663 (BFS GROUP LTD)
Revenue,Head of ASC & Community Wellbeing,5105672635,11.06.2014,Gouldings Resource Centre,Catering Purchases,340.57,3663 (BFS GROUP LTD)
Revenue,Head of ASC & Community Wellbeing,5105672636,11.06.2014,Gouldings Resource Centre,Catering Purchases,323.06,3663 (BFS GROUP LTD)
Revenue,Head of ASC & Community Wellbeing,5105672636,11.06.2014,Gouldings Resource Centre,Catering Purchases,36.35,3663 (BFS GROUP LTD)
Revenue,Head of Economy & Tourism,5105672949,13.06.2014,Westridge Squash Courts,Stock Purchases,40.52,3663 (BFS GROUP LTD)
Revenue,Head of Economy & Tourism,5105674935,18.06.2014,Westridge Squash Courts,Stock Purchases,92.39,3663 (BFS GROUP LTD)
Revenue,Head of Economy & Tourism,5105674934,18.06.2014,The Heights,Stock Purchases,84.90,3663 (BFS GROUP LTD)
Revenue,Head of Economy & Tourism,5105674934,18.06.2014,The Heights,Stock Purchases,29.58,3663 (BFS GROUP LTD)
Revenue,Head of Economy & Tourism,5105672945,13.06.2014,The Heights,Stock Purchases,130.88,3663 (BFS GROUP LTD)
Revenue,Head of Economy & Tourism,5105673243,13.06.2014,The Heights,Stock Purchases,66.92,3663 (BFS GROUP LTD)
Revenue,Head of Economy & Tourism,5105673243,13.06.2014,The Heights,Stock Purchases,93.36,3663 (BFS GROUP LTD)
Revenue,Head of Economy & Tourism,5105673245,13.06.2014,The Heights,Stock Purchases,330.44,3663 (BFS GROUP LTD)
Revenue,Head of Economy & Tourism,5105672948,13.06.2014,The Heights,Stock Purchases,255.23,3663 (BFS GROUP LTD)
Revenue,Head of Economy & Tourism,5105672948,13.06.2014,The Heights,Stock Purchases,0.01,3663 (BFS GROUP LTD)
Revenue,Head of Economy & Tourism,5105672946,13.06.2014,The Heights,Stock Purchases,62.85,3663 (BFS GROUP LTD)
Revenue,Head of Economy & Tourism,5105672945,13.06.2014,The Heights,Stock Purchases,52.36,3663 (BFS GROUP LTD)
Revenue,Head of Economy & Tourism,5105672946,13.06.2014,The Heights,Stock Purchases,40.95,3663 (BFS GROUP LTD)
Revenue,Head of Economy & Tourism,5105672947,13.06.2014,The Heights,Stock Purchases,35.75,3663 (BFS GROUP LTD)
Revenue,Head of ASC & Community Wellbeing,5105672752,11.06.2014,Adelaide Resource Centre,Catering Purchases,-5.79,3663 (BFS GROUP LTD)
Revenue,Head of ASC & Community Wellbeing,5105675411,20.06.2014,Adelaide Resource Centre,Catering Purchases,60.79,3663 (BFS GROUP LTD)
Revenue,Head of ASC & Community Wellbeing,5105675435,20.06.2014,Adelaide Resource Centre,Catering Purchases,164.31,3663 (BFS GROUP LTD)
Revenue,Head of ASC & Community Wellbeing,5105675435,20.06.2014,Adelaide Resource Centre,Catering Purchases,18.91,3663 (BFS GROUP LTD)
Revenue,Head of ASC & Community Wellbeing,5105675411,20.06.2014,Adelaide Resource Centre,Catering Purchases,2.57,3663 (BFS GROUP LTD)
Revenue,Head of ASC & Community Wellbeing,5105675882,25.06.2014,Adelaide Resource Centre,Catering Purchases,135.52,3663 (BFS GROUP LTD)
Revenue,Head of ASC & Community Wellbeing,5105675883,25.06.2014,Adelaide Resource Centre,Catering Purchases,339.02,3663 (BFS GROUP LTD)
Revenue,Head of ASC & Community Wellbeing,5105676036,25.06.2014,Adelaide Resource Centre,Catering Purchases,112.28,3663 (BFS GROUP LTD)
Revenue,Head of ASC & Community Wellbeing,5105676034,25.06.2014,Adelaide Resource Centre,Catering Purchases,318.34,3663 (BFS GROUP LTD)
Revenue,Head of ASC & Community Wellbeing,5105676034,25.06.2014,Adelaide Resource Centre,Catering Purchases,16.26,3663 (BFS GROUP LTD)
Revenue,Head of ASC & Community Wellbeing,5105676036,25.06.2014,Adelaide Resource Centre,Catering Purchases,5.14,3663 (BFS GROUP LTD)
Revenue,Head of ASC & Community Wellbeing,5105675883,25.06.2014,Adelaide Resource Centre,Catering Purchases,35.86,3663 (BFS GROUP LTD)
Revenue,Head of ASC & Community Wellbeing,5105675882,25.06.2014,Adelaide Resource Centre,Catering Purchases,10.95,3663 (BFS GROUP LTD)
Revenue,Head of ASC & Community Wellbeing,5105672089,06.06.2014,Adelaide Resource Centre,Catering Purchases,372.25,3663 (BFS GROUP LTD)
Revenue,Head of ASC & Community Wellbeing,5105671997,04.06.2014,Adelaide Resource Centre,Catering Purchases,144.86,3663 (BFS GROUP LTD)
Revenue,Head of ASC & Community Wellbeing,5105671996,04.06.2014,Adelaide Resource Centre,Catering Purchases,143.65,3663 (BFS GROUP LTD)
Revenue,Head of ASC & Community Wellbeing,5105671999,04.06.2014,Adelaide Resource Centre,Catering Purchases,79.06,3663 (BFS GROUP LTD)
Revenue,Head of ASC & Community Wellbeing,5105671997,04.06.2014,Adelaide Resource Centre,Catering Purchases,10.78,3663 (BFS GROUP LTD)
Revenue,Head of ASC & Community Wellbeing,5105671996,04.06.2014,Adelaide Resource Centre,Catering Purchases,13.38,3663 (BFS GROUP LTD)
Revenue,Head of ASC & Community Wellbeing,5105671999,04.06.2014,Adelaide Resource Centre,Catering Purchases,26.55,3663 (BFS GROUP LTD)
Revenue,Head of ASC & Community Wellbeing,5105672089,06.06.2014,Adelaide Resource Centre,Catering Purchases,21.76,3663 (BFS GROUP LTD)
Revenue,Head of ASC & Community Wellbeing,5105672291,06.06.2014,Westminster House,Prop Svs only - Day to day mtce,24.00,A & M APPLIANCE CARE
Revenue,Head of ASC & Community Wellbeing,5105672298,06.06.2014,Westminster House,Maintenance of Operational Equipment,62.48,A & M APPLIANCE CARE
Revenue,Head of ASC & Community Wellbeing,5105672292,06.06.2014,Gouldings Resource Centre,Consumable Cleaning Materials,111.00,A & M APPLIANCE CARE
Revenue,Head of ASC & Community Wellbeing,5105674581,20.06.2014,Gouldings Resource Centre,Consumable Cleaning Materials,150.00,A & M APPLIANCE CARE
Revenue,Director of Childrens Services,5105674640,20.06.2014,Beaulieu House,Maintenance of Operational Equipment,284.66,A & M APPLIANCE CARE
Revenue,Director of Childrens Services,5105675385,19.06.2014,Beaulieu House,Maintenance of Operational Equipment,-284.66,A & M APPLIANCE CARE
Revenue,Director of Childrens Services,5105675397,20.06.2014,Beaulieu House,Maintenance of Operational Equipment,284.66,A & M APPLIANCE CARE
Revenue,Director of Childrens Services,5105672296,06.06.2014,Beaulieu House,Minor Works,55.00,A & M APPLIANCE CARE
Revenue,Head of ASC & Community Wellbeing,5105672288,06.06.2014,31 Carter Avenue,Minor Works,163.18,A & M APPLIANCE CARE
Revenue,Head of ASC & Community Wellbeing,5105672299,06.06.2014,Adelaide Resource Centre,Consumable Cleaning Materials,242.00,A & M APPLIANCE CARE
Revenue,Chief Fire Officer,5105675655,25.06.2014,Diversity & Workforce,Training,59.00,REDACTED PERSONAL DATA
Revenue,Director of Childrens Services,5105674602,20.06.2014,Workforce Development - Early Years,Training,725.00,REDACTED PERSONAL DATA
Revenue,Director of Childrens Services,5105674603,20.06.2014,Workforce Development - Early Years,Training,-725.00,REDACTED PERSONAL DATA
Revenue,Director of Childrens Services,5105674562,18.06.2014,Workforce Development - Early Years,Training,725.00,REDACTED PERSONAL DATA
Revenue,Head of ASC & Community Wellbeing,5105675683,25.06.2014,Leaseholds by LA,Accommodation Costs - Leaseholder Payments,780.00,REDACTED PERSONAL DATA
Revenue,Director of Childrens Services,5105676306,27.06.2014,Special Guardianship Order Costs,Support Children,132.69,REDACTED PERSONAL DATA
Revenue,Director of Childrens Services,5105676306,27.06.2014,Special Guardianship Order Costs,Support Children,168.39,REDACTED PERSONAL DATA
Revenue,Director of Childrens Services,5105672136,06.06.2014,Special Guardianship Order Costs,Support Children,168.39,REDACTED PERSONAL DATA
Revenue,Director of Childrens Services,5105675019,20.06.2014,Special Guardianship Order Costs,Support Children,132.69,REDACTED PERSONAL DATA
Revenue,Director of Childrens Services,5105675019,20.06.2014,Special Guardianship Order Costs,Support Children,168.39,REDACTED PERSONAL DATA
Revenue,Director of Childrens Services,5105672803,11.06.2014,Special Guardianship Order Costs,Support Children,132.69,REDACTED PERSONAL DATA
Revenue,Director of Childrens Services,5105672803,11.06.2014,Special Guardianship Order Costs,Support Children,168.39,REDACTED PERSONAL DATA
Revenue,Director of Childrens Services,5105672136,06.06.2014,Special Guardianship Order Costs,Support Children,132.69,REDACTED PERSONAL DATA
Revenue,Director of Childrens Services,5105676379,27.06.2014,Leaving Care Costs,Accommodation Costs - Service Users,57.50,REDACTED PERSONAL DATA
Revenue,Director of Childrens Services,5105675093,20.06.2014,Leaving Care Costs,Accommodation Costs - Service Users,57.50,REDACTED PERSONAL DATA
Revenue,Director of Childrens Services,5105672210,06.06.2014,Leaving Care Costs,Accommodation Costs - Service Users,57.50,REDACTED PERSONAL DATA
Revenue,Director of Childrens Services,5105672877,13.06.2014,Leaving Care Costs,Accommodation Costs - Service Users,57.50,REDACTED PERSONAL DATA
Revenue,Director of Childrens Services,5105675093,20.06.2014,Leaving Care Costs,Support Children,120.89,REDACTED PERSONAL DATA
Revenue,Director of Childrens Services,5105676379,27.06.2014,Leaving Care Costs,Support Children,120.89,REDACTED PERSONAL DATA
Revenue,Director of Childrens Services,5105672210,06.06.2014,Leaving Care Costs,Support Children,120.89,REDACTED PERSONAL DATA
Revenue,Director of Childrens Services,5105672877,13.06.2014,Leaving Care Costs,Support Children,120.89,REDACTED PERSONAL DATA
Revenue,Head of ASC & Community Wellbeing,5105675692,25.06.2014,Leaseholds by LA,Accommodation Costs - Leaseholder Payments,510.25,REDACTED PERSONAL DATA
Revenue,Head of ASC & Community Wellbeing,5105675692,25.06.2014,Leaseholds by LA,Accommodation Costs - Leaseholder Payments,510.25,REDACTED PERSONAL DATA
Revenue,Head of ASC & Community Wellbeing,5105675692,25.06.2014,Leaseholds by LA,Accommodation Costs - Leaseholder Payments,510.25,REDACTED PERSONAL DATA
Revenue,Head of ASC & Community Wellbeing,5105675692,25.06.2014,Leaseholds by LA,Accommodation Costs - Leaseholder Payments,510.25,REDACTED PERSONAL DATA
Revenue,Head of ASC & Community Wellbeing,5105675692,25.06.2014,Leaseholds by LA,Accommodation Costs - Leaseholder Payments,510.25,REDACTED PERSONAL DATA
Revenue,Head of ASC & Community Wellbeing,5105675692,25.06.2014,Leaseholds by LA,Accommodation Costs - Leaseholder Payments,510.25,REDACTED PERSONAL DATA
Revenue,Director of Childrens Services,5105672780,11.06.2014,Adoption Costs,Support Children,186.49,REDACTED PERSONAL DATA
Revenue,Director of Childrens Services,5105674995,20.06.2014,Adoption Costs,Support Children,186.49,REDACTED PERSONAL DATA
Revenue,Director of Childrens Services,5105676282,27.06.2014,Adoption Costs,Support Children,186.49,REDACTED PERSONAL DATA
Revenue,Director of Childrens Services,5105672113,06.06.2014,Adoption Costs,Support Children,186.49,REDACTED PERSONAL DATA
Revenue,Director of Childrens Services,5105676345,27.06.2014,In-house Fostering,Boarding Out Allowances,242.08,REDACTED PERSONAL DATA
Revenue,Director of Childrens Services,5105675059,20.06.2014,In-house Fostering,Boarding Out Allowances,242.08,REDACTED PERSONAL DATA
Revenue,Director of Childrens Services,5105672843,13.06.2014,In-house Fostering,Boarding Out Allowances,242.08,REDACTED PERSONAL DATA
Revenue,Director of Childrens Services,5105672176,06.06.2014,In-house Fostering,Boarding Out Allowances,242.08,REDACTED PERSONAL DATA
Revenue,Head of ASC & Community Wellbeing,5105675694,25.06.2014,Leaseholds by LA,Accommodation Costs - Leaseholder Payments,780.00,REDACTED PERSONAL DATA
Revenue,Head of ASC & Community Wellbeing,5105675681,25.06.2014,Leaseholds by LA,Accommodation Costs - Leaseholder Payments,835.08,REDACTED PERSONAL DATA
Revenue,Head of ASC & Community Wellbeing,5105675681,25.06.2014,Leaseholds by LA,Accommodation Costs - Leaseholder Payments,789.01,REDACTED PERSONAL DATA
Revenue,Head of ASC & Community Wellbeing,5105675681,25.06.2014,Leaseholds by LA,Accommodation Costs - Leaseholder Payments,649.83,REDACTED PERSONAL DATA
Revenue,Director of Childrens Services,5105672776,11.06.2014,Adoption Costs,Support Children,87.15,REDACTED PERSONAL DATA
Revenue,Director of Childrens Services,5105674991,20.06.2014,Adoption Costs,Support Children,87.15,REDACTED PERSONAL DATA
Revenue,Director of Childrens Services,5105676278,27.06.2014,Adoption Costs,Support Children,87.15,REDACTED PERSONAL DATA
Revenue,Director of Childrens Services,5105672109,06.06.2014,Adoption Costs,Support Children,87.15,REDACTED PERSONAL DATA
Revenue,Director of Childrens Services,5105676406,27.06.2014,Leaving Care Costs,Accommodation Costs - Service Users,57.50,REDACTED PERSONAL DATA
Revenue,Director of Childrens Services,5105675120,20.06.2014,Leaving Care Costs,Accommodation Costs - Service Users,57.50,REDACTED PERSONAL DATA
Revenue,Director of Childrens Services,5105672904,13.06.2014,Leaving Care Costs,Accommodation Costs - Service Users,57.50,REDACTED PERSONAL DATA
Revenue,Director of Childrens Services,5105676406,27.06.2014,Leaving Care Costs,Support Children,120.89,REDACTED PERSONAL DATA
Revenue,Director of Childrens Services,5105672904,13.06.2014,Leaving Care Costs,Support Children,120.89,REDACTED PERSONAL DATA
Revenue,Director of Childrens Services,5105675120,20.06.2014,Leaving Care Costs,Support Children,120.89,REDACTED PERSONAL DATA
Revenue,Head of ASC & Community Wellbeing,5105672426,06.06.2014,Supporting People Older Persons,Payment to Private Contractors,774.00,ABBEYFIELD WEST WIGHT SOCIETY
Revenue,Head of ASC & Community Wellbeing,5105673472,18.06.2014,Elderly Frail Residential Care,Charges from Independent Providers,"1,622.60",ACACIA CARE HOME
Revenue,Head of ASC & Community Wellbeing,5105675720,25.06.2014,Elderly Frail Residential Care,Charges from Independent Providers,869.25,ACACIA CARE HOME
Revenue,Head of ASC & Community Wellbeing,5105673472,18.06.2014,Elderly Frail Residential Care,Charges from Independent Providers,"1,622.60",ACACIA CARE HOME
Revenue,Head of ASC & Community Wellbeing,5105673472,18.06.2014,Elderly Frail Residential Care,Charges from Independent Providers,"1,622.60",ACACIA CARE HOME
Revenue,Head of ASC & Community Wellbeing,5105673472,18.06.2014,Elderly Frail Residential Care,Charges from Independent Providers,"1,622.60",ACACIA CARE HOME
Revenue,Director of Childrens Services,5105672605,11.06.2014,Referral & Assessment,Recruitment Advertising,44.00,ACCESS PERSONAL CHECKING SERVICES LTD
Revenue,Director of Childrens Services,5105672605,11.06.2014,Referral & Assessment,Recruitment Advertising,6.00,ACCESS PERSONAL CHECKING SERVICES LTD
Revenue,Director of Childrens Services,5105672692,11.06.2014,Referral & Assessment,Recruitment Advertising,6.00,ACCESS PERSONAL CHECKING SERVICES LTD
Revenue,Director of Childrens Services,5105672692,11.06.2014,Referral & Assessment,Recruitment Advertising,44.00,ACCESS PERSONAL CHECKING SERVICES LTD
Revenue,Director of Childrens Services,5105672605,11.06.2014,Leaving Care Team,Recruitment Advertising,44.00,ACCESS PERSONAL CHECKING SERVICES LTD
Revenue,Director of Childrens Services,5105672605,11.06.2014,Leaving Care Team,Recruitment Advertising,6.00,ACCESS PERSONAL CHECKING SERVICES LTD
Revenue,Director of Childrens Services,5105672605,11.06.2014,Youth & Community Service,Recruitment Advertising,44.00,ACCESS PERSONAL CHECKING SERVICES LTD
Revenue,Director of Childrens Services,5105672605,11.06.2014,Youth & Community Service,Recruitment Advertising,6.00,ACCESS PERSONAL CHECKING SERVICES LTD
Revenue,Head of Economy & Tourism,5105672692,11.06.2014,Medina Leisure Centre,Recruitment Advertising,6.00,ACCESS PERSONAL CHECKING SERVICES LTD
Revenue,Head of Economy & Tourism,5105672692,11.06.2014,Medina Leisure Centre,Recruitment Advertising,44.00,ACCESS PERSONAL CHECKING SERVICES LTD
Revenue,Head of ASC & Community Wellbeing,5105672605,11.06.2014,Self Directed Support Team,Recruitment Advertising,44.00,ACCESS PERSONAL CHECKING SERVICES LTD
Revenue,Head of ASC & Community Wellbeing,5105672605,11.06.2014,Self Directed Support Team,Recruitment Advertising,6.00,ACCESS PERSONAL CHECKING SERVICES LTD
Revenue,Head of ASC & Community Wellbeing,5105672692,11.06.2014,Gouldings Resource Centre,Recruitment Advertising,44.00,ACCESS PERSONAL CHECKING SERVICES LTD
Revenue,Head of ASC & Community Wellbeing,5105672692,11.06.2014,Gouldings Resource Centre,Recruitment Advertising,6.00,ACCESS PERSONAL CHECKING SERVICES LTD
Revenue,Head of ASC & Community Wellbeing,5105672605,11.06.2014,Gouldings Resource Centre,Recruitment Advertising,18.00,ACCESS PERSONAL CHECKING SERVICES LTD
Revenue,Head of ASC & Community Wellbeing,5105672605,11.06.2014,Gouldings Resource Centre,Recruitment Advertising,132.00,ACCESS PERSONAL CHECKING SERVICES LTD
Revenue,Head of ASC & Community Wellbeing,5105672692,11.06.2014,Saxonbury,Recruitment Advertising,6.00,ACCESS PERSONAL CHECKING SERVICES LTD
Revenue,Head of ASC & Community Wellbeing,5105672692,11.06.2014,Saxonbury,Recruitment Advertising,44.00,ACCESS PERSONAL CHECKING SERVICES LTD
Revenue,Head of Economy & Tourism,5105672692,11.06.2014,School Crossing Patrols,Recruitment Advertising,44.00,ACCESS PERSONAL CHECKING SERVICES LTD
Revenue,Head of Economy & Tourism,5105672692,11.06.2014,School Crossing Patrols,Recruitment Advertising,6.00,ACCESS PERSONAL CHECKING SERVICES LTD
Revenue,Director of Childrens Services,5105672605,11.06.2014,Beaulieu House,Recruitment Advertising,24.00,ACCESS PERSONAL CHECKING SERVICES LTD
Revenue,Director of Childrens Services,5105672692,11.06.2014,Beaulieu House,Recruitment Advertising,44.00,ACCESS PERSONAL CHECKING SERVICES LTD
Revenue,Director of Childrens Services,5105672692,11.06.2014,Beaulieu House,Recruitment Advertising,6.00,ACCESS PERSONAL CHECKING SERVICES LTD
Revenue,Director of Childrens Services,5105672605,11.06.2014,Beaulieu House,Recruitment Advertising,132.00,ACCESS PERSONAL CHECKING SERVICES LTD
Revenue,Managing Director & Head of Paid Service,5105672692,11.06.2014,Strengthening Families,Recruitment Advertising,18.00,ACCESS PERSONAL CHECKING SERVICES LTD
Revenue,Managing Director & Head of Paid Service,5105672692,11.06.2014,Strengthening Families,Recruitment Advertising,132.00,ACCESS PERSONAL CHECKING SERVICES LTD
Revenue,Managing Director & Head of Paid Service,5105672605,11.06.2014,Strengthening Families,Recruitment Advertising,132.00,ACCESS PERSONAL CHECKING SERVICES LTD
Revenue,Managing Director & Head of Paid Service,5105672605,11.06.2014,Strengthening Families,Recruitment Advertising,18.00,ACCESS PERSONAL CHECKING SERVICES LTD
Revenue,Director of Childrens Services,5105672605,11.06.2014,Contact Team,Recruitment Advertising,12.00,ACCESS PERSONAL CHECKING SERVICES LTD
Revenue,Director of Childrens Services,5105672605,11.06.2014,Contact Team,Recruitment Advertising,88.00,ACCESS PERSONAL CHECKING SERVICES LTD
Revenue,Director of Childrens Services,5105672605,11.06.2014,Disabled Childrens Team,Recruitment Advertising,6.00,ACCESS PERSONAL CHECKING SERVICES LTD
Revenue,Director of Childrens Services,5105672605,11.06.2014,Disabled Childrens Team,Recruitment Advertising,44.00,ACCESS PERSONAL CHECKING SERVICES LTD
Revenue,Director of Childrens Services,5105672692,11.06.2014,Disabled Childrens Team,Recruitment Advertising,44.00,ACCESS PERSONAL CHECKING SERVICES LTD
Revenue,Director of Childrens Services,5105672692,11.06.2014,Disabled Childrens Team,Recruitment Advertising,6.00,ACCESS PERSONAL CHECKING SERVICES LTD
Revenue,Director of Childrens Services,5105672605,11.06.2014,Leaving Care Costs,Recruitment Advertising,44.00,ACCESS PERSONAL CHECKING SERVICES LTD
Revenue,Director of Childrens Services,5105672605,11.06.2014,Leaving Care Costs,Recruitment Advertising,6.00,ACCESS PERSONAL CHECKING SERVICES LTD
Revenue,Director of Childrens Services,5105672605,11.06.2014,LSCB (Local Safeguarding Childrens Board),Recruitment Advertising,6.00,ACCESS PERSONAL CHECKING SERVICES LTD
Revenue,Director of Childrens Services,5105672605,11.06.2014,LSCB (Local Safeguarding Childrens Board),Recruitment Advertising,25.00,ACCESS PERSONAL CHECKING SERVICES LTD
Revenue,Head of ASC & Community Wellbeing,5105672605,11.06.2014,Highmead,Recruitment Advertising,25.00,ACCESS PERSONAL CHECKING SERVICES LTD
Revenue,Head of ASC & Community Wellbeing,5105672605,11.06.2014,Highmead,Recruitment Advertising,6.00,ACCESS PERSONAL CHECKING SERVICES LTD
Revenue,Head of Corp Gov & Monitoring Officer,5105672605,11.06.2014,Democratic Representation & Management,Recruitment Advertising,8.00,ACCESS PERSONAL CHECKING SERVICES LTD
Revenue,Head of Finance & S151 Officer,5105672692,11.06.2014,Community Bus Service,Recruitment Advertising,44.00,ACCESS PERSONAL CHECKING SERVICES LTD
Revenue,Head of Finance & S151 Officer,5105672692,11.06.2014,Community Bus Service,Recruitment Advertising,24.00,ACCESS PERSONAL CHECKING SERVICES LTD
Revenue,Director of Childrens Services,5105672605,11.06.2014,Education Participation Team,Recruitment Advertising,25.00,ACCESS PERSONAL CHECKING SERVICES LTD
Revenue,Director of Childrens Services,5105672605,11.06.2014,Education Participation Team,Recruitment Advertising,44.00,ACCESS PERSONAL CHECKING SERVICES LTD
Revenue,Director of Childrens Services,5105672605,11.06.2014,Education Participation Team,Recruitment Advertising,8.00,ACCESS PERSONAL CHECKING SERVICES LTD
Revenue,Director of Childrens Services,5105672605,11.06.2014,Youth- Ventnor,Recruitment Advertising,6.00,ACCESS PERSONAL CHECKING SERVICES LTD
Revenue,Director of Childrens Services,5105672605,11.06.2014,Children In Need 1,Recruitment Advertising,44.00,ACCESS PERSONAL CHECKING SERVICES LTD
Revenue,Director of Childrens Services,5105672605,11.06.2014,Children In Need 1,Recruitment Advertising,6.00,ACCESS PERSONAL CHECKING SERVICES LTD
Revenue,Head of ASC & Community Wellbeing,5105672605,11.06.2014,Hospital Team,Recruitment Advertising,6.00,ACCESS PERSONAL CHECKING SERVICES LTD
Revenue,Head of ASC & Community Wellbeing,5105672605,11.06.2014,Hospital Team,Recruitment Advertising,44.00,ACCESS PERSONAL CHECKING SERVICES LTD
Revenue,Head of ASC & Community Wellbeing,5105672605,11.06.2014,Review/Quality Assurance,Recruitment Advertising,44.00,ACCESS PERSONAL CHECKING SERVICES LTD
Revenue,Head of ASC & Community Wellbeing,5105672605,11.06.2014,Review/Quality Assurance,Recruitment Advertising,6.00,ACCESS PERSONAL CHECKING SERVICES LTD
Revenue,Head of Planning & Regulatory Services,5105672991,13.06.2014,Licensing Services,Interview & recruitment expenses,616.00,ACCESS PERSONAL CHECKING SERVICES LTD
Revenue,Head of Planning & Regulatory Services,5105672991,13.06.2014,Licensing Services,Professional Services,84.00,ACCESS PERSONAL CHECKING SERVICES LTD
Revenue,Director of Childrens Services,5105672605,11.06.2014,Adoption Team,Recruitment Advertising,6.00,ACCESS PERSONAL CHECKING SERVICES LTD
Revenue,Director of Childrens Services,5105672605,11.06.2014,Adoption Team,Recruitment Advertising,44.00,ACCESS PERSONAL CHECKING SERVICES LTD
Revenue,Director of Childrens Services,5105672692,11.06.2014,Adoption Team,Recruitment Advertising,176.00,ACCESS PERSONAL CHECKING SERVICES LTD
Revenue,Director of Childrens Services,5105672692,11.06.2014,Adoption Team,Recruitment Advertising,24.00,ACCESS PERSONAL CHECKING SERVICES LTD
Revenue,Director of Childrens Services,5105672692,11.06.2014,In-house Fostering,Recruitment Advertising,440.00,ACCESS PERSONAL CHECKING SERVICES LTD
Revenue,Director of Childrens Services,5105672605,11.06.2014,In-house Fostering,Recruitment Advertising,96.00,ACCESS PERSONAL CHECKING SERVICES LTD
Revenue,Director of Childrens Services,5105672605,11.06.2014,In-house Fostering,Recruitment Advertising,616.00,ACCESS PERSONAL CHECKING SERVICES LTD
Revenue,Director of Childrens Services,5105672692,11.06.2014,In-house Fostering,Recruitment Advertising,60.00,ACCESS PERSONAL CHECKING SERVICES LTD
Revenue,Head of Economy & Tourism,5105672605,11.06.2014,The Heights,Recruitment Advertising,88.00,ACCESS PERSONAL CHECKING SERVICES LTD
Revenue,Head of Economy & Tourism,5105672605,11.06.2014,The Heights,Recruitment Advertising,8.00,ACCESS PERSONAL CHECKING SERVICES LTD
Revenue,Head of Exchequer Services,5105672692,11.06.2014,Council Tax,Recruitment Advertising,26.00,ACCESS PERSONAL CHECKING SERVICES LTD
Revenue,Head of Exchequer Services,5105672692,11.06.2014,Council Tax,Recruitment Advertising,6.00,ACCESS PERSONAL CHECKING SERVICES LTD
Revenue,Head of ASC & Community Wellbeing,5105672692,11.06.2014,Adelaide Resource Centre,Recruitment Advertising,18.00,ACCESS PERSONAL CHECKING SERVICES LTD
Revenue,Head of ASC & Community Wellbeing,5105672692,11.06.2014,Adelaide Resource Centre,Recruitment Advertising,132.00,ACCESS PERSONAL CHECKING SERVICES LTD
Revenue,Head of ASC & Community Wellbeing,5105674735,18.06.2014,Elderly Frail Homecare,Regular Respite Care,118.72,ACORN CARE SERVICE LTD
Revenue,Head of ASC & Community Wellbeing,5105674742,18.06.2014,Elderly Frail Homecare,Regular Respite Care,148.40,ACORN CARE SERVICE LTD
Revenue,Head of ASC & Community Wellbeing,5105674738,18.06.2014,Elderly Frail Homecare,Regular Respite Care,118.72,ACORN CARE SERVICE LTD
Revenue,Head of ASC & Community Wellbeing,5105674725,18.06.2014,Elderly Frail Homecare,Regular Respite Care,148.40,ACORN CARE SERVICE LTD
Revenue,Head of ASC & Community Wellbeing,5105674727,18.06.2014,Elderly Frail Homecare,Regular Respite Care,296.80,ACORN CARE SERVICE LTD
Revenue,Head of ASC & Community Wellbeing,5105675769,25.06.2014,Elderly Frail Homecare,Charges from Independent Providers,530.53,ACORN CARE SERVICE LTD
Revenue,Head of ASC & Community Wellbeing,5105675768,25.06.2014,Elderly Frail Homecare,Charges from Independent Providers,"3,279.64",ACORN CARE SERVICE LTD
Revenue,Head of ASC & Community Wellbeing,5105674745,18.06.2014,Elderly Frail Homecare,Charges from Independent Providers,37.10,ACORN CARE SERVICE LTD
Revenue,Head of ASC & Community Wellbeing,5105674739,18.06.2014,Elderly Frail Homecare,Charges from Independent Providers,519.40,ACORN CARE SERVICE LTD
Revenue,Head of ASC & Community Wellbeing,5105674737,18.06.2014,Elderly Frail Homecare,Charges from Independent Providers,716.03,ACORN CARE SERVICE LTD
Revenue,Head of ASC & Community Wellbeing,5105674743,18.06.2014,Elderly Frail Homecare,Charges from Independent Providers,519.40,ACORN CARE SERVICE LTD
Revenue,Head of ASC & Community Wellbeing,5105674744,18.06.2014,Elderly Frail Homecare,Charges from Independent Providers,389.55,ACORN CARE SERVICE LTD
Revenue,Head of ASC & Community Wellbeing,5105674741,18.06.2014,Elderly Frail Homecare,Charges from Independent Providers,307.93,ACORN CARE SERVICE LTD
Revenue,Head of ASC & Community Wellbeing,5105674740,18.06.2014,Elderly Frail Homecare,Charges from Independent Providers,649.25,ACORN CARE SERVICE LTD
Revenue,Head of ASC & Community Wellbeing,5105674720,18.06.2014,Elderly Frail Homecare,Charges from Independent Providers,59.36,ACORN CARE SERVICE LTD
Revenue,Head of ASC & Community Wellbeing,5105674721,18.06.2014,Elderly Frail Homecare,Charges from Independent Providers,259.70,ACORN CARE SERVICE LTD
Revenue,Head of ASC & Community Wellbeing,5105674718,18.06.2014,Elderly Frail Homecare,Charges from Independent Providers,126.14,ACORN CARE SERVICE LTD
Revenue,Head of ASC & Community Wellbeing,5105674719,18.06.2014,Elderly Frail Homecare,Charges from Independent Providers,74.20,ACORN CARE SERVICE LTD
Revenue,Head of ASC & Community Wellbeing,5105674736,18.06.2014,Elderly Frail Homecare,Charges from Independent Providers,519.40,ACORN CARE SERVICE LTD
Revenue,Head of ASC & Community Wellbeing,5105674722,18.06.2014,Elderly Frail Homecare,Charges from Independent Providers,192.92,ACORN CARE SERVICE LTD
Revenue,Head of ASC & Community Wellbeing,5105674710,18.06.2014,Elderly Frail Homecare,Charges from Independent Providers,"1,940.33",ACORN CARE SERVICE LTD
Revenue,Head of ASC & Community Wellbeing,5105674713,18.06.2014,Elderly Frail Homecare,Charges from Independent Providers,"1,428.35",ACORN CARE SERVICE LTD
Revenue,Head of ASC & Community Wellbeing,5105674717,18.06.2014,Elderly Frail Homecare,Charges from Independent Providers,886.69,ACORN CARE SERVICE LTD
Revenue,Head of ASC & Community Wellbeing,5105674712,18.06.2014,Elderly Frail Homecare,Charges from Independent Providers,437.78,ACORN CARE SERVICE LTD
Revenue,Head of ASC & Community Wellbeing,5105674714,18.06.2014,Elderly Frail Homecare,Charges from Independent Providers,"1,057.35",ACORN CARE SERVICE LTD
Revenue,Head of ASC & Community Wellbeing,5105674731,18.06.2014,Elderly Frail Homecare,Charges from Independent Providers,756.84,ACORN CARE SERVICE LTD
Revenue,Head of ASC & Community Wellbeing,5105674726,18.06.2014,Elderly Frail Homecare,Charges from Independent Providers,608.44,ACORN CARE SERVICE LTD
Revenue,Head of ASC & Community Wellbeing,5105674734,18.06.2014,Elderly Frail Homecare,Charges from Independent Providers,207.76,ACORN CARE SERVICE LTD
Revenue,Head of ASC & Community Wellbeing,5105674732,18.06.2014,Elderly Frail Homecare,Charges from Independent Providers,148.40,ACORN CARE SERVICE LTD
Revenue,Head of ASC & Community Wellbeing,5105674733,18.06.2014,Elderly Frail Homecare,Charges from Independent Providers,"3,346.42",ACORN CARE SERVICE LTD
Revenue,Head of ASC & Community Wellbeing,5105674724,18.06.2014,Elderly Frail Homecare,Charges from Independent Providers,322.77,ACORN CARE SERVICE LTD
Revenue,Head of ASC & Community Wellbeing,5105674729,18.06.2014,Elderly Frail Homecare,Charges from Independent Providers,445.20,ACORN CARE SERVICE LTD
Revenue,Head of ASC & Community Wellbeing,5105674723,18.06.2014,Elderly Frail Homecare,Charges from Independent Providers,994.28,ACORN CARE SERVICE LTD
Revenue,Head of ASC & Community Wellbeing,5105674715,18.06.2014,Elderly Frail Homecare,Charges from Independent Providers,259.70,ACORN CARE SERVICE LTD
Revenue,Head of ASC & Community Wellbeing,5105674716,18.06.2014,Elderly Frail Homecare,Charges from Independent Providers,667.80,ACORN CARE SERVICE LTD
Revenue,Head of ASC & Community Wellbeing,5105674730,18.06.2014,Elderly Frail Homecare,Charges from Independent Providers,908.95,ACORN CARE SERVICE LTD
Revenue,Head of ASC & Community Wellbeing,5105674728,18.06.2014,Elderly Frail Homecare,Charges from Independent Providers,389.55,ACORN CARE SERVICE LTD
Revenue,Head of ASC & Community Wellbeing,5105674707,18.06.2014,Elderly Frail Homecare,Charges from Independent Providers,489.72,ACORN CARE SERVICE LTD
Revenue,Head of ASC & Community Wellbeing,5105674711,18.06.2014,Elderly Frail Homecare,Charges from Independent Providers,"1,725.15",ACORN CARE SERVICE LTD
Revenue,Head of ASC & Community Wellbeing,5105674709,18.06.2014,Elderly Frail Homecare,Charges from Independent Providers,207.76,ACORN CARE SERVICE LTD
Revenue,Head of ASC & Community Wellbeing,5105674708,18.06.2014,Elderly Frail Homecare,Charges from Independent Providers,"2,886.38",ACORN CARE SERVICE LTD
Revenue,Chief Fire Officer,5105675551,20.06.2014,Fire Technical Support,Vehicle Maintenance Costs,14.50,ADAMS MOREY LTD
Revenue,Chief Fire Officer,5105675556,20.06.2014,Fire Technical Support,Vehicle Maintenance Costs,20.00,ADAMS MOREY LTD
Revenue,Chief Fire Officer,5105674208,18.06.2014,Fire Technical Support,Vehicle Maintenance Costs,40.00,ADAMS MOREY LTD
Revenue,Chief Fire Officer,5105674621,20.06.2014,Fire Technical Support,Vehicle Maintenance Costs,468.05,ADAMS MOREY LTD
Revenue,Chief Fire Officer,5105674619,20.06.2014,Fire Technical Support,Vehicle Maintenance Costs,62.51,ADAMS MOREY LTD
Revenue,Chief Fire Officer,5105673007,13.06.2014,Fire Technical Support,Vehicle Maintenance Costs,29.50,ADAMS MOREY LTD
Revenue,Chief Fire Officer,5105673003,13.06.2014,Fire Technical Support,Vehicle Maintenance Costs,14.50,ADAMS MOREY LTD
Revenue,Head of ASC & Community Wellbeing,5105673344,18.06.2014,Elderly Frail Residential Care,Charges from Independent Providers,"1,812.44",ADIEMUS CARE LTD
Revenue,Head of Economy & Tourism,5105672559,11.06.2014,Medina Leisure Centre,Payment to Private Contractors,"2,357.73",ADT FIRE AND SECURITY PLC
Revenue,Director of Childrens Services,5105671955,04.06.2014,Support for Looked After Children,Support Children,290.00,ALAN SHEPARD (IOW)
Revenue,Head of Corp Gov & Monitoring Officer,5105672303,06.06.2014,Elections,Vehicle Hire External,"2,620.00",ALAN SHEPARD (IOW)
Revenue,Director of Childrens Services,5105671955,04.06.2014,In-house Fostering,Support Children,30.00,ALAN SHEPARD (IOW)
Revenue,Head of Economy & Tourism,5105675885,25.06.2014,Crematorium,Grounds Maintenance,29.17,ALBANY FARM & G MACHINERY LTD
Revenue,Managing Director & Head of Paid Service,5105674051,18.06.2014,NHS Health Check Programme,Payment to Private Contractors,947.00,ALBERT STREET PRACTICE
Revenue,Managing Director & Head of Paid Service,5105672992,13.06.2014,NHS Health Check Programme,Payment to Private Contractors,"1,469.00",ALBERT STREET PRACTICE
Revenue,Managing Director & Head of Paid Service,5105674051,18.06.2014,Stop Smoking Services & Interventions,Payment to Private Contractors,560.00,ALBERT STREET PRACTICE
Revenue,Managing Director & Head of Paid Service,5105672992,13.06.2014,Stop Smoking Services & Interventions,Payment to Private Contractors,320.00,ALBERT STREET PRACTICE
Revenue,Managing Director & Head of Paid Service,5105672992,13.06.2014,Contraception,Payment to Private Contractors,"1,000.00",ALBERT STREET PRACTICE
Revenue,Managing Director & Head of Paid Service,5105674051,18.06.2014,Contraception,Payment to Private Contractors,185.00,ALBERT STREET PRACTICE
Revenue,Managing Director & Head of Paid Service,5105672992,13.06.2014,STI Tests & Treatment,Payment to Private Contractors,55.00,ALBERT STREET PRACTICE
Revenue,Managing Director & Head of Paid Service,5105674051,18.06.2014,STI Tests & Treatment,Payment to Private Contractors,70.00,ALBERT STREET PRACTICE
Revenue,Managing Director & Head of Paid Service,5105674051,18.06.2014,Adult Obesity,Payment to Private Contractors,300.00,ALBERT STREET PRACTICE
Revenue,Managing Director & Head of Paid Service,5105672992,13.06.2014,Adult Obesity,Payment to Private Contractors,200.00,ALBERT STREET PRACTICE
Revenue,Director of Childrens Services,5105672282,06.06.2014,Court Work & Consultancy Services,Legal Fees - Other Parties,83.33,ALERE TOXICOLOGY PLC
Revenue,Director of Childrens Services,5105672282,06.06.2014,Court Work & Consultancy Services,Legal Fees - Other Parties,36.00,ALERE TOXICOLOGY PLC
Revenue,Head of Planning & Regulatory Services,5105672745,11.06.2014,Development Control,Advertising & Publicity,104.60,ALEXANDER ADVERTISING (INT) LTD
Revenue,Head of Planning & Regulatory Services,5105672938,13.06.2014,Development Control,Advertising & Publicity,135.99,ALEXANDER ADVERTISING (INT) LTD
Revenue,Head of Planning & Regulatory Services,5105676144,25.06.2014,Development Control,Advertising & Publicity,188.29,ALEXANDER ADVERTISING (INT) LTD
Revenue,Head of Planning & Regulatory Services,5105676494,27.06.2014,Development Control,Advertising & Publicity,177.83,ALEXANDER ADVERTISING (INT) LTD
Revenue,Director of Childrens Services,5105675537,25.06.2014,Complaints (Children & Families),Professional Services,"1,463.00",ALISON CAMPBELL LTD
Revenue,Chief Fire Officer,5105675393,20.06.2014,Fire Technical Support,Operational Equipment,73.00,ALLBATTERIES UK LTD
Revenue,Director of Childrens Services,5105674053,18.06.2014,Children in Care Team,Transport of Clients,360.00,ALPHA (IOW) LTD
Revenue,Director of Childrens Services,5105671839,04.06.2014,Special Educational Needs Transport,Taxis - Contract Hire,308.40,ALPHA (IOW) LTD
Revenue,Director of Childrens Services,5105671839,04.06.2014,Special Educational Needs Transport,Taxis - Contract Hire,123.35,ALPHA (IOW) LTD
Revenue,Director of Childrens Services,5105671839,04.06.2014,Special Educational Needs Transport,Taxis - Contract Hire,316.40,ALPHA (IOW) LTD
Revenue,Director of Childrens Services,5105671839,04.06.2014,Special Educational Needs Transport,Taxis - Contract Hire,84.40,ALPHA (IOW) LTD
Revenue,Director of Childrens Services,5105671839,04.06.2014,Special Educational Needs Transport,Taxis - Contract Hire,300.00,ALPHA (IOW) LTD
Revenue,Director of Childrens Services,5105671839,04.06.2014,Special Educational Needs Transport,Taxis - Contract Hire,185.05,ALPHA (IOW) LTD
Revenue,Director of Childrens Services,5105671839,04.06.2014,Special Educational Needs Transport,Taxis - Contract Hire,400.00,ALPHA (IOW) LTD
Revenue,Director of Childrens Services,5105676622,20.06.2014,Special Educational Needs Transport,Taxis - Contract Hire,312.52,ALPHA (IOW) LTD
Revenue,Director of Childrens Services,5105676622,20.06.2014,Special Educational Needs Transport,Taxis - Contract Hire,123.35,ALPHA (IOW) LTD
Revenue,Director of Childrens Services,5105676622,20.06.2014,Special Educational Needs Transport,Taxis - Contract Hire,320.00,ALPHA (IOW) LTD
Revenue,Director of Childrens Services,5105676622,20.06.2014,Special Educational Needs Transport,Taxis - Contract Hire,240.00,ALPHA (IOW) LTD
Revenue,Director of Childrens Services,5105676622,20.06.2014,Special Educational Needs Transport,Taxis - Contract Hire,370.10,ALPHA (IOW) LTD
Revenue,Director of Childrens Services,5105676622,20.06.2014,Special Educational Needs Transport,Taxis - Contract Hire,454.50,ALPHA (IOW) LTD
Revenue,Director of Childrens Services,5105674959,18.06.2014,Special Educational Needs Transport,Taxis - Contract Hire,84.40,ALPHA (IOW) LTD
Revenue,Director of Childrens Services,5105674959,18.06.2014,Special Educational Needs Transport,Taxis - Contract Hire,300.00,ALPHA (IOW) LTD
Revenue,Director of Childrens Services,5105674959,18.06.2014,Special Educational Needs Transport,Taxis - Contract Hire,185.05,ALPHA (IOW) LTD
Revenue,Director of Childrens Services,5105676622,20.06.2014,Special Educational Needs Transport,Taxis - Contract Hire,84.40,ALPHA (IOW) LTD
Revenue,Director of Childrens Services,5105674959,18.06.2014,Special Educational Needs Transport,Taxis - Contract Hire,400.00,ALPHA (IOW) LTD
Revenue,Director of Childrens Services,5105674959,18.06.2014,Special Educational Needs Transport,Taxis - Contract Hire,300.00,ALPHA (IOW) LTD
Revenue,Director of Childrens Services,5105674959,18.06.2014,Special Educational Needs Transport,Taxis - Contract Hire,370.10,ALPHA (IOW) LTD
Revenue,Director of Childrens Services,5105674959,18.06.2014,Special Educational Needs Transport,Taxis - Contract Hire,454.50,ALPHA (IOW) LTD
Revenue,Director of Childrens Services,5105674959,18.06.2014,Special Educational Needs Transport,Taxis - Contract Hire,316.40,ALPHA (IOW) LTD
Revenue,Director of Childrens Services,5105674959,18.06.2014,Special Educational Needs Transport,Taxis - Contract Hire,263.70,ALPHA (IOW) LTD
Revenue,Director of Childrens Services,5105674959,18.06.2014,Special Educational Needs Transport,Taxis - Contract Hire,450.00,ALPHA (IOW) LTD
Revenue,Director of Childrens Services,5105674959,18.06.2014,Special Educational Needs Transport,Taxis - Contract Hire,308.40,ALPHA (IOW) LTD
Revenue,Director of Childrens Services,5105674959,18.06.2014,Special Educational Needs Transport,Taxis - Contract Hire,390.65,ALPHA (IOW) LTD
Revenue,Director of Childrens Services,5105674959,18.06.2014,Special Educational Needs Transport,Taxis - Contract Hire,123.35,ALPHA (IOW) LTD
Revenue,Director of Childrens Services,5105671839,04.06.2014,Special Educational Needs Transport,Taxis - Contract Hire,263.70,ALPHA (IOW) LTD
Revenue,Director of Childrens Services,5105671839,04.06.2014,Special Educational Needs Transport,Taxis - Contract Hire,300.00,ALPHA (IOW) LTD
Revenue,Director of Childrens Services,5105671839,04.06.2014,Special Educational Needs Transport,Taxis - Contract Hire,390.65,ALPHA (IOW) LTD
Revenue,Director of Childrens Services,5105671839,04.06.2014,Special Educational Needs Transport,Taxis - Contract Hire,370.10,ALPHA (IOW) LTD
Revenue,Director of Childrens Services,5105671839,04.06.2014,Special Educational Needs Transport,Taxis - Contract Hire,454.50,ALPHA (IOW) LTD
Revenue,Director of Childrens Services,5105671839,04.06.2014,Special Educational Needs Transport,Taxis - Contract Hire,450.00,ALPHA (IOW) LTD
Revenue,Director of Childrens Services,5105669713,18.06.2014,Support for Looked After Children - Disabled Childrens Team,Transport of Clients,360.00,ALPHA (IOW) LTD
Revenue,Director of Childrens Services,5105669713,18.06.2014,Support for Looked After Children - Disabled Childrens Team,Professional Services,76.35,ALPHA (IOW) LTD
Revenue,Director of Childrens Services,5105676622,20.06.2014,Special Educational Needs Transport,Taxis - Contract Hire,253.12,ALPHA (IOW) LTD
Revenue,Director of Childrens Services,5105676622,20.06.2014,Special Educational Needs Transport,Taxis - Contract Hire,300.00,ALPHA (IOW) LTD
Revenue,Director of Childrens Services,5105676622,20.06.2014,Special Educational Needs Transport,Taxis - Contract Hire,148.04,ALPHA (IOW) LTD
Revenue,Director of Childrens Services,5105676622,20.06.2014,Special Educational Needs Transport,Taxis - Contract Hire,263.70,ALPHA (IOW) LTD
Revenue,Director of Childrens Services,5105676622,20.06.2014,Special Educational Needs Transport,Taxis - Contract Hire,450.00,ALPHA (IOW) LTD
Revenue,Director of Childrens Services,5105676622,20.06.2014,Special Educational Needs Transport,Taxis - Contract Hire,246.72,ALPHA (IOW) LTD
Revenue,Head of Economy & Tourism,5105675888,25.06.2014,Youth Council,Public Transport Fares,15.60,ALPHA (IOW) LTD
Revenue,Director of Childrens Services,5105669713,18.06.2014,Independ. & Non-Maint. Special Schls & Independ. Specialist Provision,Transport of Clients,360.00,ALPHA (IOW) LTD
Revenue,Director of Childrens Services,5105669713,18.06.2014,Independ. & Non-Maint. Special Schls & Independ. Specialist Provision,Transport of Clients,76.35,ALPHA (IOW) LTD
Revenue,Director of Childrens Services,5105671839,04.06.2014,Home to School Transport,Taxis - Contract Hire,60.00,ALPHA (IOW) LTD
Revenue,Director of Childrens Services,5105671839,04.06.2014,Home to School Transport,Taxis - Contract Hire,250.00,ALPHA (IOW) LTD
Revenue,Director of Childrens Services,5105671839,04.06.2014,Home to School Transport,Taxis - Contract Hire,408.95,ALPHA (IOW) LTD
Revenue,Director of Childrens Services,5105671839,04.06.2014,Home to School Transport,Taxis - Contract Hire,491.50,ALPHA (IOW) LTD
Revenue,Director of Childrens Services,5105671839,04.06.2014,Home to School Transport,Taxis - Contract Hire,310.00,ALPHA (IOW) LTD
Revenue,Director of Childrens Services,5105674959,18.06.2014,Home to School Transport,Taxis - Contract Hire,128.50,ALPHA (IOW) LTD
Revenue,Director of Childrens Services,5105674959,18.06.2014,Home to School Transport,Taxis - Contract Hire,408.95,ALPHA (IOW) LTD
Revenue,Director of Childrens Services,5105674959,18.06.2014,Home to School Transport,Taxis - Contract Hire,390.65,ALPHA (IOW) LTD
Revenue,Director of Childrens Services,5105674959,18.06.2014,Home to School Transport,Taxis - Contract Hire,60.00,ALPHA (IOW) LTD
Revenue,Director of Childrens Services,5105674959,18.06.2014,Home to School Transport,Taxis - Contract Hire,11.31,ALPHA (IOW) LTD
Revenue,Director of Childrens Services,5105674959,18.06.2014,Home to School Transport,Taxis - Contract Hire,158.20,ALPHA (IOW) LTD
Revenue,Director of Childrens Services,5105676622,20.06.2014,Home to School Transport,Taxis - Contract Hire,220.00,ALPHA (IOW) LTD
Revenue,Director of Childrens Services,5105674959,18.06.2014,Home to School Transport,Taxis - Contract Hire,491.50,ALPHA (IOW) LTD
Revenue,Director of Childrens Services,5105674959,18.06.2014,Home to School Transport,Taxis - Contract Hire,310.00,ALPHA (IOW) LTD
Revenue,Director of Childrens Services,5105674959,18.06.2014,Home to School Transport,Taxis - Contract Hire,250.00,ALPHA (IOW) LTD
Revenue,Director of Childrens Services,5105676622,20.06.2014,Home to School Transport,Taxis - Contract Hire,11.31,ALPHA (IOW) LTD
Revenue,Director of Childrens Services,5105676622,20.06.2014,Home to School Transport,Taxis - Contract Hire,158.20,ALPHA (IOW) LTD
Revenue,Director of Childrens Services,5105676622,20.06.2014,Home to School Transport,Taxis - Contract Hire,128.50,ALPHA (IOW) LTD
Revenue,Director of Childrens Services,5105676622,20.06.2014,Home to School Transport,Taxis - Contract Hire,421.50,ALPHA (IOW) LTD
Revenue,Director of Childrens Services,5105676622,20.06.2014,Home to School Transport,Taxis - Contract Hire,248.00,ALPHA (IOW) LTD
Revenue,Director of Childrens Services,5105676622,20.06.2014,Home to School Transport,Taxis - Contract Hire,408.95,ALPHA (IOW) LTD
Revenue,Director of Childrens Services,5105676622,20.06.2014,Home to School Transport,Taxis - Contract Hire,390.65,ALPHA (IOW) LTD
Revenue,Director of Childrens Services,5105671839,04.06.2014,Home to School Transport,Taxis - Contract Hire,11.31,ALPHA (IOW) LTD
Revenue,Director of Childrens Services,5105671839,04.06.2014,Home to School Transport,Taxis - Contract Hire,158.20,ALPHA (IOW) LTD
Revenue,Director of Childrens Services,5105671839,04.06.2014,Home to School Transport,Taxis - Contract Hire,128.50,ALPHA (IOW) LTD
Revenue,Director of Childrens Services,5105671839,04.06.2014,Home to School Transport,Taxis - Contract Hire,390.65,ALPHA (IOW) LTD
Revenue,Director of Childrens Services,5105669712,13.06.2014,Agency Domiciliary Care,Charges from Independent Providers,48.00,ALPHA (IOW) LTD
Revenue,Head of ASC & Community Wellbeing,5105673385,18.06.2014,Learning Disability Residential Care,Charges from Independent Providers,"3,836.84",ALPHAGRANGE LTD
Revenue,Director of Childrens Services,5105674914,18.06.2014,Home to School Transport,Taxis - Contract Hire,330.00,AMAR CABS OF NEWPORT
Revenue,Director of Childrens Services,5105674086,18.06.2014,Home to School Transport,Taxis - Contract Hire,352.00,AMAR CABS OF NEWPORT
Revenue,Director of Childrens Services,5105674671,18.06.2014,Home to School Transport,Taxis - Contract Hire,330.00,AMAR CABS OF NEWPORT
Revenue,Director of Childrens Services,5105674669,18.06.2014,Home to School Transport,Taxis - Contract Hire,-330.00,AMAR CABS OF NEWPORT
Revenue,Head of ASC & Community Wellbeing,5105673387,18.06.2014,Elderly Mentally Ill Residential Care,Charges from Independent Providers,"1,699.88",ANCONA CARE HOME
Revenue,Head of ASC & Community Wellbeing,5105673387,18.06.2014,Elderly Mentally Ill Residential Care,Charges from Independent Providers,"1,699.88",ANCONA CARE HOME
Revenue,Head of ASC & Community Wellbeing,5105673387,18.06.2014,Elderly Frail Residential Care,Charges from Independent Providers,"1,998.08",ANCONA CARE HOME
Revenue,Head of ASC & Community Wellbeing,5105673387,18.06.2014,Elderly Frail Residential Care,Charges from Independent Providers,"1,699.88",ANCONA CARE HOME
Revenue,Head of ASC & Community Wellbeing,5105673387,18.06.2014,REDACTED PERSONAL DATA,Order Settlement to Balance Sheet GL,"1,998.08",ANCONA CARE HOME
Revenue,Head of Economy & Tourism,5105676596,20.06.2014,Print Unit,Printing Costs,59.40,ANTALIS MCNAUGHTON
Revenue,Head of Economy & Tourism,5105669591,11.06.2014,Print Unit,Printing Costs,109.68,ANTALIS MCNAUGHTON
Revenue,Head of Economy & Tourism,5105672515,11.06.2014,Print Unit,Printing Costs,-109.68,ANTALIS MCNAUGHTON
Revenue,Head of Economy & Tourism,5105672305,06.06.2014,Print Unit,Printing Costs,118.80,ANTALIS MCNAUGHTON
Revenue,Head of ASC & Community Wellbeing,5105673262,13.06.2014,Integrated Community Equipment Service,Operational Equipment,"1,999.50",APOLLO HEALTHCARE TECHNOLOGIES
Revenue,Director of Childrens Services,5105674916,18.06.2014,Children in Care Team,Support Children,7.00,AQUA CARS LTD
Revenue,Head of Economy & Tourism,5105675416,20.06.2014,Estuaries Officer,Payment to Private Contractors,180.00,ARC CONSULTING LTD
Revenue,Head of Economy & Tourism,5105674950,18.06.2014,Medina Leisure Centre,Clothing & Laundry,343.59,ARCO LTD
Revenue,Head of HR & Organisational Change,5105672351,06.06.2014,County Hall Central Mail Room,Clothing & Laundry,20.32,ARCO LTD
Revenue,Head of HR & Organisational Change,5105672351,06.06.2014,County Hall Central Mail Room,Clothing & Laundry,15.24,ARCO LTD
Revenue,Head of HR & Organisational Change,5105672351,06.06.2014,County Hall Central Mail Room,Clothing & Laundry,12.60,ARCO LTD
Revenue,Head of HR & Organisational Change,5105672351,06.06.2014,County Hall Central Mail Room,Clothing & Laundry,11.19,ARCO LTD
Revenue,Head of HR & Organisational Change,5105672351,06.06.2014,County Hall Central Mail Room,Clothing & Laundry,22.49,ARCO LTD
Revenue,Head of Economy & Tourism,5105672277,06.06.2014,Ferry Operation,Clothing & Laundry,10.16,ARCO LTD
Revenue,Head of Economy & Tourism,5105672277,06.06.2014,Ferry Operation,Clothing & Laundry,3.60,ARCO LTD
Revenue,Head of Economy & Tourism,5105673246,13.06.2014,Newport Harbour Account,Operational Equipment,36.80,ARCO LTD
Revenue,Head of Economy & Tourism,5105673055,18.06.2014,The Heights,Clothing & Laundry,3.60,ARCO LTD
Revenue,Head of Economy & Tourism,5105673055,18.06.2014,The Heights,Clothing & Laundry,10.16,ARCO LTD
Revenue,Managing Director & Head of Paid Service,5105675861,25.06.2014,NHS Health Check Programme,Payment to Private Contractors,622.00,ARGYLL HOUSE SURGERY
Revenue,Managing Director & Head of Paid Service,5105675861,25.06.2014,Stop Smoking Services & Interventions,Payment to Private Contractors,640.00,ARGYLL HOUSE SURGERY
Revenue,Managing Director & Head of Paid Service,5105675861,25.06.2014,Contraception,Payment to Private Contractors,410.00,ARGYLL HOUSE SURGERY
Revenue,Managing Director & Head of Paid Service,5105675861,25.06.2014,STI Tests & Treatment,Payment to Private Contractors,25.00,ARGYLL HOUSE SURGERY
Revenue,Director of Childrens Services,5105674965,18.06.2014,Beaulieu House,Operational Equipment,"1,008.00",ARJO MED AB LTD
Revenue,Head of ASC & Community Wellbeing,5105672757,11.06.2014,40 Venner Avenue,Maintenance of Operational Equipment,80.00,ARJO MED AB LTD
Revenue,Head of Corp Gov & Monitoring Officer,5105674030,18.06.2014,Elections,Rent of Buildings and Rooms,170.00,ARRETON COMMUNITY HALL FUND
Revenue,Head of Economy & Tourism,5105673020,13.06.2014,Medina Theatre,Property Services - Planned Maintenance,26.55,ASSA ABLOY ENTRANCE SYSTEMS LTD
Revenue,Head of Economy & Tourism,5105673019,13.06.2014,Freshwater West Wight Library,Property Services - Planned Maintenance,22.07,ASSA ABLOY ENTRANCE SYSTEMS LTD
Revenue,Head of HR & Organisational Change,5105673018,13.06.2014,"Jubilee Stores, Newport",Prop Svs only - Day to day mtce,412.20,ASSA ABLOY ENTRANCE SYSTEMS LTD
Revenue,Head of HR & Organisational Change,5105675438,20.06.2014,"County Hall,Newport",Prop Svs only - Day to day mtce,6.24,ASSA ABLOY ENTRANCE SYSTEMS LTD
Revenue,Head of HR & Organisational Change,5105675391,20.06.2014,"County Hall,Newport",Prop Svs only - Day to day mtce,306.80,ASSA ABLOY ENTRANCE SYSTEMS LTD
Revenue,Head of HR & Organisational Change,5105675565,20.06.2014,"County Hall,Newport",Prop Svs only - Day to day mtce,26.87,ASSA ABLOY ENTRANCE SYSTEMS LTD
Revenue,Head of ASC & Community Wellbeing,5105676037,25.06.2014,Mental Health Day Services,Property Services - Planned Maintenance,428.00,ASSA ABLOY ENTRANCE SYSTEMS LTD
Revenue,Chief Fire Officer,5105675455,20.06.2014,Deputy Chief Fire Office,Conference Expenses,653.00,ATOS WORLDLINE
Revenue,Chief Fire Officer,5105673058,25.06.2014,Fire Technical Support,Stationery,18.80,ATS EUROMASTER LTD
Revenue,Chief Fire Officer,5105673058,25.06.2014,Fire Technical Support,Vehicle Maintenance Costs,4.35,ATS EUROMASTER LTD
Revenue,Chief Fire Officer,5105673058,25.06.2014,Fire Technical Support,Vehicle Maintenance Costs,1.16,ATS EUROMASTER LTD
Revenue,Chief Fire Officer,5105673058,25.06.2014,Fire Technical Support,Vehicle Maintenance Costs,1.86,ATS EUROMASTER LTD
Revenue,Chief Fire Officer,5105673058,25.06.2014,Fire Technical Support,Vehicle Maintenance Costs,3.72,ATS EUROMASTER LTD
Revenue,Chief Fire Officer,5105673058,25.06.2014,Fire Technical Support,Vehicle Maintenance Costs,2.32,ATS EUROMASTER LTD
Revenue,Chief Fire Officer,5105673058,25.06.2014,Fire Technical Support,Vehicle Maintenance Costs,711.64,ATS EUROMASTER LTD
Revenue,Chief Fire Officer,5105673058,25.06.2014,Fire Technical Support,Vehicle Maintenance Costs,110.46,ATS EUROMASTER LTD
Revenue,Chief Fire Officer,5105673058,25.06.2014,Fire Technical Support,Vehicle Maintenance Costs,4.35,ATS EUROMASTER LTD
Revenue,Chief Fire Officer,5105673058,25.06.2014,Fire Technical Support,Vehicle Maintenance Costs,1.16,ATS EUROMASTER LTD
Revenue,Chief Fire Officer,5105673058,25.06.2014,Fire Technical Support,Vehicle Maintenance Costs,220.90,ATS EUROMASTER LTD
Revenue,Chief Fire Officer,5105673058,25.06.2014,Fire Technical Support,Vehicle Maintenance Costs,8.70,ATS EUROMASTER LTD
Revenue,Chief Fire Officer,5105673058,25.06.2014,Fire Technical Support,Vehicle Maintenance Costs,32.30,ATS EUROMASTER LTD
Revenue,Chief Fire Officer,5105673058,25.06.2014,Fire Technical Support,Vehicle Maintenance Costs,110.45,ATS EUROMASTER LTD
Revenue,Chief Fire Officer,5105673058,25.06.2014,Fire Technical Support,Vehicle Maintenance Costs,1.86,ATS EUROMASTER LTD
Revenue,Director of Childrens Services,5105666606,27.06.2014,Independ. & Non-Maint. Special Schls & Independ. Specialist Provision,Charges from Independent Providers,412.30,AUTISM WESSEX
Revenue,Director of Childrens Services,5105666608,27.06.2014,Independ. & Non-Maint. Special Schls & Independ. Specialist Provision,Charges from Independent Providers,657.41,AUTISM WESSEX
Revenue,Director of Childrens Services,5105666608,27.06.2014,NHS Funded Placements,Charges from Independent Providers,129.88,AUTISM WESSEX
Revenue,Director of Childrens Services,5105666606,27.06.2014,NHS Funded Placements,Charges from Independent Providers,90.28,AUTISM WESSEX
Revenue,Director of Childrens Services,5105666608,27.06.2014,Purchased Residential,Charges from Independent Providers,"1,168.71",AUTISM WESSEX
Revenue,Director of Childrens Services,5105666606,27.06.2014,Purchased Residential,Charges from Independent Providers,813.42,AUTISM WESSEX
Revenue,Director of Childrens Services,5105662236,27.06.2014,Purchased Residential,Charges from Independent Providers,"2,510.20",AUTISM WESSEX
Revenue,Director of Childrens Services,5105662235,27.06.2014,Purchased Residential,Charges from Independent Providers,"1,645.00",AUTISM WESSEX
Revenue,Head of ASC & Community Wellbeing,5105673357,18.06.2014,Elderly Mentally Ill Residential Care,Regular Respite Care,"1,699.88",AUTUMN HOUSE CARE LTD
Revenue,Head of ASC & Community Wellbeing,5105673357,18.06.2014,Physical Disability Residential Care,Charges from Independent Providers,"1,998.08",AUTUMN HOUSE CARE LTD
Revenue,Head of ASC & Community Wellbeing,5105672545,11.06.2014,Elderly Mentally Ill Residential Care,Charges from Independent Providers,142.72,AUTUMN HOUSE CARE LTD
Revenue,Head of ASC & Community Wellbeing,5105673357,18.06.2014,Elderly Mentally Ill Residential Care,Charges from Independent Providers,"1,998.08",AUTUMN HOUSE CARE LTD
Revenue,Head of ASC & Community Wellbeing,5105673357,18.06.2014,Elderly Mentally Ill Residential Care,Charges from Independent Providers,"1,998.08",AUTUMN HOUSE CARE LTD
Revenue,Head of ASC & Community Wellbeing,5105673357,18.06.2014,Elderly Mentally Ill Residential Care,Charges from Independent Providers,"1,699.88",AUTUMN HOUSE CARE LTD
Revenue,Head of ASC & Community Wellbeing,5105672763,11.06.2014,Elderly Mentally Ill Residential Care,Charges from Independent Providers,"1,070.40",AUTUMN HOUSE CARE LTD
Revenue,Head of ASC & Community Wellbeing,5105673357,18.06.2014,Elderly Mentally Ill Residential Care,Charges from Independent Providers,"1,998.08",AUTUMN HOUSE CARE LTD
Revenue,Head of ASC & Community Wellbeing,5105673357,18.06.2014,Elderly Mentally Ill Residential Care,Charges from Independent Providers,"1,998.08",AUTUMN HOUSE CARE LTD
Revenue,Head of ASC & Community Wellbeing,5105673357,18.06.2014,Elderly Mentally Ill Residential Care,Charges from Independent Providers,"1,998.08",AUTUMN HOUSE CARE LTD
Revenue,Head of ASC & Community Wellbeing,5105673357,18.06.2014,Elderly Mentally Ill Residential Care,Charges from Independent Providers,"1,699.88",AUTUMN HOUSE CARE LTD
Revenue,Head of ASC & Community Wellbeing,5105673357,18.06.2014,Elderly Mentally Ill Residential Care,Charges from Independent Providers,"1,998.08",AUTUMN HOUSE CARE LTD
Revenue,Head of ASC & Community Wellbeing,5105673357,18.06.2014,Elderly Mentally Ill Residential Care,Charges from Independent Providers,"1,998.08",AUTUMN HOUSE CARE LTD
Revenue,Head of ASC & Community Wellbeing,5105673357,18.06.2014,Elderly Mentally Ill Residential Care,Charges from Independent Providers,"1,998.08",AUTUMN HOUSE CARE LTD
Revenue,Head of ASC & Community Wellbeing,5105673357,18.06.2014,Elderly Mentally Ill Residential Care,Charges from Independent Providers,"1,699.88",AUTUMN HOUSE CARE LTD
Revenue,Head of ASC & Community Wellbeing,5105673357,18.06.2014,Elderly Mentally Ill Residential Care,Charges from Independent Providers,"1,998.08",AUTUMN HOUSE CARE LTD
Revenue,Head of ASC & Community Wellbeing,5105673357,18.06.2014,Elderly Mentally Ill Residential Care,Charges from Independent Providers,"1,998.08",AUTUMN HOUSE CARE LTD
Revenue,Head of ASC & Community Wellbeing,5105673357,18.06.2014,Elderly Mentally Ill Residential Care,Charges from Independent Providers,"1,998.08",AUTUMN HOUSE CARE LTD
Revenue,Head of ASC & Community Wellbeing,5105673357,18.06.2014,Elderly Mentally Ill Residential Care,Charges from Independent Providers,"1,998.08",AUTUMN HOUSE CARE LTD
Revenue,Head of ASC & Community Wellbeing,5105673357,18.06.2014,Elderly Mentally Ill Residential Care,Charges from Independent Providers,"1,998.08",AUTUMN HOUSE CARE LTD
Revenue,Head of ASC & Community Wellbeing,5105673357,18.06.2014,Elderly Mentally Ill Residential Care,Charges from Independent Providers,"1,998.08",AUTUMN HOUSE CARE LTD
Revenue,Head of ASC & Community Wellbeing,5105673357,18.06.2014,Elderly Mentally Ill Residential Care,Charges from Independent Providers,"1,998.08",AUTUMN HOUSE CARE LTD
Revenue,Head of ASC & Community Wellbeing,5105673357,18.06.2014,Elderly Mentally Ill Residential Care,Charges from Independent Providers,"1,998.08",AUTUMN HOUSE CARE LTD
Revenue,Head of ASC & Community Wellbeing,5105673357,18.06.2014,Elderly Mentally Ill Residential Care,Charges from Independent Providers,"1,998.08",AUTUMN HOUSE CARE LTD
Revenue,Head of ASC & Community Wellbeing,5105673321,18.06.2014,Elderly Frail Residential Care,Charges from Independent Providers,784.96,AUTUMN HOUSE CARE LTD
Revenue,Head of ASC & Community Wellbeing,5105673357,18.06.2014,Elderly Frail Residential Care,Charges from Independent Providers,"1,998.08",AUTUMN HOUSE CARE LTD
Revenue,Head of ASC & Community Wellbeing,5105673357,18.06.2014,Elderly Frail Residential Care,Charges from Independent Providers,"1,998.08",AUTUMN HOUSE CARE LTD
Revenue,Head of ASC & Community Wellbeing,5105673357,18.06.2014,REDACTED PERSONAL DATA,Order Settlement to Balance Sheet GL,"1,998.08",AUTUMN HOUSE CARE LTD
Revenue,Head of Economy & Tourism,5105672999,13.06.2014,Medina Theatre,Payment to Private Contractors,"5,000.00",AVALON PROMOTIONS
Revenue,Head of Economy & Tourism,5105673001,13.06.2014,Medina Theatre,Payment to Private Contractors,"1,200.00",AVALON PROMOTIONS
Revenue,Head of HR & Organisational Change,5105672285,06.06.2014,Payroll,Consultants Fees,138.00,AVALON VALE UK LTD
Revenue,Corporate Items,5105672366,06.06.2014,BSIP savings,Training,"3,612.00",AVAYA UK
Revenue,Chief Fire Officer,5105674118,18.06.2014,Fire Control phase 2,Operational Equipment,"1,018.00",AXESS INTERNATIONAL LTD
Revenue,Chief Fire Officer,5105674118,18.06.2014,Fire Control phase 2,Operational Equipment,"1,137.60",AXESS INTERNATIONAL LTD
Revenue,Director of Childrens Services,5105675010,20.06.2014,Leaving Care Costs,Accommodation Costs - Service Users,57.50,REDACTED PERSONAL DATA
Revenue,Director of Childrens Services,5105676297,27.06.2014,Leaving Care Costs,Accommodation Costs - Service Users,57.50,REDACTED PERSONAL DATA
Revenue,Director of Childrens Services,5105672127,06.06.2014,Leaving Care Costs,Accommodation Costs - Service Users,57.50,REDACTED PERSONAL DATA
Revenue,Director of Childrens Services,5105672794,11.06.2014,Leaving Care Costs,Accommodation Costs - Service Users,57.50,REDACTED PERSONAL DATA
Revenue,Director of Childrens Services,5105676297,27.06.2014,Leaving Care Costs,Support Children,120.89,REDACTED PERSONAL DATA
Revenue,Director of Childrens Services,5105675010,20.06.2014,Leaving Care Costs,Support Children,120.89,REDACTED PERSONAL DATA
Revenue,Director of Childrens Services,5105672127,06.06.2014,Leaving Care Costs,Support Children,120.89,REDACTED PERSONAL DATA
Revenue,Director of Childrens Services,5105672794,11.06.2014,Leaving Care Costs,Support Children,120.89,REDACTED PERSONAL DATA
Revenue,Head of Economy & Tourism,5105675858,25.06.2014,Fort Victoria,General Materials,103.03,B & Q FINANCIAL SERVICES
Revenue,Director of Childrens Services,5105676426,27.06.2014,Leaving Care Costs,Support Children,7.48,REDACTED PERSONAL DATA
Revenue,Director of Childrens Services,5105672923,13.06.2014,Leaving Care Costs,Support Children,7.48,REDACTED PERSONAL DATA
Revenue,Director of Childrens Services,5105675140,20.06.2014,Leaving Care Costs,Support Children,7.48,REDACTED PERSONAL DATA
Revenue,Director of Childrens Services,5105672255,06.06.2014,Leaving Care Costs,Support Children,7.48,REDACTED PERSONAL DATA
Revenue,Director of Childrens Services,5105672085,06.06.2014,Branstone Farm Studies Centre,Office Equipment,60.75,REDACTED PERSONAL DATA
Revenue,Director of Childrens Services,5105672085,06.06.2014,Branstone Farm Studies Centre,Office Equipment,78.00,REDACTED PERSONAL DATA
Revenue,Head of ASC & Community Wellbeing,5105673372,18.06.2014,Learning Disability Residential Care,Charges from Independent Providers,"1,811.88",REDACTED PERSONAL DATA
Revenue,Head of ASC & Community Wellbeing,5105673372,18.06.2014,Learning Disability Residential Care,Charges from Independent Providers,"1,811.88",REDACTED PERSONAL DATA
Revenue,Head of ASC & Community Wellbeing,5105673372,18.06.2014,Learning Disability Residential Care,Charges from Independent Providers,"2,625.00",REDACTED PERSONAL DATA
Revenue,Head of ASC & Community Wellbeing,5105675678,25.06.2014,Leaseholds by LA,Accommodation Costs - Leaseholder Payments,815.49,REDACTED PERSONAL DATA
Revenue,Head of Exchequer Services,5105675745,25.06.2014,Staff Benefits,Payment to Private Contractors,50.00,REDACTED PERSONAL DATA
Revenue,Head of Exchequer Services,5105675745,25.06.2014,Staff Benefits,Payment to Private Contractors,100.00,REDACTED PERSONAL DATA
Revenue,Head of Exchequer Services,5105675745,25.06.2014,Staff Benefits,Payment to Private Contractors,243.00,REDACTED PERSONAL DATA
Revenue,Head of ASC & Community Wellbeing,5105675685,25.06.2014,Leaseholds by LA,Accommodation Costs - Leaseholder Payments,888.33,REDACTED PERSONAL DATA
Revenue,Head of ASC & Community Wellbeing,5105675685,25.06.2014,Leaseholds by LA,Accommodation Costs - Leaseholder Payments,799.50,REDACTED PERSONAL DATA
Revenue,Head of ASC & Community Wellbeing,5105675685,25.06.2014,Leaseholds by LA,Accommodation Costs - Leaseholder Payments,799.50,REDACTED PERSONAL DATA
Revenue,Head of ASC & Community Wellbeing,5105675685,25.06.2014,Leaseholds by LA,Accommodation Costs - Leaseholder Payments,866.67,REDACTED PERSONAL DATA
Revenue,Head of ASC & Community Wellbeing,5105675685,25.06.2014,Leaseholds by LA,Accommodation Costs - Leaseholder Payments,866.67,REDACTED PERSONAL DATA
Revenue,Director of Childrens Services,5105675420,20.06.2014,Purchased Residential,Charges from Independent Providers,"13,263.57",BACK ON TRACK
Revenue,Director of Childrens Services,5105675822,25.06.2014,Purchased Residential,Charges from Independent Providers,"12,835.71",BACK ON TRACK
Revenue,Head of HR & Organisational Change,5105674915,18.06.2014,"Bugle House,Newport",Rent of Buildings and Rooms,"7,910.35",BAE SYSTEMS
Revenue,Chief Fire Officer,5105676040,24.06.2014,Deputy Chief Fire Office,Prop Svs only - Day to day mtce,222.30,BALFOUR BEATTY
Revenue,Chief Fire Officer,5105676029,25.06.2014,Deputy Chief Fire Office,Prop Svs only - Day to day mtce,253.37,BALFOUR BEATTY
Revenue,Chief Fire Officer,5105676024,25.06.2014,Deputy Chief Fire Office,Prop Svs only - Day to day mtce,641.11,BALFOUR BEATTY
Revenue,Chief Fire Officer,5105676022,25.06.2014,Deputy Chief Fire Office,Prop Svs only - Day to day mtce,680.93,BALFOUR BEATTY
Revenue,Chief Fire Officer,5105676023,25.06.2014,Deputy Chief Fire Office,Prop Svs only - Day to day mtce,"1,354.87",BALFOUR BEATTY
Revenue,Chief Fire Officer,5105676558,20.06.2014,Deputy Chief Fire Office,Prop Svs only - Day to day mtce,57.63,BALFOUR BEATTY
Revenue,Chief Fire Officer,5105676121,25.06.2014,Deputy Chief Fire Office,Prop Svs only - Day to day mtce,227.14,BALFOUR BEATTY
Revenue,Chief Fire Officer,5105676073,25.06.2014,Deputy Chief Fire Office,Prop Svs only - Day to day mtce,298.11,BALFOUR BEATTY
Revenue,Chief Fire Officer,5105676699,20.06.2014,Deputy Chief Fire Office,Prop Svs only - Day to day mtce,187.14,BALFOUR BEATTY
Revenue,Chief Fire Officer,5105676038,25.06.2014,Deputy Chief Fire Office,Property Services - Planned Maintenance,782.79,BALFOUR BEATTY
Revenue,Chief Fire Officer,5105676130,25.06.2014,Deputy Chief Fire Office,Property Services - Planned Maintenance,621.07,BALFOUR BEATTY
Revenue,Chief Fire Officer,5105676548,20.06.2014,Deputy Chief Fire Office,Prop Svs only - Day to day mtce,57.55,BALFOUR BEATTY
Revenue,Chief Fire Officer,5105676658,20.06.2014,Deputy Chief Fire Office,Prop Svs only - Day to day mtce,101.97,BALFOUR BEATTY
Revenue,Chief Fire Officer,5105676673,20.06.2014,Deputy Chief Fire Office,Prop Svs only - Day to day mtce,109.93,BALFOUR BEATTY
Revenue,Chief Fire Officer,5105676540,20.06.2014,Deputy Chief Fire Office,Property Services - Planned Maintenance,162.60,BALFOUR BEATTY
Revenue,Chief Fire Officer,5105676030,25.06.2014,Deputy Chief Fire Office,Minor Works,396.72,BALFOUR BEATTY
Revenue,Chief Fire Officer,5105676539,20.06.2014,Deputy Chief Fire Office,Minor Works,176.63,BALFOUR BEATTY
Revenue,Chief Fire Officer,5105676567,20.06.2014,Deputy Chief Fire Office,Minor Works,78.03,BALFOUR BEATTY
Revenue,Chief Fire Officer,5105676538,20.06.2014,Deputy Chief Fire Office,Minor Works,108.21,BALFOUR BEATTY
Revenue,Head of Finance & S151 Officer,5105676531,20.06.2014,Public Conveniences - General,Prop Svs only - Day to day mtce,64.46,BALFOUR BEATTY
Revenue,Head of Finance & S151 Officer,5105676542,20.06.2014,Public Conveniences - General,Prop Svs only - Day to day mtce,171.39,BALFOUR BEATTY
Revenue,Head of Finance & S151 Officer,5105676559,20.06.2014,Public Conveniences - General,Prop Svs only - Day to day mtce,129.47,BALFOUR BEATTY
Revenue,Head of Finance & S151 Officer,5105676026,25.06.2014,Public Conveniences - General,Prop Svs only - Day to day mtce,310.52,BALFOUR BEATTY
Revenue,Head of Finance & S151 Officer,5105676047,25.06.2014,Public Conveniences - General,Prop Svs only - Day to day mtce,318.16,BALFOUR BEATTY
Revenue,Head of Finance & S151 Officer,5105676033,25.06.2014,Public Conveniences - General,Prop Svs only - Day to day mtce,505.64,BALFOUR BEATTY
Revenue,Head of Finance & S151 Officer,5105676667,20.06.2014,Public Conveniences - General,Prop Svs only - Day to day mtce,132.35,BALFOUR BEATTY
Revenue,Head of Finance & S151 Officer,5105676565,20.06.2014,Public Conveniences - General,Prop Svs only - Day to day mtce,131.25,BALFOUR BEATTY
Revenue,Head of Finance & S151 Officer,5105676703,20.06.2014,Public Conveniences - General,Prop Svs only - Day to day mtce,174.26,BALFOUR BEATTY
Revenue,Head of Finance & S151 Officer,5105676056,27.06.2014,Public Conveniences - General,Property Services - Planned Maintenance,538.82,BALFOUR BEATTY
Capital,Director of Childrens Services,5105662409,27.06.2014,One School Pathfinder,Payment to Contractors - Capital,31.81,BALFOUR BEATTY
Revenue,Head of HR & Organisational Change,5105676685,20.06.2014,St James Centre,Minor Works,177.23,BALFOUR BEATTY
Revenue,Head of HR & Organisational Change,5105676681,20.06.2014,St James Centre,Minor Works,73.83,BALFOUR BEATTY
Revenue,Head of HR & Organisational Change,5105676148,25.06.2014,St James Centre,Minor Works,245.99,BALFOUR BEATTY
Revenue,Head of Economy & Tourism,5105676156,25.06.2014,Bembridge Library,Prop Svs only - Day to day mtce,413.12,BALFOUR BEATTY
Revenue,Head of Economy & Tourism,5105676533,20.06.2014,Cowes Library,Minor Works,55.49,BALFOUR BEATTY
Revenue,Director of Childrens Services,5105676672,20.06.2014,Workforce Development -  Westridge Centre,Minor Works,98.35,BALFOUR BEATTY
Revenue,Head of Economy & Tourism,5105676031,25.06.2014,Archives,Minor Works,347.31,BALFOUR BEATTY
Revenue,Head of Economy & Tourism,5105676697,20.06.2014,Archives,Minor Works,177.23,BALFOUR BEATTY
Revenue,Head of ASC & Community Wellbeing,5105676058,27.06.2014,Westminster House,Property Services - Planned Maintenance,419.12,BALFOUR BEATTY
Revenue,Head of ASC & Community Wellbeing,5105676653,20.06.2014,Westminster House,Prop Svs only - Day to day mtce,169.63,BALFOUR BEATTY
Revenue,Head of ASC & Community Wellbeing,5105676696,20.06.2014,Westminster House,Minor Works,76.57,BALFOUR BEATTY
Revenue,Head of ASC & Community Wellbeing,5105676694,20.06.2014,Westminster House,Minor Works,73.01,BALFOUR BEATTY
Revenue,Head of ASC & Community Wellbeing,5105676641,20.06.2014,Westminster House,Minor Works,107.64,BALFOUR BEATTY
Revenue,Head of ASC & Community Wellbeing,5105676552,20.06.2014,Gouldings Resource Centre,Prop Svs only - Day to day mtce,137.07,BALFOUR BEATTY
Revenue,Head of ASC & Community Wellbeing,5105676113,27.06.2014,Gouldings Resource Centre,Property Services - Planned Maintenance,847.21,BALFOUR BEATTY
Revenue,Head of HR & Organisational Change,5105676674,20.06.2014,"Enterprise House, Newport",Minor Works,151.49,BALFOUR BEATTY
Revenue,Head of HR & Organisational Change,5105676676,20.06.2014,Non-operational buildings,Minor Works,49.51,BALFOUR BEATTY
Revenue,Head of ASC & Community Wellbeing,5105676032,25.06.2014,Saxonbury,Minor Works,268.72,BALFOUR BEATTY
Revenue,Head of ASC & Community Wellbeing,5105675567,20.06.2014,Saxonbury,Minor Works,526.73,BALFOUR BEATTY
Revenue,Head of ASC & Community Wellbeing,5105676532,20.06.2014,Saxonbury,Minor Works,149.68,BALFOUR BEATTY
Revenue,Head of ASC & Community Wellbeing,5105676651,20.06.2014,Saxonbury,Minor Works,52.45,BALFOUR BEATTY
Revenue,Head of ASC & Community Wellbeing,5105676700,20.06.2014,Saxonbury,Minor Works,164.09,BALFOUR BEATTY
Revenue,Head of HR & Organisational Change,5105676549,20.06.2014,"Enterprise House, Newport",Prop Svs only - Day to day mtce,138.64,BALFOUR BEATTY
Revenue,Head of Economy & Tourism,5105676139,25.06.2014,Cemeteries-Sandown (ex Lake),Prop Svs only - Day to day mtce,227.47,BALFOUR BEATTY
Revenue,Chief Fire Officer,5105671843,04.06.2014,Fire Technical Support,"Plant, Equipment & Furniture - Capital",285.00,BALFOUR BEATTY
Revenue,Head of Economy & Tourism,5105676041,24.06.2014,Ferry Management,Prop Svs only - Day to day mtce,309.88,BALFOUR BEATTY
Revenue,Director of Childrens Services,5105676556,20.06.2014,Beaulieu House,Minor Works,99.44,BALFOUR BEATTY
Revenue,Director of Childrens Services,5105676115,25.06.2014,Beaulieu House,Minor Works,"1,014.27",BALFOUR BEATTY
Revenue,Director of Childrens Services,5105676671,20.06.2014,Beaulieu House,Minor Works,69.48,BALFOUR BEATTY
Revenue,Director of Childrens Services,5105676564,20.06.2014,Beaulieu House,Minor Works,151.64,BALFOUR BEATTY
Revenue,Head of Economy & Tourism,5105676107,25.06.2014,Ryde Sports Centre,Payment to Private Contractors,876.17,BALFOUR BEATTY
Revenue,Head of Economy & Tourism,5105676089,25.06.2014,Ryde Sports Centre,Payment to Private Contractors,"2,580.50",BALFOUR BEATTY
Revenue,Head of Economy & Tourism,5105676100,25.06.2014,Ryde Sports Centre,Payment to Private Contractors,"3,620.83",BALFOUR BEATTY
Revenue,Head of Economy & Tourism,5105676679,20.06.2014,Newport Library,Minor Works,119.09,BALFOUR BEATTY
Revenue,Head of Economy & Tourism,5105676680,20.06.2014,Newport Library,Minor Works,98.77,BALFOUR BEATTY
Revenue,Head of ASC & Community Wellbeing,5105676053,25.06.2014,Highmead,Minor Works,876.96,BALFOUR BEATTY
Revenue,Head of HR & Organisational Change,5105676543,20.06.2014,"Guildhall,Newport",Prop Svs only - Day to day mtce,114.67,BALFOUR BEATTY
Revenue,Head of HR & Organisational Change,5105676536,20.06.2014,"Seaclose Offices, Newport",Minor Works,66.31,BALFOUR BEATTY
Revenue,Head of HR & Organisational Change,5105676693,20.06.2014,"Seaclose Offices, Newport",Minor Works,153.97,BALFOUR BEATTY
Revenue,Head of HR & Organisational Change,5105676692,20.06.2014,"Seaclose Offices, Newport",Minor Works,115.61,BALFOUR BEATTY
Revenue,Head of HR & Organisational Change,5105676563,20.06.2014,Properties  - Other Properties,Prop Svs only - Day to day mtce,90.37,BALFOUR BEATTY
Revenue,Head of HR & Organisational Change,5105676077,25.06.2014,Properties  - Other Properties,Prop Svs only - Day to day mtce,292.26,BALFOUR BEATTY
Revenue,Head of HR & Organisational Change,5105676560,20.06.2014,"Westridge, Ryde",Prop Svs only - Day to day mtce,110.32,BALFOUR BEATTY
Revenue,Head of HR & Organisational Change,5105676537,20.06.2014,"Westridge, Ryde",Minor Works,122.67,BALFOUR BEATTY
Revenue,Head of HR & Organisational Change,5105676159,25.06.2014,"24 Daish Way, Newport (WISE)",Prop Svs only - Day to day mtce,94.99,BALFOUR BEATTY
Revenue,Director of Childrens Services,5105676551,20.06.2014,Branstone Farm Studies Centre,Prop Svs only - Day to day mtce,194.32,BALFOUR BEATTY
Revenue,Director of Childrens Services,5105676678,20.06.2014,Branstone Farm Studies Centre,Minor Works,79.79,BALFOUR BEATTY
Revenue,Director of Childrens Services,5105676151,25.06.2014,Thompson House Tuition Centre (PRU),Minor Works,283.62,BALFOUR BEATTY
Revenue,Director of Childrens Services,5105676701,20.06.2014,Thompson House Tuition Centre (PRU),Minor Works,62.91,BALFOUR BEATTY
Revenue,Head of Economy & Tourism,5105676068,27.06.2014,Rew Valley Sports Centre Management,Property Services - Planned Maintenance,314.84,BALFOUR BEATTY
Revenue,Head of Economy & Tourism,5105676143,25.06.2014,Westridge Squash Courts,Prop Svs only - Day to day mtce,357.91,BALFOUR BEATTY
Revenue,Head of HR & Organisational Change,5105676096,25.06.2014,"County Hall,Newport",Prop Svs only - Day to day mtce,398.73,BALFOUR BEATTY
Revenue,Head of HR & Organisational Change,5105676028,25.06.2014,"County Hall,Newport",Minor Works,"1,032.32",BALFOUR BEATTY
Revenue,Head of HR & Organisational Change,5105676070,25.06.2014,"Bugle House,Newport",Prop Svs only - Day to day mtce,409.31,BALFOUR BEATTY
Revenue,Head of HR & Organisational Change,5105676553,20.06.2014,"Bugle House,Newport",Prop Svs only - Day to day mtce,127.48,BALFOUR BEATTY
Revenue,Head of HR & Organisational Change,5105676545,20.06.2014,"Jubilee Stores, Newport",Prop Svs only - Day to day mtce,146.51,BALFOUR BEATTY
Revenue,Head of HR & Organisational Change,5105676547,20.06.2014,"Jubilee Stores, Newport",Prop Svs only - Day to day mtce,93.25,BALFOUR BEATTY
Capital,Head of HR & Organisational Change,5105675561,25.06.2014,Identity Management,ICT Hardware & Software - Capital,"1,436.00",BALFOUR BEATTY
Revenue,Head of HR & Organisational Change,5105676704,20.06.2014,"County Hall,Newport",Prop Svs only - Day to day mtce,89.99,BALFOUR BEATTY
Revenue,Head of HR & Organisational Change,5105676044,25.06.2014,"County Hall,Newport",Prop Svs only - Day to day mtce,361.40,BALFOUR BEATTY
Revenue,Head of HR & Organisational Change,5105676050,25.06.2014,"County Hall,Newport",Prop Svs only - Day to day mtce,355.52,BALFOUR BEATTY
Revenue,Head of ASC & Community Wellbeing,5105676544,20.06.2014,Overbrook,Minor Works,46.50,BALFOUR BEATTY
Revenue,Corporate Items,5105676109,25.06.2014,BSIP savings,Payment to Contractors - Capital,598.87,BALFOUR BEATTY
Revenue,Corporate Items,5105671842,04.06.2014,BSIP savings,Minor Works,"1,252.00",BALFOUR BEATTY
Revenue,Head of Economy & Tourism,5105676664,20.06.2014,Crematorium,Prop Svs only - Day to day mtce,196.12,BALFOUR BEATTY
Revenue,Head of Economy & Tourism,5105676154,25.06.2014,Open space lettings,Prop Svs only - Day to day mtce,235.33,BALFOUR BEATTY
Revenue,Director of Childrens Services,5105676035,25.06.2014,Non-Delegated Building Maintenance,Prop Svs only - Day to day mtce,671.99,BALFOUR BEATTY
Revenue,Director of Childrens Services,5105676062,25.06.2014,Childrens Centres Maintenance,Minor Works,240.00,BALFOUR BEATTY
Revenue,Director of Childrens Services,5105676555,20.06.2014,Childrens Centres Maintenance,Minor Works,184.88,BALFOUR BEATTY
Revenue,Director of Childrens Services,5105676663,20.06.2014,Childrens Centres Maintenance,Minor Works,93.18,BALFOUR BEATTY
Revenue,Director of Childrens Services,5105671840,04.06.2014,Youth- Newport,Prop Svs only - Day to day mtce,441.00,BALFOUR BEATTY
Revenue,Director of Childrens Services,5105676562,20.06.2014,Youth- West Wight,Prop Svs only - Day to day mtce,148.42,BALFOUR BEATTY
Revenue,Head of Economy & Tourism,5105676705,20.06.2014,The Heights,Prop Svs only - Day to day mtce,119.48,BALFOUR BEATTY
Revenue,Head of Economy & Tourism,5105676695,20.06.2014,The Heights,Prop Svs only - Day to day mtce,161.31,BALFOUR BEATTY
Revenue,Head of Economy & Tourism,5105676146,25.06.2014,The Heights,Property Services - Planned Maintenance,"1,184.78",BALFOUR BEATTY
Revenue,Head of Economy & Tourism,5105676141,25.06.2014,Dinosaur Isle Museum (Sandown Geology),Prop Svs only - Day to day mtce,675.66,BALFOUR BEATTY
Revenue,Head of Economy & Tourism,5105676103,27.06.2014,Roman Villa Newport,Property Services - Planned Maintenance,249.13,BALFOUR BEATTY
Revenue,Head of Economy & Tourism,5105676691,20.06.2014,Roman Villa Newport,Minor Works,196.54,BALFOUR BEATTY
Revenue,Head of Economy & Tourism,5105676535,20.06.2014,Roman Villa Newport,Minor Works,105.39,BALFOUR BEATTY
Revenue,Head of ASC & Community Wellbeing,5105671841,04.06.2014,Downside Community & Learning Centre,Minor Works,"1,286.00",BALFOUR BEATTY
Revenue,Head of ASC & Community Wellbeing,5105676137,25.06.2014,Downside Community & Learning Centre,Minor Works,312.71,BALFOUR BEATTY
Revenue,Head of ASC & Community Wellbeing,5105676541,20.06.2014,Downside Community & Learning Centre,Minor Works,168.57,BALFOUR BEATTY
Revenue,Head of HR & Organisational Change,5105676027,25.06.2014,"Civic Centre,Sandown",Prop Svs only - Day to day mtce,275.39,BALFOUR BEATTY
Revenue,Head of HR & Organisational Change,5105676687,20.06.2014,"Civic Centre,Sandown",Minor Works,82.87,BALFOUR BEATTY
Revenue,Head of ASC & Community Wellbeing,5105676133,25.06.2014,Adelaide Resource Centre,Property Services - Planned Maintenance,"1,350.36",BALFOUR BEATTY
Revenue,Head of ASC & Community Wellbeing,5105676675,20.06.2014,Adelaide Resource Centre,Prop Svs only - Day to day mtce,170.15,BALFOUR BEATTY
Revenue,Head of ASC & Community Wellbeing,5105676677,20.06.2014,Adelaide Resource Centre,Minor Works,73.01,BALFOUR BEATTY
Revenue,Head of ASC & Community Wellbeing,5105676698,20.06.2014,Adelaide Resource Centre,Maintenance of Operational Equipment,67.75,BALFOUR BEATTY
Revenue,Chief Fire Officer,5105673005,18.06.2014,Fire Technical Support,Payment to Private Contractors,452.02,BALLYCLARE LTD
Revenue,Chief Fire Officer,5105673011,18.06.2014,Fire Technical Support,Payment to Private Contractors,"6,683.45",BALLYCLARE LTD
Revenue,Chief Fire Officer,5105671956,04.06.2014,Fire Technical Support,Vehicle Maintenance Costs,57.50,BARTLETTS SERVICE STATION
Revenue,Chief Fire Officer,5105676597,20.06.2014,Diversity & Workforce,Operational Equipment,120.00,BARTLETTS SERVICE STATION
Revenue,Head of HR & Organisational Change,5105674056,18.06.2014,Corporate Stores,Vehicle Hire External,730.71,BARTLETTS SERVICE STATION
Revenue,Head of Exchequer Services,5105675726,25.06.2014,Staff Benefits,Payment to Private Contractors,60.00,BARTON PRIMARY & EARLY YEARS
Revenue,Head of Exchequer Services,5105675726,25.06.2014,Staff Benefits,Payment to Private Contractors,50.00,BARTON PRIMARY & EARLY YEARS
Revenue,Head of Exchequer Services,5105675726,25.06.2014,Staff Benefits,Payment to Private Contractors,11.67,BARTON PRIMARY & EARLY YEARS
Revenue,Head of Exchequer Services,5105675726,25.06.2014,Staff Benefits,Payment to Private Contractors,12.00,BARTON PRIMARY & EARLY YEARS
Revenue,Head of Economy & Tourism,5105672983,20.06.2014,IW Festival of Cycling,Advertising & Publicity,400.00,BAUER CONSUMER MEDIA LTD
Revenue,Head of Economy & Tourism,5105672528,11.06.2014,Leisure Management & Admin,Advertising & Publicity,100.00,BEACON MEDIA LIMITED
Revenue,Head of Economy & Tourism,5105672523,11.06.2014,IOW Festival of Walking,Advertising & Publicity,200.00,BEACON MEDIA LIMITED
Revenue,Head of ASC & Community Wellbeing,5105673586,18.06.2014,Elderly Frail Nursing Mainland,Charges from Independent Providers,"2,269.40",BEAUMONT LODGE LTD
Revenue,Head of Corp Gov & Monitoring Officer,5105676498,27.06.2014,Elections,Rent of Buildings and Rooms,33.00,BEMBRIDGE VILLAGE HALL
Revenue,Head of ASC & Community Wellbeing,5105675881,25.06.2014,Community Laundry Service,Clothing & Laundry,13.86,BERENDSEN
Revenue,Head of ASC & Community Wellbeing,5105675879,25.06.2014,Community Laundry Service,Clothing & Laundry,13.74,BERENDSEN
Revenue,Head of ASC & Community Wellbeing,5105676598,20.06.2014,B&B Properties,Accommodation Costs - Bed & Breakfast,704.00,BERTRAM LODGE
Revenue,Head of Economy & Tourism,5105676198,25.06.2014,Medina Leisure Centre,Stock Purchases,63.20,BETA PAK LTD
Revenue,Head of Economy & Tourism,5105676198,25.06.2014,Medina Leisure Centre,Stock Purchases,95.21,BETA PAK LTD
Revenue,Head of ASC & Community Wellbeing,5105672023,04.06.2014,Westminster House,Clothing & Laundry,64.53,BETA PAK LTD
Revenue,Head of ASC & Community Wellbeing,5105671844,04.06.2014,Westminster House,Consumable Cleaning Materials,196.76,BETA PAK LTD
Revenue,Head of ASC & Community Wellbeing,5105675418,20.06.2014,Westminster House,Consumable Cleaning Materials,75.00,BETA PAK LTD
Revenue,Head of ASC & Community Wellbeing,5105675880,25.06.2014,Westminster House,Consumable Cleaning Materials,123.10,BETA PAK LTD
Revenue,Head of ASC & Community Wellbeing,5105674912,18.06.2014,Westminster House,Operational Equipment,21.90,BETA PAK LTD
Revenue,Head of ASC & Community Wellbeing,5105675558,20.06.2014,Saxonbury,Operational Equipment,160.12,BETA PAK LTD
Revenue,Head of ASC & Community Wellbeing,5105676197,25.06.2014,Saxonbury,Operational Equipment,289.89,BETA PAK LTD
Revenue,Head of ASC & Community Wellbeing,5105675417,20.06.2014,Plean Dene,Operational Equipment,122.12,BETA PAK LTD
Revenue,Head of ASC & Community Wellbeing,5105675417,20.06.2014,Plean Dene,Operational Equipment,45.96,BETA PAK LTD
Revenue,Head of ASC & Community Wellbeing,5105673249,13.06.2014,Plean Dene,Operational Equipment,17.86,BETA PAK LTD
Revenue,Head of ASC & Community Wellbeing,5105674210,18.06.2014,Plean Dene,Operational Equipment,11.13,BETA PAK LTD
Revenue,Head of ASC & Community Wellbeing,5105672505,11.06.2014,Plean Dene,Operational Equipment,39.65,BETA PAK LTD
Revenue,Head of ASC & Community Wellbeing,5105671410,04.06.2014,Plean Dene,Operational Equipment,28.74,BETA PAK LTD
Revenue,Head of ASC & Community Wellbeing,5105671410,04.06.2014,Plean Dene,Operational Equipment,45.96,BETA PAK LTD
Revenue,Head of ASC & Community Wellbeing,5105671957,04.06.2014,Plean Dene,Operational Equipment,2.52,BETA PAK LTD
Revenue,Head of ASC & Community Wellbeing,5105672322,06.06.2014,Homecare Reablement,Operational Equipment,285.80,BETA PAK LTD
Revenue,Head of ASC & Community Wellbeing,5105676615,20.06.2014,Highmead,Operational Equipment,42.52,BETA PAK LTD
Revenue,Head of ASC & Community Wellbeing,5105676252,27.06.2014,Highmead,Operational Equipment,16.50,BETA PAK LTD
Revenue,Head of ASC & Community Wellbeing,5105676253,27.06.2014,Highmead,Operational Equipment,-16.50,BETA PAK LTD
Revenue,Head of ASC & Community Wellbeing,5105676225,27.06.2014,Highmead,Operational Equipment,16.50,BETA PAK LTD
Revenue,Head of ASC & Community Wellbeing,5105676196,25.06.2014,Highmead,Operational Equipment,11.18,BETA PAK LTD
Revenue,Head of ASC & Community Wellbeing,5105675389,20.06.2014,Highmead,Operational Equipment,27.50,BETA PAK LTD
Revenue,Head of ASC & Community Wellbeing,5105671765,13.06.2014,Highmead,Operational Equipment,7.14,BETA PAK LTD
Revenue,Head of ASC & Community Wellbeing,5105672271,06.06.2014,Highmead,Operational Equipment,33.00,BETA PAK LTD
Revenue,Head of ASC & Community Wellbeing,5105674184,18.06.2014,31 Carter Avenue,Operational Equipment,45.94,BETA PAK LTD
Revenue,Head of ASC & Community Wellbeing,5105676631,20.06.2014,31 Carter Avenue,Operational Equipment,12.12,BETA PAK LTD
Revenue,Head of ASC & Community Wellbeing,5105674968,18.06.2014,31 Carter Avenue,Operational Equipment,78.17,BETA PAK LTD
Revenue,Head of ASC & Community Wellbeing,5105669304,18.06.2014,Seagulls,Operational Equipment,24.92,BETA PAK LTD
Revenue,Head of ASC & Community Wellbeing,5105668541,06.06.2014,Seagulls,Operational Equipment,61.83,BETA PAK LTD
Revenue,Head of ASC & Community Wellbeing,5105670751,13.06.2014,Seagulls,Operational Equipment,98.16,BETA PAK LTD
Revenue,Head of ASC & Community Wellbeing,5105671897,04.06.2014,Seagulls,Operational Equipment,24.19,BETA PAK LTD
Revenue,Head of ASC & Community Wellbeing,5105672531,11.06.2014,Seagulls,Operational Equipment,109.56,BETA PAK LTD
Revenue,Head of ASC & Community Wellbeing,5105674525,18.06.2014,Seagulls,Operational Equipment,38.74,BETA PAK LTD
Revenue,Head of ASC & Community Wellbeing,5105672481,11.06.2014,The Laurels,Operational Equipment,338.17,BETA PAK LTD
Revenue,Head of ASC & Community Wellbeing,5105674054,18.06.2014,The Laurels,Operational Equipment,20.92,BETA PAK LTD
Revenue,Head of ASC & Community Wellbeing,5105676195,25.06.2014,The Laurels,Operational Equipment,381.06,BETA PAK LTD
Revenue,Head of ASC & Community Wellbeing,5105676604,20.06.2014,The Laurels,Operational Equipment,43.00,BETA PAK LTD
Revenue,Head of ASC & Community Wellbeing,5105675666,25.06.2014,The Laurels,Operational Equipment,43.00,BETA PAK LTD
Revenue,Head of ASC & Community Wellbeing,5105674604,20.06.2014,Overbrook,Operational Equipment,19.33,BETA PAK LTD
Revenue,Head of ASC & Community Wellbeing,5105672016,04.06.2014,Overbrook,Operational Equipment,13.32,BETA PAK LTD
Revenue,Head of ASC & Community Wellbeing,5105669341,25.06.2014,Overbrook,Operational Equipment,7.70,BETA PAK LTD
Revenue,Head of Economy & Tourism,5105675886,25.06.2014,Dinosaur Isle Museum (Sandown Geology),Operational Equipment,166.83,BETA PAK LTD
Revenue,Head of Economy & Tourism,5105674187,18.06.2014,Dinosaur Isle Museum (Sandown Geology),Operational Equipment,6.51,BETA PAK LTD
Revenue,Head of ASC & Community Wellbeing,5105672730,11.06.2014,Downside Community & Learning Centre,Consumable Cleaning Materials,26.84,BETA PAK LTD
Revenue,Head of ASC & Community Wellbeing,5105672730,11.06.2014,Downside Community & Learning Centre,Consumable Cleaning Materials,19.97,BETA PAK LTD
Revenue,Head of ASC & Community Wellbeing,5105672730,11.06.2014,Downside Community & Learning Centre,Consumable Cleaning Materials,11.21,BETA PAK LTD
Revenue,Head of ASC & Community Wellbeing,5105672730,11.06.2014,Downside Community & Learning Centre,Consumable Cleaning Materials,8.16,BETA PAK LTD
Revenue,Head of ASC & Community Wellbeing,5105672730,11.06.2014,Downside Community & Learning Centre,Consumable Cleaning Materials,6.28,BETA PAK LTD
Revenue,Head of ASC & Community Wellbeing,5105672730,11.06.2014,Downside Community & Learning Centre,Consumable Cleaning Materials,39.90,BETA PAK LTD
Revenue,Head of ASC & Community Wellbeing,5105676228,27.06.2014,Adelaide Resource Centre,Consumable Cleaning Materials,195.11,BETA PAK LTD
Revenue,Head of ASC & Community Wellbeing,5105676229,27.06.2014,Adelaide Resource Centre,Consumable Cleaning Materials,370.85,BETA PAK LTD
Revenue,Head of ASC & Community Wellbeing,5105676230,27.06.2014,Adelaide Resource Centre,Consumable Cleaning Materials,83.64,BETA PAK LTD
Revenue,Head of ASC & Community Wellbeing,5105676231,27.06.2014,Adelaide Resource Centre,Consumable Cleaning Materials,199.17,BETA PAK LTD
Revenue,Head of ASC & Community Wellbeing,5105674467,18.06.2014,Physical Disability Homecare,Charges from Independent Providers,44.52,BETTER AT HOME IOW LTD
Revenue,Head of ASC & Community Wellbeing,5105674468,18.06.2014,Physical Disability Homecare,Charges from Independent Providers,233.73,BETTER AT HOME IOW LTD
Revenue,Head of ASC & Community Wellbeing,5105674464,18.06.2014,Physical Disability Homecare,Charges from Independent Providers,144.69,BETTER AT HOME IOW LTD
Revenue,Head of ASC & Community Wellbeing,5105674424,18.06.2014,Mental Health Homecare,Charges from Independent Providers,393.26,BETTER AT HOME IOW LTD
Revenue,Head of ASC & Community Wellbeing,5105674412,18.06.2014,Elderly Frail Homecare,Regular Respite Care,118.72,BETTER AT HOME IOW LTD
Revenue,Head of ASC & Community Wellbeing,5105674443,18.06.2014,Elderly Frail Homecare,Regular Respite Care,118.72,BETTER AT HOME IOW LTD
Revenue,Head of ASC & Community Wellbeing,5105674438,18.06.2014,Elderly Frail Homecare,Regular Respite Care,118.72,BETTER AT HOME IOW LTD
Revenue,Head of ASC & Community Wellbeing,5105674436,18.06.2014,Elderly Frail Homecare,Regular Respite Care,29.68,BETTER AT HOME IOW LTD
Revenue,Head of ASC & Community Wellbeing,5105674447,18.06.2014,Elderly Frail Homecare,Regular Respite Care,118.72,BETTER AT HOME IOW LTD
Revenue,Head of ASC & Community Wellbeing,5105674457,18.06.2014,Elderly Frail Homecare,Regular Respite Care,356.16,BETTER AT HOME IOW LTD
Revenue,Head of ASC & Community Wellbeing,5105674466,18.06.2014,Elderly Frail Homecare,Regular Respite Care,89.04,BETTER AT HOME IOW LTD
Revenue,Head of ASC & Community Wellbeing,5105673334,18.06.2014,Elderly Frail Homecare,Regular Respite Care,29.68,BETTER AT HOME IOW LTD
Revenue,Head of ASC & Community Wellbeing,5105674450,18.06.2014,Elderly Frail Homecare,Regular Respite Care,74.20,BETTER AT HOME IOW LTD
Revenue,Head of ASC & Community Wellbeing,5105674442,18.06.2014,Elderly Frail Homecare,Regular Respite Care,59.36,BETTER AT HOME IOW LTD
Revenue,Head of ASC & Community Wellbeing,5105675801,25.06.2014,Elderly Frail Homecare,Charges from Independent Providers,222.60,BETTER AT HOME IOW LTD
Revenue,Head of ASC & Community Wellbeing,5105675802,25.06.2014,Elderly Frail Homecare,Charges from Independent Providers,70.49,BETTER AT HOME IOW LTD
Revenue,Head of ASC & Community Wellbeing,5105675800,25.06.2014,Elderly Frail Homecare,Charges from Independent Providers,140.98,BETTER AT HOME IOW LTD
Revenue,Head of ASC & Community Wellbeing,5105675798,25.06.2014,Elderly Frail Homecare,Charges from Independent Providers,886.69,BETTER AT HOME IOW LTD
Revenue,Head of ASC & Community Wellbeing,5105675803,25.06.2014,Elderly Frail Homecare,Charges from Independent Providers,74.20,BETTER AT HOME IOW LTD
Revenue,Head of ASC & Community Wellbeing,5105674469,18.06.2014,Elderly Frail Homecare,Charges from Independent Providers,140.98,BETTER AT HOME IOW LTD
Revenue,Head of ASC & Community Wellbeing,5105674470,18.06.2014,Elderly Frail Homecare,Charges from Independent Providers,255.99,BETTER AT HOME IOW LTD
Revenue,Head of ASC & Community Wellbeing,5105674465,18.06.2014,Elderly Frail Homecare,Charges from Independent Providers,519.40,BETTER AT HOME IOW LTD
Revenue,Head of ASC & Community Wellbeing,5105674406,18.06.2014,Elderly Frail Homecare,Charges from Independent Providers,"1,535.94",BETTER AT HOME IOW LTD
Revenue,Head of ASC & Community Wellbeing,5105674428,18.06.2014,Elderly Frail Homecare,Charges from Independent Providers,638.12,BETTER AT HOME IOW LTD
Revenue,Head of ASC & Community Wellbeing,5105674431,18.06.2014,Elderly Frail Homecare,Charges from Independent Providers,593.60,BETTER AT HOME IOW LTD
Revenue,Head of ASC & Community Wellbeing,5105674415,18.06.2014,Elderly Frail Homecare,Charges from Independent Providers,489.72,BETTER AT HOME IOW LTD
Revenue,Head of ASC & Community Wellbeing,5105674411,18.06.2014,Elderly Frail Homecare,Charges from Independent Providers,"1,291.08",BETTER AT HOME IOW LTD
Revenue,Head of ASC & Community Wellbeing,5105674408,18.06.2014,Elderly Frail Homecare,Charges from Independent Providers,608.44,BETTER AT HOME IOW LTD
Revenue,Head of ASC & Community Wellbeing,5105674439,18.06.2014,Elderly Frail Homecare,Charges from Independent Providers,259.70,BETTER AT HOME IOW LTD
Revenue,Head of ASC & Community Wellbeing,5105674440,18.06.2014,Elderly Frail Homecare,Charges from Independent Providers,894.11,BETTER AT HOME IOW LTD
Revenue,Head of ASC & Community Wellbeing,5105674458,18.06.2014,Elderly Frail Homecare,Charges from Independent Providers,218.89,BETTER AT HOME IOW LTD
Revenue,Head of ASC & Community Wellbeing,5105674460,18.06.2014,Elderly Frail Homecare,Charges from Independent Providers,166.95,BETTER AT HOME IOW LTD
Revenue,Head of ASC & Community Wellbeing,5105674414,18.06.2014,Elderly Frail Homecare,Charges from Independent Providers,519.40,BETTER AT HOME IOW LTD
Revenue,Head of ASC & Community Wellbeing,5105674461,18.06.2014,Elderly Frail Homecare,Charges from Independent Providers,615.86,BETTER AT HOME IOW LTD
Revenue,Head of ASC & Community Wellbeing,5105674407,18.06.2014,Elderly Frail Homecare,Charges from Independent Providers,"1,869.84",BETTER AT HOME IOW LTD
Revenue,Head of ASC & Community Wellbeing,5105674441,18.06.2014,Elderly Frail Homecare,Charges from Independent Providers,519.40,BETTER AT HOME IOW LTD
Revenue,Head of ASC & Community Wellbeing,5105674410,18.06.2014,Elderly Frail Homecare,Charges from Independent Providers,"1,242.85",BETTER AT HOME IOW LTD
Revenue,Head of ASC & Community Wellbeing,5105674449,18.06.2014,Elderly Frail Homecare,Charges from Independent Providers,207.76,BETTER AT HOME IOW LTD
Revenue,Head of ASC & Community Wellbeing,5105674452,18.06.2014,Elderly Frail Homecare,Charges from Independent Providers,85.33,BETTER AT HOME IOW LTD
Revenue,Head of ASC & Community Wellbeing,5105674437,18.06.2014,Elderly Frail Homecare,Charges from Independent Providers,166.95,BETTER AT HOME IOW LTD
Revenue,Head of ASC & Community Wellbeing,5105674444,18.06.2014,Elderly Frail Homecare,Charges from Independent Providers,59.36,BETTER AT HOME IOW LTD
Revenue,Head of ASC & Community Wellbeing,5105674430,18.06.2014,Elderly Frail Homecare,Charges from Independent Providers,74.20,BETTER AT HOME IOW LTD
Revenue,Head of ASC & Community Wellbeing,5105674419,18.06.2014,Elderly Frail Homecare,Charges from Independent Providers,511.98,BETTER AT HOME IOW LTD
Revenue,Head of ASC & Community Wellbeing,5105674451,18.06.2014,Elderly Frail Homecare,Charges from Independent Providers,244.86,BETTER AT HOME IOW LTD
Revenue,Head of ASC & Community Wellbeing,5105674420,18.06.2014,Elderly Frail Homecare,Charges from Independent Providers,311.64,BETTER AT HOME IOW LTD
Revenue,Head of ASC & Community Wellbeing,5105674409,18.06.2014,Elderly Frail Homecare,Charges from Independent Providers,"1,120.42",BETTER AT HOME IOW LTD
Revenue,Head of ASC & Community Wellbeing,5105674454,18.06.2014,Elderly Frail Homecare,Charges from Independent Providers,634.41,BETTER AT HOME IOW LTD
Revenue,Head of ASC & Community Wellbeing,5105674462,18.06.2014,Elderly Frail Homecare,Charges from Independent Providers,215.18,BETTER AT HOME IOW LTD
Revenue,Head of ASC & Community Wellbeing,5105674463,18.06.2014,Elderly Frail Homecare,Charges from Independent Providers,74.20,BETTER AT HOME IOW LTD
Revenue,Head of ASC & Community Wellbeing,5105674446,18.06.2014,Elderly Frail Homecare,Charges from Independent Providers,55.65,BETTER AT HOME IOW LTD
Revenue,Head of ASC & Community Wellbeing,5105674435,18.06.2014,Elderly Frail Homecare,Charges from Independent Providers,29.68,BETTER AT HOME IOW LTD
Revenue,Head of ASC & Community Wellbeing,5105674429,18.06.2014,Elderly Frail Homecare,Charges from Independent Providers,263.41,BETTER AT HOME IOW LTD
Revenue,Head of ASC & Community Wellbeing,5105674405,18.06.2014,Elderly Frail Homecare,Charges from Independent Providers,51.94,BETTER AT HOME IOW LTD
Revenue,Head of ASC & Community Wellbeing,5105673336,18.06.2014,Elderly Frail Homecare,Charges from Independent Providers,29.68,BETTER AT HOME IOW LTD
Revenue,Head of ASC & Community Wellbeing,5105673338,18.06.2014,Elderly Frail Homecare,Charges from Independent Providers,7.42,BETTER AT HOME IOW LTD
Revenue,Head of ASC & Community Wellbeing,5105674423,18.06.2014,Elderly Frail Homecare,Charges from Independent Providers,259.70,BETTER AT HOME IOW LTD
Revenue,Head of ASC & Community Wellbeing,5105674455,18.06.2014,Elderly Frail Homecare,Charges from Independent Providers,504.56,BETTER AT HOME IOW LTD
Revenue,Head of ASC & Community Wellbeing,5105674456,18.06.2014,Elderly Frail Homecare,Charges from Independent Providers,259.70,BETTER AT HOME IOW LTD
Revenue,Head of ASC & Community Wellbeing,5105674425,18.06.2014,Elderly Frail Homecare,Charges from Independent Providers,793.94,BETTER AT HOME IOW LTD
Revenue,Head of ASC & Community Wellbeing,5105674422,18.06.2014,Elderly Frail Homecare,Charges from Independent Providers,511.98,BETTER AT HOME IOW LTD
Revenue,Head of ASC & Community Wellbeing,5105674426,18.06.2014,Elderly Frail Homecare,Charges from Independent Providers,467.46,BETTER AT HOME IOW LTD
Revenue,Head of ASC & Community Wellbeing,5105674427,18.06.2014,Elderly Frail Homecare,Charges from Independent Providers,"1,168.65",BETTER AT HOME IOW LTD
Revenue,Head of ASC & Community Wellbeing,5105674421,18.06.2014,Elderly Frail Homecare,Charges from Independent Providers,901.53,BETTER AT HOME IOW LTD
Revenue,Head of ASC & Community Wellbeing,5105674413,18.06.2014,Elderly Frail Homecare,Charges from Independent Providers,"1,287.37",BETTER AT HOME IOW LTD
Revenue,Head of ASC & Community Wellbeing,5105674432,18.06.2014,Elderly Frail Homecare,Charges from Independent Providers,66.78,BETTER AT HOME IOW LTD
Revenue,Head of ASC & Community Wellbeing,5105674433,18.06.2014,Elderly Frail Homecare,Charges from Independent Providers,166.95,BETTER AT HOME IOW LTD
Revenue,Head of ASC & Community Wellbeing,5105674453,18.06.2014,Elderly Frail Homecare,Charges from Independent Providers,118.72,BETTER AT HOME IOW LTD
Revenue,Head of ASC & Community Wellbeing,5105674434,18.06.2014,Elderly Frail Homecare,Charges from Independent Providers,779.10,BETTER AT HOME IOW LTD
Revenue,Head of ASC & Community Wellbeing,5105674445,18.06.2014,Elderly Frail Homecare,Charges from Independent Providers,192.92,BETTER AT HOME IOW LTD
Revenue,Head of ASC & Community Wellbeing,5105674472,18.06.2014,Elderly Frail Homecare,Charges from Independent Providers,931.21,BETTER AT HOME IOW LTD
Revenue,Head of ASC & Community Wellbeing,5105674418,18.06.2014,Elderly Frail Homecare,Charges from Independent Providers,"1,298.50",BETTER AT HOME IOW LTD
Revenue,Head of ASC & Community Wellbeing,5105674417,18.06.2014,Elderly Frail Homecare,Charges from Independent Providers,931.21,BETTER AT HOME IOW LTD
Revenue,Head of ASC & Community Wellbeing,5105674448,18.06.2014,Elderly Frail Homecare,Charges from Independent Providers,"1,565.62",BETTER AT HOME IOW LTD
Revenue,Head of ASC & Community Wellbeing,5105674416,18.06.2014,Elderly Frail Homecare,Charges from Independent Providers,259.70,BETTER AT HOME IOW LTD
Revenue,Head of ASC & Community Wellbeing,5105674471,18.06.2014,Elderly Frail Homecare,Charges from Independent Providers,37.10,BETTER AT HOME IOW LTD
Revenue,Head of ASC & Community Wellbeing,5105673335,18.06.2014,Elderly Frail Homecare,Charges from Independent Providers,74.20,BETTER AT HOME IOW LTD
Revenue,Head of ASC & Community Wellbeing,5105673337,18.06.2014,Elderly Frail Homecare,Charges from Independent Providers,22.26,BETTER AT HOME IOW LTD
Revenue,Head of ASC & Community Wellbeing,5105674459,18.06.2014,Elderly Mentally Ill Homecare,Charges from Independent Providers,779.10,BETTER AT HOME IOW LTD
Revenue,Director of Childrens Services,5105672699,11.06.2014,Core Programmes,Training,750.00,BEVAN YOUNG ASSOCIATES
Revenue,Director of Childrens Services,5105672699,11.06.2014,Core Programmes,Training,375.00,BEVAN YOUNG ASSOCIATES
Revenue,Director of Childrens Services,5105672062,04.06.2014,Parent Partnership,"Refuse Collection, Disposal and Recycling Costs",16.64,BIFFA WASTE SERVICES LTD
Revenue,Head of Economy & Tourism,5105672062,04.06.2014,Ryde Harbour,"Refuse Collection, Disposal and Recycling Costs",219.67,BIFFA WASTE SERVICES LTD
Revenue,Head of Economy & Tourism,5105672062,04.06.2014,Seaclose Amusements,"Refuse Collection, Disposal and Recycling Costs",13.03,BIFFA WASTE SERVICES LTD
Revenue,Head of Economy & Tourism,5105672062,04.06.2014,Medina Leisure Centre,"Refuse Collection, Disposal and Recycling Costs",540.43,BIFFA WASTE SERVICES LTD
Revenue,Director of Childrens Services,5105672062,04.06.2014,Workforce Development -  Westridge Centre,"Refuse Collection, Disposal and Recycling Costs",23.12,BIFFA WASTE SERVICES LTD
Revenue,Head of Economy & Tourism,5105672062,04.06.2014,Leisure Management & Admin,"Refuse Collection, Disposal and Recycling Costs",182.16,BIFFA WASTE SERVICES LTD
Revenue,Head of ASC & Community Wellbeing,5105672062,04.06.2014,Westminster House,"Refuse Collection, Disposal and Recycling Costs",43.68,BIFFA WASTE SERVICES LTD
Revenue,Head of ASC & Community Wellbeing,5105672952,13.06.2014,Gouldings Resource Centre,"Refuse Collection, Disposal and Recycling Costs",284.16,BIFFA WASTE SERVICES LTD
Revenue,Head of ASC & Community Wellbeing,5105674095,18.06.2014,Gouldings Resource Centre,"Refuse Collection, Disposal and Recycling Costs",98.11,BIFFA WASTE SERVICES LTD
Revenue,Head of ASC & Community Wellbeing,5105672062,04.06.2014,Saxonbury,"Refuse Collection, Disposal and Recycling Costs",78.20,BIFFA WASTE SERVICES LTD
Revenue,Head of ASC & Community Wellbeing,5105672062,04.06.2014,Plean Dene,"Refuse Collection, Disposal and Recycling Costs",78.20,BIFFA WASTE SERVICES LTD
Revenue,Head of ASC & Community Wellbeing,5105672062,04.06.2014,Integrated Community Equipment Service,"Refuse Collection, Disposal and Recycling Costs",69.36,BIFFA WASTE SERVICES LTD
Revenue,Head of Planning & Regulatory Services,5105672062,04.06.2014,Planning Business Support,"Refuse Collection, Disposal and Recycling Costs",396.40,BIFFA WASTE SERVICES LTD
Revenue,Head of Economy & Tourism,5105672062,04.06.2014,Ferry Management,"Refuse Collection, Disposal and Recycling Costs",82.60,BIFFA WASTE SERVICES LTD
Revenue,Director of Childrens Services,5105672062,04.06.2014,Beaulieu House,"Refuse Collection, Disposal and Recycling Costs",177.95,BIFFA WASTE SERVICES LTD
Revenue,Director of Childrens Services,5105672062,04.06.2014,Family Information Zone,"Refuse Collection, Disposal and Recycling Costs",16.64,BIFFA WASTE SERVICES LTD
Revenue,Head of ASC & Community Wellbeing,5105672062,04.06.2014,Highmead,"Refuse Collection, Disposal and Recycling Costs",53.41,BIFFA WASTE SERVICES LTD
Revenue,Head of ASC & Community Wellbeing,5105672062,04.06.2014,31 Carter Avenue,"Refuse Collection, Disposal and Recycling Costs",78.20,BIFFA WASTE SERVICES LTD
Revenue,Head of HR & Organisational Change,5105672062,04.06.2014,"Westridge, Ryde","Refuse Collection, Disposal and Recycling Costs",48.28,BIFFA WASTE SERVICES LTD
Revenue,Chief Fire Officer,5105672643,11.06.2014,Fire Operations,"Refuse Collection, Disposal and Recycling Costs",107.20,BIFFA WASTE SERVICES LTD
Revenue,Chief Fire Officer,5105672640,11.06.2014,Fire Operations,"Refuse Collection, Disposal and Recycling Costs",165.30,BIFFA WASTE SERVICES LTD
Revenue,Chief Fire Officer,5105672638,11.06.2014,Fire Operations,"Refuse Collection, Disposal and Recycling Costs",23.04,BIFFA WASTE SERVICES LTD
Revenue,Chief Fire Officer,5105672645,11.06.2014,Fire Operations,"Refuse Collection, Disposal and Recycling Costs",40.30,BIFFA WASTE SERVICES LTD
Revenue,Chief Fire Officer,5105672478,11.06.2014,Fire Operations,"Refuse Collection, Disposal and Recycling Costs",80.80,BIFFA WASTE SERVICES LTD
Revenue,Chief Fire Officer,5105672476,11.06.2014,Fire Operations,"Refuse Collection, Disposal and Recycling Costs",980.10,BIFFA WASTE SERVICES LTD
Revenue,Chief Fire Officer,5105672480,11.06.2014,Fire Operations,"Refuse Collection, Disposal and Recycling Costs",39.80,BIFFA WASTE SERVICES LTD
Revenue,Chief Fire Officer,5400001840,20.06.2014,Fire Operations,"Refuse Collection, Disposal and Recycling Costs",-0.04,BIFFA WASTE SERVICES LTD
Revenue,Head of Planning & Regulatory Services,5105672062,04.06.2014,Regulatory Management & Admin Support,"Refuse Collection, Disposal and Recycling Costs",78.20,BIFFA WASTE SERVICES LTD
Revenue,Head of Economy & Tourism,5105672062,04.06.2014,Fort Victoria,"Refuse Collection, Disposal and Recycling Costs",114.92,BIFFA WASTE SERVICES LTD
Revenue,Head of HR & Organisational Change,5105672062,04.06.2014,Coastal Visitors Centre,"Refuse Collection, Disposal and Recycling Costs",3.08,BIFFA WASTE SERVICES LTD
Revenue,Head of Economy & Tourism,5105672062,04.06.2014,Newport Harbour Account,"Refuse Collection, Disposal and Recycling Costs",385.80,BIFFA WASTE SERVICES LTD
Revenue,Head of Economy & Tourism,5105672062,04.06.2014,Newport Harbour Account,"Refuse Collection, Disposal and Recycling Costs",179.90,BIFFA WASTE SERVICES LTD
Revenue,Director of Childrens Services,5105664263,27.06.2014,Education Participation Team,"Refuse Collection, Disposal and Recycling Costs",49.25,BIFFA WASTE SERVICES LTD
Revenue,Director of Childrens Services,5105672062,04.06.2014,Education Participation Team,"Refuse Collection, Disposal and Recycling Costs",25.07,BIFFA WASTE SERVICES LTD
Revenue,Director of Childrens Services,5105674957,18.06.2014,Education Participation Team,"Refuse Collection, Disposal and Recycling Costs",-49.25,BIFFA WASTE SERVICES LTD
Revenue,Head of Economy & Tourism,5105672062,04.06.2014,Cothey Bottom Store RYDE,"Refuse Collection, Disposal and Recycling Costs",23.12,BIFFA WASTE SERVICES LTD
Revenue,Head of Economy & Tourism,5105672062,04.06.2014,Westridge Squash Courts,"Refuse Collection, Disposal and Recycling Costs",23.12,BIFFA WASTE SERVICES LTD
Revenue,Head of Economy & Tourism,5105672062,04.06.2014,Public Libraries Central,"Refuse Collection, Disposal and Recycling Costs",522.50,BIFFA WASTE SERVICES LTD
Revenue,Head of Economy & Tourism,5105672062,04.06.2014,Public Libraries Central,"Refuse Collection, Disposal and Recycling Costs",580.54,BIFFA WASTE SERVICES LTD
Revenue,Head of ASC & Community Wellbeing,5105672062,04.06.2014,40 Venner Avenue,"Refuse Collection, Disposal and Recycling Costs",41.48,BIFFA WASTE SERVICES LTD
Revenue,Head of ASC & Community Wellbeing,5105672062,04.06.2014,Seagulls,"Refuse Collection, Disposal and Recycling Costs",78.20,BIFFA WASTE SERVICES LTD
Revenue,Head of HR & Organisational Change,5105672062,04.06.2014,"Bugle House,Newport","Refuse Collection, Disposal and Recycling Costs",151.64,BIFFA WASTE SERVICES LTD
Revenue,Head of ASC & Community Wellbeing,5105672062,04.06.2014,The Laurels,"Refuse Collection, Disposal and Recycling Costs",53.41,BIFFA WASTE SERVICES LTD
Revenue,Head of Economy & Tourism,5105672062,04.06.2014,Crematorium,"Refuse Collection, Disposal and Recycling Costs",78.20,BIFFA WASTE SERVICES LTD
Revenue,Director of Childrens Services,5105672062,04.06.2014,Specialist Service Business Admin,"Refuse Collection, Disposal and Recycling Costs",156.40,BIFFA WASTE SERVICES LTD
Revenue,Head of Economy & Tourism,5105672062,04.06.2014,The Heights,"Refuse Collection, Disposal and Recycling Costs",342.20,BIFFA WASTE SERVICES LTD
Revenue,Head of Economy & Tourism,5105672062,04.06.2014,Dinosaur Isle Museum (Sandown Geology),"Refuse Collection, Disposal and Recycling Costs",34.69,BIFFA WASTE SERVICES LTD
Revenue,Head of ASC & Community Wellbeing,5105672062,04.06.2014,Overbrook,"Refuse Collection, Disposal and Recycling Costs",92.97,BIFFA WASTE SERVICES LTD
Revenue,Head of HR & Organisational Change,5105672648,11.06.2014,"Civic Centre,Sandown","Refuse Collection, Disposal and Recycling Costs",47.72,BIFFA WASTE SERVICES LTD
Revenue,Head of HR & Organisational Change,5105672647,11.06.2014,"Civic Centre,Sandown","Refuse Collection, Disposal and Recycling Costs",92.48,BIFFA WASTE SERVICES LTD
Revenue,Director of Childrens Services,5105675604,25.06.2014,Purchased Residential,Charges from Independent Providers,"13,398.21",BIG BRIGHT HOLIDAYS
Revenue,Director of Childrens Services,5105675607,25.06.2014,Purchased Residential,Charges from Independent Providers,"13,398.21",BIG BRIGHT HOLIDAYS
Revenue,Director of Childrens Services,5105672488,11.06.2014,Purchased Residential,Charges from Independent Providers,"-6,699.10",BIG BRIGHT HOLIDAYS
Revenue,Director of Childrens Services,5105676599,20.06.2014,Beaulieu House,Clothing & Laundry,262.50,BIG WIGHT T-SHIRT CO
Revenue,Director of Childrens Services,5105672350,06.06.2014,Youth - Duke of Edinburgh Award,Clothing & Laundry,21.00,BIG WIGHT T-SHIRT CO
Revenue,Director of Childrens Services,5105672350,06.06.2014,Youth - Duke of Edinburgh Award,Clothing & Laundry,12.50,BIG WIGHT T-SHIRT CO
Revenue,Director of Childrens Services,5105676399,27.06.2014,Leaving Care Costs,Support Children,65.00,REDACTED PERSONAL DATA
Revenue,Director of Childrens Services,5105672897,13.06.2014,Leaving Care Costs,Support Children,65.00,REDACTED PERSONAL DATA
Revenue,Director of Childrens Services,5105675113,20.06.2014,Leaving Care Costs,Support Children,65.00,REDACTED PERSONAL DATA
Revenue,Director of Childrens Services,5105672230,06.06.2014,Leaving Care Costs,Support Children,65.00,REDACTED PERSONAL DATA
Revenue,Head of Corp Gov & Monitoring Officer,5105675866,25.06.2014,Elections,Rent of Buildings and Rooms,130.00,BINSTEAD METHODIST CHURCH
Revenue,Head of Economy & Tourism,5105674135,18.06.2014,Dinosaur Isle Museum (Sandown Geology),Fixed Telephones,473.35,BISTECH PLC
Capital,Corporate Items,5105674523,18.06.2014,Balance Sheet,Order Settlement to Balance Sheet GL,"4,700.00",BLINDS BY ELEGANCE
Revenue,Director of Childrens Services,5105672392,06.06.2014,Purchased Fostering,Charges from Independent Providers,"3,126.30",BLUE SKY FOSTERING LTD
Revenue,Director of Childrens Services,5105672503,11.06.2014,Purchased Fostering,Charges from Independent Providers,"3,126.30",BLUE SKY FOSTERING LTD
Revenue,Director of Childrens Services,5105672502,11.06.2014,Purchased Fostering,Charges from Independent Providers,"3,126.30",BLUE SKY FOSTERING LTD
Revenue,Director of Childrens Services,5105672739,11.06.2014,Beaulieu House,Professional Services,32.60,BOC LTD
Revenue,Director of Childrens Services,5105667767,27.06.2014,Beaulieu House,General Materials,32.60,BOC LTD
Revenue,Director of Childrens Services,5105672603,11.06.2014,Short Breaks,Charges from Independent Providers,390.00,BODSTER EQUINE ASSISTED LEARN CIC
Revenue,Head of ASC & Community Wellbeing,5105675938,25.06.2014,Plean Dene,Catering Purchases,49.42,BOOKER CASH & CARRY LTD
Revenue,Head of ASC & Community Wellbeing,5105672008,04.06.2014,Plean Dene,Catering Purchases,10.98,BOOKER CASH & CARRY LTD
Revenue,Head of ASC & Community Wellbeing,5105672009,04.06.2014,Plean Dene,Catering Purchases,21.04,BOOKER CASH & CARRY LTD
Revenue,Head of ASC & Community Wellbeing,5105672010,04.06.2014,Plean Dene,Catering Purchases,2.75,BOOKER CASH & CARRY LTD
Revenue,Head of ASC & Community Wellbeing,5105672011,04.06.2014,Plean Dene,Catering Purchases,15.80,BOOKER CASH & CARRY LTD
Revenue,Head of ASC & Community Wellbeing,5105671940,04.06.2014,Plean Dene,Catering Purchases,20.23,BOOKER CASH & CARRY LTD
Revenue,Head of ASC & Community Wellbeing,5105671941,04.06.2014,Plean Dene,Catering Purchases,139.56,BOOKER CASH & CARRY LTD
Revenue,Head of ASC & Community Wellbeing,5105671941,04.06.2014,Plean Dene,Catering Purchases,29.22,BOOKER CASH & CARRY LTD
Revenue,Head of ASC & Community Wellbeing,5105672007,11.06.2014,Plean Dene,Catering Purchases,33.19,BOOKER CASH & CARRY LTD
Revenue,Head of ASC & Community Wellbeing,5105672006,04.06.2014,Plean Dene,Catering Purchases,21.94,BOOKER CASH & CARRY LTD
Revenue,Head of ASC & Community Wellbeing,5105672005,04.06.2014,Plean Dene,Catering Purchases,44.94,BOOKER CASH & CARRY LTD
Revenue,Head of ASC & Community Wellbeing,5105674189,18.06.2014,Plean Dene,Catering Purchases,23.57,BOOKER CASH & CARRY LTD
Revenue,Head of ASC & Community Wellbeing,5105674190,18.06.2014,Plean Dene,Catering Purchases,273.93,BOOKER CASH & CARRY LTD
Revenue,Head of ASC & Community Wellbeing,5105674190,18.06.2014,Plean Dene,Catering Purchases,38.97,BOOKER CASH & CARRY LTD
Revenue,Head of ASC & Community Wellbeing,5105675863,25.06.2014,Plean Dene,Catering Purchases,17.13,BOOKER CASH & CARRY LTD
Revenue,Head of ASC & Community Wellbeing,5105672511,11.06.2014,Plean Dene,Catering Purchases,-3.16,BOOKER CASH & CARRY LTD
Revenue,Head of ASC & Community Wellbeing,5105672004,06.06.2014,Plean Dene,Catering Purchases,100.55,BOOKER CASH & CARRY LTD
Revenue,Head of ASC & Community Wellbeing,5105672005,04.06.2014,Plean Dene,Catering Purchases,247.47,BOOKER CASH & CARRY LTD
Revenue,Head of ASC & Community Wellbeing,5105672006,04.06.2014,Plean Dene,Catering Purchases,231.60,BOOKER CASH & CARRY LTD
Revenue,Head of ASC & Community Wellbeing,5105672007,11.06.2014,Plean Dene,Catering Purchases,192.82,BOOKER CASH & CARRY LTD
Revenue,Head of ASC & Community Wellbeing,5105675864,25.06.2014,Overbrook,Catering Purchases,6.25,BOOKER CASH & CARRY LTD
Revenue,Managing Director & Head of Paid Service,5105674544,18.06.2014,Contraception,Payment to Private Contractors,14.20,BOOTS THE CHEMIST LTD (Ryde)
Revenue,Managing Director & Head of Paid Service,5105674544,18.06.2014,Contraception,Payment to Private Contractors,408.50,BOOTS THE CHEMIST LTD (Ryde)
Revenue,Managing Director & Head of Paid Service,5105674544,18.06.2014,Contraception,Payment to Private Contractors,93.60,BOOTS THE CHEMIST LTD (Ryde)
Revenue,Managing Director & Head of Paid Service,5105674544,18.06.2014,Drug Misuse - Adults,Payment to Private Contractors,413.00,BOOTS THE CHEMIST LTD (Ryde)
Revenue,Managing Director & Head of Paid Service,5105674544,18.06.2014,Drug Misuse - Adults,Payment to Private Contractors,684.00,BOOTS THE CHEMIST LTD (Ryde)
Revenue,Managing Director & Head of Paid Service,5105674536,18.06.2014,Drug Misuse - Adults,Payment to Private Contractors,64.00,BOOTS UK LTD (107 HIGH ST SANDOWN)
Revenue,Managing Director & Head of Paid Service,5105674536,18.06.2014,Drug Misuse - Adults,Payment to Private Contractors,91.00,BOOTS UK LTD (107 HIGH ST SANDOWN)
Revenue,Managing Director & Head of Paid Service,5105674556,18.06.2014,Drug Misuse - Adults,Payment to Private Contractors,8.00,BOOTS UK LTD (COWES)
Revenue,Managing Director & Head of Paid Service,5105674556,18.06.2014,Drug Misuse - Adults,Payment to Private Contractors,73.50,BOOTS UK LTD (COWES)
Revenue,Managing Director & Head of Paid Service,5105674537,18.06.2014,Contraception,Payment to Private Contractors,135.20,BOOTS UK LTD (NEWPORT)
Revenue,Managing Director & Head of Paid Service,5105674537,18.06.2014,Contraception,Payment to Private Contractors,559.00,BOOTS UK LTD (NEWPORT)
Revenue,Managing Director & Head of Paid Service,5105674550,18.06.2014,Contraception,Payment to Private Contractors,107.50,BOOTS UK LTD (SANDOWN LARGE STORE)
Revenue,Managing Director & Head of Paid Service,5105674550,18.06.2014,Contraception,Payment to Private Contractors,26.00,BOOTS UK LTD (SANDOWN LARGE STORE)
Revenue,Managing Director & Head of Paid Service,5105674550,18.06.2014,Drug Misuse - Adults,Payment to Private Contractors,42.00,BOOTS UK LTD (SANDOWN LARGE STORE)
Revenue,Managing Director & Head of Paid Service,5105674550,18.06.2014,Drug Misuse - Adults,Payment to Private Contractors,60.00,BOOTS UK LTD (SANDOWN LARGE STORE)
Revenue,Managing Director & Head of Paid Service,5105674576,18.06.2014,Contraception,Payment to Private Contractors,21.50,BOOTS UK LTD (SHANKLIN)
Revenue,Managing Director & Head of Paid Service,5105674576,18.06.2014,Contraception,Payment to Private Contractors,5.20,BOOTS UK LTD (SHANKLIN)
Revenue,Managing Director & Head of Paid Service,5105674567,18.06.2014,Drug Misuse - Adults,Payment to Private Contractors,77.00,BOOTS UK LTD (TOWER HOUSE)
Revenue,Managing Director & Head of Paid Service,5105674567,18.06.2014,Drug Misuse - Adults,Payment to Private Contractors,76.00,BOOTS UK LTD (TOWER HOUSE)
Revenue,Managing Director & Head of Paid Service,5105674543,18.06.2014,Contraception,Payment to Private Contractors,21.50,BOOTS UK LTD
Revenue,Managing Director & Head of Paid Service,5105674543,18.06.2014,Contraception,Payment to Private Contractors,5.20,BOOTS UK LTD
Revenue,Managing Director & Head of Paid Service,5105674543,18.06.2014,Drug Misuse - Adults,Payment to Private Contractors,63.00,BOOTS UK LTD
Revenue,Managing Director & Head of Paid Service,5105674540,18.06.2014,Drug Misuse - Adults,Payment to Private Contractors,7.00,BOOTS UK LTD (YLB BEMBRIDGE)
Revenue,Director of Childrens Services,5105672308,06.06.2014,Adult Social Care - Workforce Development,Training,750.00,BOURNEMOUTH UNIVERSITY
Revenue,Director of Childrens Services,5105672309,06.06.2014,Adult Social Care - Workforce Development,Training,750.00,BOURNEMOUTH UNIVERSITY
Revenue,Director of Childrens Services,5105672310,06.06.2014,Adult Social Care - Workforce Development,Training,750.00,BOURNEMOUTH UNIVERSITY
Revenue,Director of Childrens Services,5105672311,06.06.2014,Adult Social Care - Workforce Development,Training,750.00,BOURNEMOUTH UNIVERSITY
Revenue,Director of Childrens Services,5105672312,06.06.2014,Adult Social Care - Workforce Development,Training,750.00,BOURNEMOUTH UNIVERSITY
Revenue,Director of Childrens Services,5105672306,06.06.2014,Adult Social Care - Workforce Development,Training,750.00,BOURNEMOUTH UNIVERSITY
Revenue,Director of Childrens Services,5105674087,18.06.2014,Area Director (Children & Families),Professional Subscriptions,"6,250.00",BRACKNELL FOREST BOROUGH COUNCIL
Revenue,Director of Childrens Services,5105676546,20.06.2014,Broadband Connectivity Grant 121,Professional Subscriptions,"6,000.00",BRACKNELL FOREST BOROUGH COUNCIL
Revenue,Head of Economy & Tourism,5105673287,18.06.2014,The Heights,Stock Purchases,176.84,BRAKE BROS LTD
Revenue,Head of Economy & Tourism,5105672955,13.06.2014,The Heights,Stock Purchases,88.55,BRAKE BROS LTD
Revenue,Head of Economy & Tourism,5105673241,13.06.2014,The Heights,Stock Purchases,156.55,BRAKE BROS LTD
Revenue,Head of Economy & Tourism,5105673248,13.06.2014,The Heights,Stock Purchases,105.42,BRAKE BROS LTD
Revenue,Head of ASC & Community Wellbeing,5105675709,25.06.2014,Leaseholds by LA,Accommodation Costs - Leaseholder Payments,769.43,BRAMBLE LETTINGS
Revenue,Head of ASC & Community Wellbeing,5105675709,25.06.2014,Leaseholds by LA,Accommodation Costs - Leaseholder Payments,746.81,BRAMBLE LETTINGS
Revenue,Head of ASC & Community Wellbeing,5105675709,25.06.2014,Leaseholds by LA,Accommodation Costs - Leaseholder Payments,746.81,BRAMBLE LETTINGS
Revenue,Head of ASC & Community Wellbeing,5105675709,25.06.2014,Leaseholds by LA,Accommodation Costs - Leaseholder Payments,746.81,BRAMBLE LETTINGS
Revenue,Head of ASC & Community Wellbeing,5105675709,25.06.2014,Leaseholds by LA,Accommodation Costs - Leaseholder Payments,746.81,BRAMBLE LETTINGS
Revenue,Head of ASC & Community Wellbeing,5105675709,25.06.2014,Leaseholds by LA,Accommodation Costs - Leaseholder Payments,746.81,BRAMBLE LETTINGS
Revenue,Head of ASC & Community Wellbeing,5105675709,25.06.2014,Leaseholds by LA,Accommodation Costs - Leaseholder Payments,746.81,BRAMBLE LETTINGS
Revenue,Head of ASC & Community Wellbeing,5105675709,25.06.2014,Leaseholds by LA,Accommodation Costs - Leaseholder Payments,746.81,BRAMBLE LETTINGS
Revenue,Head of ASC & Community Wellbeing,5105675709,25.06.2014,Leaseholds by LA,Accommodation Costs - Leaseholder Payments,746.81,BRAMBLE LETTINGS
Revenue,Head of ASC & Community Wellbeing,5105675709,25.06.2014,Leaseholds by LA,Accommodation Costs - Leaseholder Payments,588.38,BRAMBLE LETTINGS
Revenue,Head of ASC & Community Wellbeing,5105675709,25.06.2014,Leaseholds by LA,Accommodation Costs - Leaseholder Payments,588.38,BRAMBLE LETTINGS
Revenue,Head of ASC & Community Wellbeing,5105675709,25.06.2014,Leaseholds by LA,Accommodation Costs - Leaseholder Payments,588.38,BRAMBLE LETTINGS
Revenue,Head of ASC & Community Wellbeing,5105675709,25.06.2014,Leaseholds by LA,Accommodation Costs - Leaseholder Payments,746.81,BRAMBLE LETTINGS
Revenue,Head of ASC & Community Wellbeing,5105675709,25.06.2014,Leaseholds by LA,Accommodation Costs - Leaseholder Payments,746.81,BRAMBLE LETTINGS
Revenue,Head of ASC & Community Wellbeing,5105675709,25.06.2014,Leaseholds by LA,Accommodation Costs - Leaseholder Payments,746.81,BRAMBLE LETTINGS
Revenue,Head of ASC & Community Wellbeing,5105675709,25.06.2014,Leaseholds by LA,Accommodation Costs - Leaseholder Payments,746.81,BRAMBLE LETTINGS
Revenue,Head of ASC & Community Wellbeing,5105675709,25.06.2014,Leaseholds by LA,Accommodation Costs - Leaseholder Payments,746.81,BRAMBLE LETTINGS
Revenue,Head of ASC & Community Wellbeing,5105675709,25.06.2014,Leaseholds by LA,Accommodation Costs - Leaseholder Payments,588.38,BRAMBLE LETTINGS
Revenue,Head of ASC & Community Wellbeing,5105675709,25.06.2014,Leaseholds by LA,Accommodation Costs - Leaseholder Payments,588.38,BRAMBLE LETTINGS
Revenue,Head of ASC & Community Wellbeing,5105675709,25.06.2014,Leaseholds by LA,Accommodation Costs - Leaseholder Payments,746.81,BRAMBLE LETTINGS
Revenue,Head of ASC & Community Wellbeing,5105675709,25.06.2014,Leaseholds by LA,Accommodation Costs - Leaseholder Payments,588.38,BRAMBLE LETTINGS
Revenue,Head of ASC & Community Wellbeing,5105675709,25.06.2014,Leaseholds by LA,Accommodation Costs - Leaseholder Payments,746.81,BRAMBLE LETTINGS
Revenue,Head of Exchequer Services,5105675747,25.06.2014,Staff Benefits,Payment to Private Contractors,118.75,BRAMBLES AFTER SCHOOL CLUB
Revenue,Managing Director & Head of Paid Service,5105672472,11.06.2014,Strengthening Families,Operational Equipment,300.00,BRAVEHEART SOCIAL ENTERPRISES LTD
Revenue,Director of Childrens Services,5105676466,27.06.2014,Independ. & Non-Maint. Special Schls & Independ. Specialist Provision,Charges from Independent Providers,"18,483.00",BRECKENBROUGH SCHOOL LTD
Revenue,Head of ASC & Community Wellbeing,5105673895,18.06.2014,Elderly Frail Residential Care,Charges from Independent Providers,"2,048.76",BRENDONCARE FOUNDATION
Revenue,Head of ASC & Community Wellbeing,5105675767,25.06.2014,Elderly Frail Daycare,Charges from Independent Providers,129.36,BRIGHSTONE CARE LTD
Revenue,Head of ASC & Community Wellbeing,5105675767,25.06.2014,Elderly Frail Daycare,Charges from Independent Providers,161.70,BRIGHSTONE CARE LTD
Revenue,Head of ASC & Community Wellbeing,5105673388,18.06.2014,REDACTED PERSONAL DATA,Order Settlement to Balance Sheet GL,"1,699.88",BRIGHSTONE CARE LTD
Revenue,Head of ASC & Community Wellbeing,5105673388,18.06.2014,REDACTED PERSONAL DATA,Order Settlement to Balance Sheet GL,657.72,BRIGHSTONE CARE LTD
Revenue,Head of ASC & Community Wellbeing,5105673388,18.06.2014,Elderly Mentally Ill Residential Care,Charges from Independent Providers,"1,998.08",BRIGHSTONE CARE LTD
Revenue,Head of ASC & Community Wellbeing,5105673388,18.06.2014,Elderly Mentally Ill Residential Care,Charges from Independent Providers,"1,699.88",BRIGHSTONE CARE LTD
Revenue,Head of ASC & Community Wellbeing,5105673388,18.06.2014,Elderly Frail Residential Care,Charges from Independent Providers,"1,622.60",BRIGHSTONE CARE LTD
Revenue,Head of ASC & Community Wellbeing,5105673388,18.06.2014,Elderly Frail Residential Care,Charges from Independent Providers,"1,622.60",BRIGHSTONE CARE LTD
Revenue,Head of ASC & Community Wellbeing,5105673388,18.06.2014,Elderly Frail Residential Care,Charges from Independent Providers,"1,998.08",BRIGHSTONE CARE LTD
Revenue,Head of ASC & Community Wellbeing,5105673388,18.06.2014,Elderly Frail Residential Care,Charges from Independent Providers,"1,998.08",BRIGHSTONE CARE LTD
Revenue,Head of ASC & Community Wellbeing,5105673388,18.06.2014,Elderly Frail Residential Care,Charges from Independent Providers,"1,998.08",BRIGHSTONE CARE LTD
Revenue,Head of Economy & Tourism,5105676069,25.06.2014,Medina Leisure Centre,Payment to Private Contractors,385.00,BRIGHSTONE LANDSCAPING LTD
Revenue,Head of ASC & Community Wellbeing,5105675587,27.06.2014,Saxonbury,Grounds Maintenance,48.00,BRIGHSTONE LANDSCAPING LTD
Revenue,Head of ASC & Community Wellbeing,5105672323,06.06.2014,Saxonbury,Grounds Maintenance,145.00,BRIGHSTONE LANDSCAPING LTD
Revenue,Head of ASC & Community Wellbeing,5105672323,06.06.2014,Plean Dene,Grounds Maintenance,280.00,BRIGHSTONE LANDSCAPING LTD
Revenue,Head of ASC & Community Wellbeing,5105675587,27.06.2014,Plean Dene,Grounds Maintenance,387.49,BRIGHSTONE LANDSCAPING LTD
Revenue,Head of ASC & Community Wellbeing,5105675587,27.06.2014,Highmead,Grounds Maintenance,126.00,BRIGHSTONE LANDSCAPING LTD
Revenue,Head of ASC & Community Wellbeing,5105672323,06.06.2014,Highmead,Grounds Maintenance,140.00,BRIGHSTONE LANDSCAPING LTD
Revenue,Head of Economy & Tourism,5105675838,25.06.2014,Newport Harbour Account,Payment to Private Contractors,67.24,BRIGHSTONE LANDSCAPING LTD
Revenue,Head of Economy & Tourism,5105673068,13.06.2014,Other Grounds Maintenance,Payment to Private Contractors,40.00,BRIGHSTONE LANDSCAPING LTD
Revenue,Head of Economy & Tourism,5105672953,13.06.2014,Beach Cleaning,Payment to Private Contractors,375.00,BRIGHSTONE LANDSCAPING LTD
Revenue,Head of Economy & Tourism,5105673006,13.06.2014,Beach Cleaning,Payment to Private Contractors,95.00,BRIGHSTONE LANDSCAPING LTD
Revenue,Head of Economy & Tourism,5105676060,25.06.2014,Beach Cleaning,Payment to Private Contractors,110.00,BRIGHSTONE LANDSCAPING LTD
Revenue,Head of Economy & Tourism,5105674085,18.06.2014,Beach Cleaning,Beach Cleansing Contractors,"24,988.01",BRIGHSTONE LANDSCAPING LTD
Revenue,Head of ASC & Community Wellbeing,5105672323,06.06.2014,40 Venner Avenue,Grounds Maintenance,150.00,BRIGHSTONE LANDSCAPING LTD
Revenue,Head of ASC & Community Wellbeing,5105675587,27.06.2014,40 Venner Avenue,Grounds Maintenance,48.00,BRIGHSTONE LANDSCAPING LTD
Revenue,Head of ASC & Community Wellbeing,5105675587,27.06.2014,Seagulls,Grounds Maintenance,48.00,BRIGHSTONE LANDSCAPING LTD
Revenue,Head of ASC & Community Wellbeing,5105672323,06.06.2014,Seagulls,Grounds Maintenance,120.00,BRIGHSTONE LANDSCAPING LTD
Revenue,Head of ASC & Community Wellbeing,5105672323,06.06.2014,The Laurels,Grounds Maintenance,140.00,BRIGHSTONE LANDSCAPING LTD
Revenue,Head of ASC & Community Wellbeing,5105675587,27.06.2014,The Laurels,Grounds Maintenance,126.00,BRIGHSTONE LANDSCAPING LTD
Revenue,Head of ASC & Community Wellbeing,5105672323,06.06.2014,Overbrook,Grounds Maintenance,140.00,BRIGHSTONE LANDSCAPING LTD
Revenue,Head of ASC & Community Wellbeing,5105675587,27.06.2014,Overbrook,Grounds Maintenance,48.00,BRIGHSTONE LANDSCAPING LTD
Revenue,Head of Economy & Tourism,5105676142,25.06.2014,Dinosaur Isle Museum (Sandown Geology),Stock Purchases,634.56,BRITISH FOSSILS/GIFTSTONES LIMITED
Revenue,Head of Corp Gov & Monitoring Officer,5105672651,11.06.2014,Elections,Rent of Buildings and Rooms,268.00,BRITISH RED CROSS
Revenue,Managing Director & Head of Paid Service,5105675878,25.06.2014,Drug Misuse - Adults,Payment to Private Contractors,227.14,BROADREACH HOUSE
Revenue,Managing Director & Head of Paid Service,5105671457,06.06.2014,Drug Misuse - Adults,Payment to Private Contractors,45.60,BROADREACH HOUSE
Revenue,Managing Director & Head of Paid Service,5105671457,06.06.2014,Drug Misuse - Adults,Payment to Private Contractors,496.43,BROADREACH HOUSE
Revenue,Managing Director & Head of Paid Service,5105675588,27.06.2014,Drug Misuse - Adults,Payment to Private Contractors,"3,077.86",BROADREACH HOUSE
Revenue,Head of Economy & Tourism,5105674141,18.06.2014,Transport Fleet Administration,Vehicle Fuel Costs,537.32,BROADWAY GARAGE
Revenue,Head of ASC & Community Wellbeing,5105675870,25.06.2014,Adult Social Care Enterprise House,Rent of Buildings and Rooms,600.00,BROOKSIDE HEALTH CENTRE
Revenue,Corporate Items,5105675853,25.06.2014,Insurance Suspense - Claims Outstanding,Order Settlement to Balance Sheet GL,"6,242.00",BROWNE JACOBSON
Revenue,Corporate Items,5105675932,25.06.2014,Insurance Suspense - Claims Outstanding,Order Settlement to Balance Sheet GL,"3,322.50",BROWNE JACOBSON
Revenue,Corporate Items,5105676250,27.06.2014,Insurance Suspense - Claims Outstanding,Order Settlement to Balance Sheet GL,"4,700.00",BROWNE JACOBSON
Revenue,Corporate Items,5105676250,27.06.2014,Insurance Suspense - Claims Outstanding,Order Settlement to Balance Sheet GL,"1,250.00",BROWNE JACOBSON
Revenue,Head of ASC & Community Wellbeing,5105674625,20.06.2014,Gouldings Resource Centre,Fixed Telephones,743.18,BT FINANCE
Revenue,Head of ASC & Community Wellbeing,5105673410,18.06.2014,REDACTED PERSONAL DATA,Order Settlement to Balance Sheet GL,"1,699.88",BUCKLAND CARE LTD
Revenue,Head of ASC & Community Wellbeing,5105673410,18.06.2014,REDACTED PERSONAL DATA,Order Settlement to Balance Sheet GL,"1,998.08",BUCKLAND CARE LTD
Revenue,Head of ASC & Community Wellbeing,5105675476,20.06.2014,Elderly Mentally Ill Residential Care,Charges from Independent Providers,"3,996.16",BUCKLAND CARE LTD
Revenue,Head of ASC & Community Wellbeing,5105674214,18.06.2014,Elderly Mentally Ill Residential Care,Charges from Independent Providers,910.65,BUCKLAND CARE LTD
Revenue,Head of ASC & Community Wellbeing,5105673410,18.06.2014,Elderly Mentally Ill Residential Care,Charges from Independent Providers,"1,699.88",BUCKLAND CARE LTD
Revenue,Head of ASC & Community Wellbeing,5105673410,18.06.2014,Elderly Mentally Ill Residential Care,Charges from Independent Providers,"1,699.88",BUCKLAND CARE LTD
Revenue,Head of ASC & Community Wellbeing,5105673410,18.06.2014,Elderly Mentally Ill Residential Care,Charges from Independent Providers,"1,699.88",BUCKLAND CARE LTD
Revenue,Head of ASC & Community Wellbeing,5105673410,18.06.2014,Elderly Mentally Ill Residential Care,Charges from Independent Providers,"1,998.08",BUCKLAND CARE LTD
Revenue,Head of ASC & Community Wellbeing,5105673410,18.06.2014,Elderly Mentally Ill Residential Care,Charges from Independent Providers,"1,998.08",BUCKLAND CARE LTD
Revenue,Head of ASC & Community Wellbeing,5105673410,18.06.2014,Elderly Mentally Ill Residential Care,Charges from Independent Providers,"1,699.88",BUCKLAND CARE LTD
Revenue,Head of ASC & Community Wellbeing,5105673410,18.06.2014,Elderly Mentally Ill Residential Care,Charges from Independent Providers,"1,699.88",BUCKLAND CARE LTD
Revenue,Head of ASC & Community Wellbeing,5105673410,18.06.2014,Elderly Mentally Ill Residential Care,Charges from Independent Providers,"1,998.08",BUCKLAND CARE LTD
Revenue,Head of ASC & Community Wellbeing,5105673410,18.06.2014,Elderly Frail Residential Care,Charges from Independent Providers,"1,998.08",BUCKLAND CARE LTD
Revenue,Head of ASC & Community Wellbeing,5105673410,18.06.2014,Elderly Frail Residential Care,Charges from Independent Providers,"1,622.60",BUCKLAND CARE LTD
Revenue,Head of ASC & Community Wellbeing,5105673410,18.06.2014,Elderly Frail Residential Care,Charges from Independent Providers,"1,622.60",BUCKLAND CARE LTD
Revenue,Head of ASC & Community Wellbeing,5105673410,18.06.2014,Elderly Frail Residential Care,Charges from Independent Providers,"1,622.60",BUCKLAND CARE LTD
Revenue,Head of ASC & Community Wellbeing,5105673410,18.06.2014,Elderly Frail Residential Care,Charges from Independent Providers,"1,622.60",BUCKLAND CARE LTD
Revenue,Head of ASC & Community Wellbeing,5105673410,18.06.2014,Elderly Frail Residential Care,Charges from Independent Providers,"1,998.08",BUCKLAND CARE LTD
Revenue,Head of ASC & Community Wellbeing,5105673410,18.06.2014,Elderly Frail Residential Care,Charges from Independent Providers,"1,998.08",BUCKLAND CARE LTD
Revenue,Head of ASC & Community Wellbeing,5105673410,18.06.2014,Elderly Frail Residential Care,Charges from Independent Providers,"1,998.08",BUCKLAND CARE LTD
Revenue,Head of ASC & Community Wellbeing,5105673410,18.06.2014,Elderly Frail Residential Care,Charges from Independent Providers,"1,998.08",BUCKLAND CARE LTD
Revenue,Head of ASC & Community Wellbeing,5105673410,18.06.2014,Elderly Frail Residential Care,Charges from Independent Providers,"1,998.08",BUCKLAND CARE LTD
Revenue,Head of ASC & Community Wellbeing,5105673410,18.06.2014,Elderly Frail Residential Care,Charges from Independent Providers,"1,622.60",BUCKLAND CARE LTD
Revenue,Head of ASC & Community Wellbeing,5105673325,18.06.2014,Elderly Frail Residential Care,Charges from Independent Providers,579.50,BUCKLAND CARE LTD
Revenue,Head of ASC & Community Wellbeing,5105673395,18.06.2014,Elderly Mentally Ill Nursing Island,Regular Respite Care,"2,676.80",BUCKLAND CARE LTD
Revenue,Head of ASC & Community Wellbeing,5105673395,18.06.2014,Elderly Mentally Ill Nursing Island,Charges from Independent Providers,"2,676.80",BUCKLAND CARE LTD
Revenue,Head of ASC & Community Wellbeing,5105673395,18.06.2014,REDACTED PERSONAL DATA,Order Settlement to Balance Sheet GL,"2,233.00",BUCKLAND CARE LTD
Revenue,Head of ASC & Community Wellbeing,5105673395,18.06.2014,REDACTED PERSONAL DATA,Order Settlement to Balance Sheet GL,"2,233.00",BUCKLAND CARE LTD
Revenue,Head of ASC & Community Wellbeing,5105673395,18.06.2014,REDACTED PERSONAL DATA,Order Settlement to Balance Sheet GL,732.20,BUCKLAND CARE LTD
Revenue,Head of ASC & Community Wellbeing,5105673395,18.06.2014,REDACTED PERSONAL DATA,Order Settlement to Balance Sheet GL,"2,233.00",BUCKLAND CARE LTD
Revenue,Head of ASC & Community Wellbeing,5105674681,18.06.2014,Funded Nursing Care Island,Charges from Independent Providers,317.00,BUCKLAND CARE LTD
Revenue,Head of ASC & Community Wellbeing,5105673395,18.06.2014,Funded Nursing Care Island,Charges from Independent Providers,443.80,BUCKLAND CARE LTD
Revenue,Head of ASC & Community Wellbeing,5105673395,18.06.2014,Funded Nursing Care Island,Charges from Independent Providers,443.80,BUCKLAND CARE LTD
Revenue,Head of ASC & Community Wellbeing,5105673395,18.06.2014,Funded Nursing Care Island,Charges from Independent Providers,443.80,BUCKLAND CARE LTD
Revenue,Head of ASC & Community Wellbeing,5105674681,18.06.2014,Funded Nursing Care Island,Charges from Independent Providers,443.80,BUCKLAND CARE LTD
Revenue,Head of ASC & Community Wellbeing,5105674681,18.06.2014,Funded Nursing Care Island,Charges from Independent Providers,301.15,BUCKLAND CARE LTD
Revenue,Head of ASC & Community Wellbeing,5105674681,18.06.2014,Funded Nursing Care Island,Charges from Independent Providers,443.80,BUCKLAND CARE LTD
Revenue,Head of ASC & Community Wellbeing,5105673395,18.06.2014,Funded Nursing Care Island,Charges from Independent Providers,443.80,BUCKLAND CARE LTD
Revenue,Head of ASC & Community Wellbeing,5105673395,18.06.2014,Funded Nursing Care Island,Charges from Independent Providers,443.80,BUCKLAND CARE LTD
Revenue,Head of ASC & Community Wellbeing,5105673395,18.06.2014,Funded Nursing Care Island,Charges from Independent Providers,443.80,BUCKLAND CARE LTD
Revenue,Head of ASC & Community Wellbeing,5105673395,18.06.2014,Funded Nursing Care Island,Charges from Independent Providers,443.80,BUCKLAND CARE LTD
Revenue,Head of ASC & Community Wellbeing,5105673395,18.06.2014,Funded Nursing Care Island,Charges from Independent Providers,443.80,BUCKLAND CARE LTD
Revenue,Head of ASC & Community Wellbeing,5105673395,18.06.2014,Funded Nursing Care Island,Charges from Independent Providers,443.80,BUCKLAND CARE LTD
Revenue,Head of ASC & Community Wellbeing,5105673395,18.06.2014,Funded Nursing Care Island,Charges from Independent Providers,443.80,BUCKLAND CARE LTD
Revenue,Head of ASC & Community Wellbeing,5105672623,11.06.2014,Funded Nursing Care Island,Charges from Independent Providers,412.10,BUCKLAND CARE LTD
Revenue,Head of ASC & Community Wellbeing,5105673395,18.06.2014,Funded Nursing Care Island,Charges from Independent Providers,443.80,BUCKLAND CARE LTD
Revenue,Head of ASC & Community Wellbeing,5105673395,18.06.2014,Elderly Frail Nursing Island,Charges from Independent Providers,"2,676.80",BUCKLAND CARE LTD
Revenue,Head of ASC & Community Wellbeing,5105676266,27.06.2014,Elderly Frail Nursing Island,Charges from Independent Providers,"1,434.00",BUCKLAND CARE LTD
Revenue,Head of ASC & Community Wellbeing,5105673395,18.06.2014,Elderly Frail Nursing Island,Charges from Independent Providers,"2,676.80",BUCKLAND CARE LTD
Revenue,Head of ASC & Community Wellbeing,5105673395,18.06.2014,Elderly Frail Nursing Island,Charges from Independent Providers,"2,676.80",BUCKLAND CARE LTD
Revenue,Head of ASC & Community Wellbeing,5105673395,18.06.2014,Elderly Frail Nursing Island,Charges from Independent Providers,"2,676.80",BUCKLAND CARE LTD
Revenue,Head of ASC & Community Wellbeing,5105673395,18.06.2014,Elderly Frail Nursing Island,Charges from Independent Providers,"2,676.80",BUCKLAND CARE LTD
Revenue,Head of ASC & Community Wellbeing,5105673395,18.06.2014,Elderly Frail Nursing Island,Charges from Independent Providers,"2,676.80",BUCKLAND CARE LTD
Revenue,Head of ASC & Community Wellbeing,5105673395,18.06.2014,Elderly Frail Nursing Island,Charges from Independent Providers,"2,676.80",BUCKLAND CARE LTD
Revenue,Head of ASC & Community Wellbeing,5105673395,18.06.2014,Elderly Frail Nursing Island,Charges from Independent Providers,"2,676.80",BUCKLAND CARE LTD
Revenue,Head of ASC & Community Wellbeing,5105673395,18.06.2014,Elderly Frail Nursing Island,Charges from Independent Providers,"2,676.80",BUCKLAND CARE LTD
Revenue,Head of ASC & Community Wellbeing,5105673395,18.06.2014,Elderly Frail Nursing Island,Charges from Independent Providers,"2,676.80",BUCKLAND CARE LTD
Revenue,Head of ASC & Community Wellbeing,5105672273,06.06.2014,Plean Dene,Consumable Cleaning Materials,200.16,BUNZL CLEANING & HYGIENE SUPPLIES LTD
Revenue,Head of ASC & Community Wellbeing,5105673717,18.06.2014,Elderly Frail Nursing Mainland,Charges from Independent Providers,"1,841.84",BUPA CARE HOME (BNH) LTD
Revenue,Director of Childrens Services,5105674112,18.06.2014,Purchased Fostering,Charges from Independent Providers,"4,264.29",BY THE BRIDGE LTD
Revenue,Head of HR & Organisational Change,5105674061,18.06.2014,"Enterprise House, Newport",Grounds Maintenance,155.00,C & J GROUND MAINTENANCE
Revenue,Head of HR & Organisational Change,5105674600,20.06.2014,Properties  - Other Properties,Grounds Maintenance,"2,285.00",C & J GROUND MAINTENANCE
Revenue,Head of HR & Organisational Change,5105674597,20.06.2014,Properties  - Other Properties,Grounds Maintenance,"5,600.00",C & J GROUND MAINTENANCE
Revenue,Head of HR & Organisational Change,5105673268,18.06.2014,Properties  - Other Properties,Grounds Maintenance,78.00,C & J GROUND MAINTENANCE
Revenue,Head of HR & Organisational Change,5105674133,18.06.2014,Properties  - Other Properties,Grounds Maintenance,340.00,C & J GROUND MAINTENANCE
Revenue,Head of HR & Organisational Change,5105674594,20.06.2014,"Westridge, Ryde",Grounds Maintenance,215.40,C & J GROUND MAINTENANCE
Revenue,Head of HR & Organisational Change,5105674590,20.06.2014,Somerton Industrial Park,Grounds Maintenance,550.00,C & J GROUND MAINTENANCE
Revenue,Director of Childrens Services,5105672880,13.06.2014,In-house Fostering,Boarding Out Allowances,16.50,REDACTED PERSONAL DATA
Revenue,Director of Childrens Services,5105676382,27.06.2014,In-house Fostering,Boarding Out Allowances,16.50,REDACTED PERSONAL DATA
Revenue,Director of Childrens Services,5105675096,20.06.2014,In-house Fostering,Boarding Out Allowances,16.50,REDACTED PERSONAL DATA
Revenue,Director of Childrens Services,5105672213,06.06.2014,In-house Fostering,Boarding Out Allowances,16.50,REDACTED PERSONAL DATA
Revenue,Director of Childrens Services,5105676357,27.06.2014,Children placed with Family&Friends,Boarding Out Allowances,278.50,REDACTED PERSONAL DATA
Revenue,Director of Childrens Services,5105672855,13.06.2014,Children placed with Family&Friends,Boarding Out Allowances,278.50,REDACTED PERSONAL DATA
Revenue,Director of Childrens Services,5105675071,20.06.2014,Children placed with Family&Friends,Boarding Out Allowances,278.50,REDACTED PERSONAL DATA
Revenue,Director of Childrens Services,5105672188,06.06.2014,Children placed with Family&Friends,Boarding Out Allowances,278.50,REDACTED PERSONAL DATA
Revenue,Director of Childrens Services,5105676335,27.06.2014,Special Guardianship Order Costs,Support Children,125.79,REDACTED PERSONAL DATA
Revenue,Director of Childrens Services,5105675048,20.06.2014,Special Guardianship Order Costs,Support Children,125.79,REDACTED PERSONAL DATA
Revenue,Director of Childrens Services,5105672832,11.06.2014,Special Guardianship Order Costs,Support Children,125.79,REDACTED PERSONAL DATA
Revenue,Director of Childrens Services,5105672165,06.06.2014,Special Guardianship Order Costs,Support Children,125.79,REDACTED PERSONAL DATA
Revenue,Head of Economy & Tourism,5105674931,18.06.2014,Crematorium,General Materials,49.84,C BREWER & SONS LTD
Revenue,Director of Childrens Services,5105676389,27.06.2014,Children placed with Family&Friends,Boarding Out Allowances,140.33,REDACTED PERSONAL DATA
Revenue,Director of Childrens Services,5105672887,13.06.2014,Children placed with Family&Friends,Boarding Out Allowances,140.33,REDACTED PERSONAL DATA
Revenue,Director of Childrens Services,5105675103,20.06.2014,Children placed with Family&Friends,Boarding Out Allowances,140.33,REDACTED PERSONAL DATA
Revenue,Director of Childrens Services,5105672220,06.06.2014,Children placed with Family&Friends,Boarding Out Allowances,140.33,REDACTED PERSONAL DATA
Revenue,Director of Childrens Services,5105672867,13.06.2014,Adoption Costs,Support Children,132.69,REDACTED PERSONAL DATA
Revenue,Director of Childrens Services,5105675083,20.06.2014,Adoption Costs,Support Children,125.79,REDACTED PERSONAL DATA
Revenue,Director of Childrens Services,5105675083,20.06.2014,Adoption Costs,Support Children,132.69,REDACTED PERSONAL DATA
Revenue,Director of Childrens Services,5105676369,27.06.2014,Adoption Costs,Support Children,125.79,REDACTED PERSONAL DATA
Revenue,Director of Childrens Services,5105676369,27.06.2014,Adoption Costs,Support Children,132.69,REDACTED PERSONAL DATA
Revenue,Director of Childrens Services,5105672867,13.06.2014,Adoption Costs,Support Children,125.79,REDACTED PERSONAL DATA
Revenue,Director of Childrens Services,5105672200,06.06.2014,Adoption Costs,Support Children,125.79,REDACTED PERSONAL DATA
Revenue,Director of Childrens Services,5105672200,06.06.2014,Adoption Costs,Support Children,132.69,REDACTED PERSONAL DATA
Revenue,Head of Exchequer Services,5105675752,25.06.2014,Staff Benefits,Payment to Private Contractors,148.72,REDACTED PERSONAL DATA
Revenue,Director of Childrens Services,5105672919,13.06.2014,Children placed with Family&Friends,Boarding Out Allowances,199.00,REDACTED PERSONAL DATA
Revenue,Director of Childrens Services,5105675136,20.06.2014,Children placed with Family&Friends,Boarding Out Allowances,199.00,REDACTED PERSONAL DATA
Revenue,Director of Childrens Services,5105676422,27.06.2014,Children placed with Family&Friends,Boarding Out Allowances,199.00,REDACTED PERSONAL DATA
Revenue,Director of Childrens Services,5105672251,06.06.2014,Children placed with Family&Friends,Boarding Out Allowances,199.00,REDACTED PERSONAL DATA
Revenue,Director of Childrens Services,5105676349,27.06.2014,Special Guardianship Order Costs,Support Children,125.79,REDACTED PERSONAL DATA
Revenue,Director of Childrens Services,5105675063,20.06.2014,Special Guardianship Order Costs,Support Children,125.79,REDACTED PERSONAL DATA
Revenue,Director of Childrens Services,5105672180,06.06.2014,Special Guardianship Order Costs,Support Children,125.79,REDACTED PERSONAL DATA
Revenue,Director of Childrens Services,5105672847,13.06.2014,Special Guardianship Order Costs,Support Children,125.79,REDACTED PERSONAL DATA
Revenue,Director of Childrens Services,5105675051,20.06.2014,Adoption Costs,Support Children,168.39,REDACTED PERSONAL DATA
Revenue,Director of Childrens Services,5105675051,20.06.2014,Adoption Costs,Support Children,168.39,REDACTED PERSONAL DATA
Revenue,Director of Childrens Services,5105676338,27.06.2014,Adoption Costs,Support Children,168.39,REDACTED PERSONAL DATA
Revenue,Director of Childrens Services,5105676338,27.06.2014,Adoption Costs,Support Children,168.39,REDACTED PERSONAL DATA
Revenue,Director of Childrens Services,5105672168,06.06.2014,Adoption Costs,Support Children,168.39,REDACTED PERSONAL DATA
Revenue,Director of Childrens Services,5105672168,06.06.2014,Adoption Costs,Support Children,168.39,REDACTED PERSONAL DATA
Revenue,Director of Childrens Services,5105672835,11.06.2014,Adoption Costs,Support Children,168.39,REDACTED PERSONAL DATA
Revenue,Director of Childrens Services,5105672835,11.06.2014,Adoption Costs,Support Children,168.39,REDACTED PERSONAL DATA
Revenue,Director of Childrens Services,5105676408,27.06.2014,Special Guardianship Order Costs,Support Children,116.80,REDACTED PERSONAL DATA
Revenue,Director of Childrens Services,5105675122,20.06.2014,Special Guardianship Order Costs,Support Children,116.80,REDACTED PERSONAL DATA
Revenue,Director of Childrens Services,5105672906,13.06.2014,Special Guardianship Order Costs,Support Children,116.80,REDACTED PERSONAL DATA
Revenue,Director of Childrens Services,5105672238,06.06.2014,Special Guardianship Order Costs,Support Children,116.80,REDACTED PERSONAL DATA
Revenue,Director of Childrens Services,5105676332,27.06.2014,In-house Fostering,Boarding Out Allowances,242.08,REDACTED PERSONAL DATA
Revenue,Director of Childrens Services,5105676332,27.06.2014,In-house Fostering,Boarding Out Allowances,268.21,REDACTED PERSONAL DATA
Revenue,Director of Childrens Services,5105676332,27.06.2014,In-house Fostering,Boarding Out Allowances,10.00,REDACTED PERSONAL DATA
Revenue,Director of Childrens Services,5105675045,20.06.2014,In-house Fostering,Boarding Out Allowances,242.08,REDACTED PERSONAL DATA
Revenue,Director of Childrens Services,5105675045,20.06.2014,In-house Fostering,Boarding Out Allowances,268.21,REDACTED PERSONAL DATA
Revenue,Director of Childrens Services,5105675045,20.06.2014,In-house Fostering,Boarding Out Allowances,10.00,REDACTED PERSONAL DATA
Revenue,Director of Childrens Services,5105672162,06.06.2014,In-house Fostering,Boarding Out Allowances,10.00,REDACTED PERSONAL DATA
Revenue,Director of Childrens Services,5105672829,11.06.2014,In-house Fostering,Boarding Out Allowances,242.08,REDACTED PERSONAL DATA
Revenue,Director of Childrens Services,5105672829,11.06.2014,In-house Fostering,Boarding Out Allowances,268.21,REDACTED PERSONAL DATA
Revenue,Director of Childrens Services,5105672829,11.06.2014,In-house Fostering,Boarding Out Allowances,10.00,REDACTED PERSONAL DATA
Revenue,Director of Childrens Services,5105675045,20.06.2014,In-house Fostering,Support Children,242.08,REDACTED PERSONAL DATA
Revenue,Director of Childrens Services,5105675045,20.06.2014,In-house Fostering,Support Children,200.00,REDACTED PERSONAL DATA
Revenue,Director of Childrens Services,5105672162,06.06.2014,In-house Fostering,Boarding Out Allowances,268.21,REDACTED PERSONAL DATA
Revenue,Director of Childrens Services,5105672162,06.06.2014,In-house Fostering,Boarding Out Allowances,242.08,REDACTED PERSONAL DATA
Revenue,Director of Childrens Services,5105672829,11.06.2014,In-house Fostering,Support Children,242.08,REDACTED PERSONAL DATA
Revenue,Director of Childrens Services,5105672829,11.06.2014,In-house Fostering,Support Children,200.00,REDACTED PERSONAL DATA
Revenue,Director of Childrens Services,5105676332,27.06.2014,In-house Fostering,Support Children,242.08,REDACTED PERSONAL DATA
Revenue,Director of Childrens Services,5105676332,27.06.2014,In-house Fostering,Support Children,200.00,REDACTED PERSONAL DATA
Revenue,Director of Childrens Services,5105675020,20.06.2014,In-house Fostering,Boarding Out Allowances,199.00,REDACTED PERSONAL DATA
Revenue,Director of Childrens Services,5105676307,27.06.2014,In-house Fostering,Boarding Out Allowances,242.08,REDACTED PERSONAL DATA
Revenue,Director of Childrens Services,5105676307,27.06.2014,In-house Fostering,Boarding Out Allowances,15.00,REDACTED PERSONAL DATA
Revenue,Director of Childrens Services,5105676307,27.06.2014,In-house Fostering,Boarding Out Allowances,199.00,REDACTED PERSONAL DATA
Revenue,Director of Childrens Services,5105675020,20.06.2014,In-house Fostering,Boarding Out Allowances,242.08,REDACTED PERSONAL DATA
Revenue,Director of Childrens Services,5105675020,20.06.2014,In-house Fostering,Boarding Out Allowances,15.00,REDACTED PERSONAL DATA
Revenue,Director of Childrens Services,5105672804,11.06.2014,In-house Fostering,Boarding Out Allowances,199.00,REDACTED PERSONAL DATA
Revenue,Director of Childrens Services,5105672804,11.06.2014,In-house Fostering,Boarding Out Allowances,242.08,REDACTED PERSONAL DATA
Revenue,Director of Childrens Services,5105672804,11.06.2014,In-house Fostering,Boarding Out Allowances,15.00,REDACTED PERSONAL DATA
Revenue,Director of Childrens Services,5105672137,06.06.2014,In-house Fostering,Boarding Out Allowances,199.00,REDACTED PERSONAL DATA
Revenue,Director of Childrens Services,5105672137,06.06.2014,In-house Fostering,Boarding Out Allowances,242.08,REDACTED PERSONAL DATA
Revenue,Director of Childrens Services,5105672137,06.06.2014,In-house Fostering,Boarding Out Allowances,15.00,REDACTED PERSONAL DATA
Revenue,Director of Childrens Services,5105672157,06.06.2014,Children placed with Family&Friends,Boarding Out Allowances,199.00,REDACTED PERSONAL DATA
Revenue,Director of Childrens Services,5105672157,06.06.2014,Children placed with Family&Friends,Boarding Out Allowances,100.00,REDACTED PERSONAL DATA
Revenue,Director of Childrens Services,5105672824,11.06.2014,Children placed with Family&Friends,Boarding Out Allowances,199.00,REDACTED PERSONAL DATA
Revenue,Director of Childrens Services,5105672824,11.06.2014,Children placed with Family&Friends,Boarding Out Allowances,100.00,REDACTED PERSONAL DATA
Revenue,Director of Childrens Services,5105675040,20.06.2014,Children placed with Family&Friends,Boarding Out Allowances,199.00,REDACTED PERSONAL DATA
Revenue,Director of Childrens Services,5105675040,20.06.2014,Children placed with Family&Friends,Boarding Out Allowances,100.00,REDACTED PERSONAL DATA
Revenue,Director of Childrens Services,5105676327,27.06.2014,Children placed with Family&Friends,Boarding Out Allowances,199.00,REDACTED PERSONAL DATA
Revenue,Director of Childrens Services,5105676327,27.06.2014,Children placed with Family&Friends,Boarding Out Allowances,100.00,REDACTED PERSONAL DATA
Revenue,Head of Economy & Tourism,5105675617,20.06.2014,Parks and Gardens Misc Equip & Works,Payment to Private Contractors,440.38,C N SERVICES
Revenue,Head of Economy & Tourism,5105675392,25.06.2014,Play Areas Health & Safety work,Payment to Private Contractors,692.25,C N SERVICES
Revenue,Head of Economy & Tourism,5105675402,25.06.2014,Play Areas Health & Safety work,Payment to Private Contractors,"1,862.33",C N SERVICES
Revenue,Head of Economy & Tourism,5105675617,20.06.2014,Play Areas Health & Safety work,Payment to Private Contractors,40.00,C N SERVICES
Revenue,Head of Economy & Tourism,5105671846,04.06.2014,Public Seats  (incl.Dedicated Seats),Payment to Private Contractors,160.00,C N SERVICES
Revenue,Head of Economy & Tourism,5105676492,27.06.2014,Beach Safety & Inspection / Beach Awards,Payment to Private Contractors,477.25,C N SERVICES
Revenue,Head of Economy & Tourism,5105674973,20.06.2014,Other Grounds Maintenance,Payment to Private Contractors,662.25,C N SERVICES
Revenue,Head of Planning & Regulatory Services,5105674961,18.06.2014,Coast Protection,Payment to Private Contractors,100.00,C N SERVICES
Revenue,Head of Economy & Tourism,5105671847,04.06.2014,Off-Street Parking Operations,Payment to Private Contractors,107.25,C N SERVICES
Revenue,Head of Economy & Tourism,5105671847,04.06.2014,Off-Street Parking Operations,Payment to Private Contractors,404.90,C N SERVICES
Revenue,Director of Childrens Services,5105672797,11.06.2014,In-house Fostering,Regular Respite Care,20.00,REDACTED PERSONAL DATA
Revenue,Director of Childrens Services,5105672130,06.06.2014,In-house Fostering,Regular Respite Care,20.00,REDACTED PERSONAL DATA
Revenue,Director of Childrens Services,5105675013,20.06.2014,In-house Fostering,Regular Respite Care,20.00,REDACTED PERSONAL DATA
Revenue,Director of Childrens Services,5105676300,27.06.2014,In-house Fostering,Regular Respite Care,20.00,REDACTED PERSONAL DATA
Revenue,Head of Exchequer Services,5105675755,25.06.2014,Staff Benefits,Payment to Private Contractors,243.00,REDACTED PERSONAL DATA
Revenue,Director of Childrens Services,5105676340,27.06.2014,In-house Fostering,Boarding Out Allowances,140.33,REDACTED PERSONAL DATA
Revenue,Director of Childrens Services,5105676340,27.06.2014,In-house Fostering,Boarding Out Allowances,10.00,REDACTED PERSONAL DATA
Revenue,Director of Childrens Services,5105675054,20.06.2014,In-house Fostering,Boarding Out Allowances,10.00,REDACTED PERSONAL DATA
Revenue,Director of Childrens Services,5105672171,06.06.2014,In-house Fostering,Boarding Out Allowances,140.33,REDACTED PERSONAL DATA
Revenue,Director of Childrens Services,5105672171,06.06.2014,In-house Fostering,Boarding Out Allowances,10.00,REDACTED PERSONAL DATA
Revenue,Director of Childrens Services,5105675054,20.06.2014,In-house Fostering,Boarding Out Allowances,140.33,REDACTED PERSONAL DATA
Revenue,Director of Childrens Services,5105672838,13.06.2014,In-house Fostering,Boarding Out Allowances,140.33,REDACTED PERSONAL DATA
Revenue,Director of Childrens Services,5105672838,13.06.2014,In-house Fostering,Boarding Out Allowances,10.00,REDACTED PERSONAL DATA
Revenue,Director of Childrens Services,5105672912,13.06.2014,Children placed with Family&Friends,Boarding Out Allowances,199.00,REDACTED PERSONAL DATA
Revenue,Director of Childrens Services,5105675128,20.06.2014,Children placed with Family&Friends,Boarding Out Allowances,199.00,REDACTED PERSONAL DATA
Revenue,Director of Childrens Services,5105675128,20.06.2014,Children placed with Family&Friends,Boarding Out Allowances,142.86,REDACTED PERSONAL DATA
Revenue,Director of Childrens Services,5105676414,27.06.2014,Children placed with Family&Friends,Boarding Out Allowances,199.00,REDACTED PERSONAL DATA
Revenue,Director of Childrens Services,5105676414,27.06.2014,Children placed with Family&Friends,Boarding Out Allowances,50.00,REDACTED PERSONAL DATA
Revenue,Director of Childrens Services,5105672244,06.06.2014,Children placed with Family&Friends,Boarding Out Allowances,199.00,REDACTED PERSONAL DATA
Revenue,Director of Childrens Services,5105675075,20.06.2014,Special Guardianship Order Costs,Support Children,125.79,REDACTED PERSONAL DATA
Revenue,Director of Childrens Services,5105676361,27.06.2014,Special Guardianship Order Costs,Support Children,125.79,REDACTED PERSONAL DATA
Revenue,Director of Childrens Services,5105672859,13.06.2014,Special Guardianship Order Costs,Support Children,125.79,REDACTED PERSONAL DATA
Revenue,Director of Childrens Services,5105672192,06.06.2014,Special Guardianship Order Costs,Support Children,125.79,REDACTED PERSONAL DATA
Revenue,Head of ASC & Community Wellbeing,5105673350,18.06.2014,Learning Disability Residential Care,Charges from Independent Providers,"1,811.88",REDACTED PERSONAL DATA
Revenue,Director of Childrens Services,5105672830,11.06.2014,Adoption Costs,Support Children,132.69,REDACTED PERSONAL DATA
Revenue,Director of Childrens Services,5105675046,20.06.2014,Adoption Costs,Support Children,132.69,REDACTED PERSONAL DATA
Revenue,Director of Childrens Services,5105676333,27.06.2014,Adoption Costs,Support Children,132.69,REDACTED PERSONAL DATA
Revenue,Director of Childrens Services,5105672163,06.06.2014,Adoption Costs,Support Children,132.69,REDACTED PERSONAL DATA
Revenue,Head of HR & Organisational Change,5105672070,06.06.2014,ICT Contracts,Computer Maintenance,999.00,CABLE & WIRELESS WORLDWIDE
Revenue,Head of HR & Organisational Change,5105663775,27.06.2014,ICT Contracts,Computer Maintenance,"3,260.07",CABLE & WIRELESS WORLDWIDE
Revenue,Head of HR & Organisational Change,5105675884,25.06.2014,Church View Ventnor,Consultants Fees,750.00,CADDIS BUILDING CONSULTANCY LTD
Revenue,Director of Childrens Services,5105671845,04.06.2014,Training - Childrens,Training,105.00,CALDER TRAINING & CONSULTANCY LTD
Revenue,Director of Childrens Services,5105669404,11.06.2014,Workforce Development -  Westridge Centre,Gas,445.62,CALOR GAS LIMITED
Revenue,Head of Economy & Tourism,5105674962,18.06.2014,Transport Administration,Maintenance of Operational Equipment,376.35,CALOR GAS LIMITED
Revenue,Director of Childrens Services,5105676147,25.06.2014,Independ. & Non-Maint. Special Schls & Independ. Specialist Provision,Charges from Independent Providers,"-44,298.94",CAMBIAN ASPERGER SYNDROME SERVICES LTD
Revenue,Director of Childrens Services,5105676145,25.06.2014,Independ. & Non-Maint. Special Schls & Independ. Specialist Provision,Charges from Independent Providers,"44,298.94",CAMBIAN ASPERGER SYNDROME SERVICES LTD
Revenue,Director of Childrens Services,5105676042,25.06.2014,Independ. & Non-Maint. Special Schls & Independ. Specialist Provision,Charges from Independent Providers,"43,430.33",CAMBIAN ASPERGER SYNDROME SERVICES LTD
Revenue,Director of Childrens Services,5105672086,06.06.2014,Court Work & Consultancy Services,Legal Fees - Other Parties,50.00,CAMERON LAMB LTD
Revenue,Head of Economy & Tourism,5105675824,25.06.2014,Roman Villa Newport,Cleaning Contracts,7.44,CANNON HYGIENE
Revenue,Director of Childrens Services,5105675860,25.06.2014,Childrens Services Finance Team,Bought in Prof Services - Curriculum (Schools),295.00,CAPITA BUSINESS SERVICES LTD
Revenue,Head of Economy & Tourism,5105673014,13.06.2014,Public Libraries Central,Computer Software & Consumables,500.00,CAPITA BUSINESS SERVICES LTD
Revenue,Head of Planning & Regulatory Services,5105675939,25.06.2014,Highways PFI Project,Rent of Buildings and Rooms,"2,095.89",CAPITA SYMONDS LTD
Revenue,Head of Planning & Regulatory Services,5105676585,20.06.2014,Highways PFI Project,Premises Insurance,312.30,CAPITA SYMONDS LTD
Revenue,Director of Childrens Services,5105672642,11.06.2014,Purchased Fostering,Charges from Independent Providers,"4,207.01",CAPSTONE FOSTER CARE LTD
Revenue,Head of ASC & Community Wellbeing,5105674372,18.06.2014,Physical Disability Homecare,Charges from Independent Providers,"2,745.40",CARE FIRST IW LTD
Revenue,Head of ASC & Community Wellbeing,5105674395,18.06.2014,Physical Disability Homecare,Charges from Independent Providers,"2,337.30",CARE FIRST IW LTD
Revenue,Head of ASC & Community Wellbeing,5105674390,18.06.2014,Physical Disability Homecare,Charges from Independent Providers,155.82,CARE FIRST IW LTD
Revenue,Head of ASC & Community Wellbeing,5105674379,18.06.2014,Physical Disability Homecare,Regular Respite Care,148.40,CARE FIRST IW LTD
Revenue,Head of ASC & Community Wellbeing,5105674368,18.06.2014,Mental Health Homecare,Charges from Independent Providers,222.60,CARE FIRST IW LTD
Revenue,Head of ASC & Community Wellbeing,5105674399,18.06.2014,Elderly Frail Homecare,Regular Respite Care,89.04,CARE FIRST IW LTD
Revenue,Head of ASC & Community Wellbeing,5105674366,18.06.2014,Elderly Frail Homecare,Regular Respite Care,148.40,CARE FIRST IW LTD
Revenue,Head of ASC & Community Wellbeing,5105675487,20.06.2014,Elderly Frail Homecare,Charges from Independent Providers,690.06,CARE FIRST IW LTD
Revenue,Head of ASC & Community Wellbeing,5105675488,20.06.2014,Elderly Frail Homecare,Charges from Independent Providers,"1,268.82",CARE FIRST IW LTD
Revenue,Head of ASC & Community Wellbeing,5105674402,18.06.2014,Elderly Frail Homecare,Charges from Independent Providers,"1,558.20",CARE FIRST IW LTD
Revenue,Head of ASC & Community Wellbeing,5105674400,18.06.2014,Elderly Frail Homecare,Charges from Independent Providers,582.47,CARE FIRST IW LTD
Revenue,Head of ASC & Community Wellbeing,5105674396,18.06.2014,Elderly Frail Homecare,Charges from Independent Providers,259.70,CARE FIRST IW LTD
Revenue,Head of ASC & Community Wellbeing,5105674397,18.06.2014,Elderly Frail Homecare,Charges from Independent Providers,779.10,CARE FIRST IW LTD
Revenue,Head of ASC & Community Wellbeing,5105674398,18.06.2014,Elderly Frail Homecare,Charges from Independent Providers,"1,558.20",CARE FIRST IW LTD
Revenue,Head of ASC & Community Wellbeing,5105674404,18.06.2014,Elderly Frail Homecare,Charges from Independent Providers,371.00,CARE FIRST IW LTD
Revenue,Head of ASC & Community Wellbeing,5105674401,18.06.2014,Elderly Frail Homecare,Charges from Independent Providers,430.36,CARE FIRST IW LTD
Revenue,Head of ASC & Community Wellbeing,5105674384,18.06.2014,Elderly Frail Homecare,Charges from Independent Providers,597.31,CARE FIRST IW LTD
Revenue,Head of ASC & Community Wellbeing,5105674367,18.06.2014,Elderly Frail Homecare,Charges from Independent Providers,779.10,CARE FIRST IW LTD
Revenue,Head of ASC & Community Wellbeing,5105674371,18.06.2014,Elderly Frail Homecare,Charges from Independent Providers,252.28,CARE FIRST IW LTD
Revenue,Head of ASC & Community Wellbeing,5105674364,18.06.2014,Elderly Frail Homecare,Charges from Independent Providers,389.55,CARE FIRST IW LTD
Revenue,Head of ASC & Community Wellbeing,5105674375,18.06.2014,Elderly Frail Homecare,Charges from Independent Providers,111.30,CARE FIRST IW LTD
Revenue,Head of ASC & Community Wellbeing,5105674389,18.06.2014,Elderly Frail Homecare,Charges from Independent Providers,222.60,CARE FIRST IW LTD
Revenue,Head of ASC & Community Wellbeing,5105674383,18.06.2014,Elderly Frail Homecare,Charges from Independent Providers,163.24,CARE FIRST IW LTD
Revenue,Head of ASC & Community Wellbeing,5105674369,18.06.2014,Elderly Frail Homecare,Charges from Independent Providers,667.80,CARE FIRST IW LTD
Revenue,Head of ASC & Community Wellbeing,5105674386,18.06.2014,Elderly Frail Homecare,Charges from Independent Providers,148.40,CARE FIRST IW LTD
Revenue,Head of ASC & Community Wellbeing,5105674394,18.06.2014,Elderly Frail Homecare,Charges from Independent Providers,994.28,CARE FIRST IW LTD
Revenue,Head of ASC & Community Wellbeing,5105674392,18.06.2014,Elderly Frail Homecare,Charges from Independent Providers,207.76,CARE FIRST IW LTD
Revenue,Head of ASC & Community Wellbeing,5105674385,18.06.2014,Elderly Frail Homecare,Charges from Independent Providers,"1,012.83",CARE FIRST IW LTD
Revenue,Head of ASC & Community Wellbeing,5105674381,18.06.2014,Elderly Frail Homecare,Charges from Independent Providers,259.70,CARE FIRST IW LTD
Revenue,Head of ASC & Community Wellbeing,5105674382,18.06.2014,Elderly Frail Homecare,Charges from Independent Providers,296.80,CARE FIRST IW LTD
Revenue,Head of ASC & Community Wellbeing,5105674393,18.06.2014,Elderly Frail Homecare,Charges from Independent Providers,779.10,CARE FIRST IW LTD
Revenue,Head of ASC & Community Wellbeing,5105674363,18.06.2014,Elderly Frail Homecare,Charges from Independent Providers,"2,337.30",CARE FIRST IW LTD
Revenue,Head of ASC & Community Wellbeing,5105674365,18.06.2014,Elderly Frail Homecare,Charges from Independent Providers,222.60,CARE FIRST IW LTD
Revenue,Head of ASC & Community Wellbeing,5105674373,18.06.2014,Elderly Frail Homecare,Charges from Independent Providers,259.70,CARE FIRST IW LTD
Revenue,Head of ASC & Community Wellbeing,5105674376,18.06.2014,Elderly Frail Homecare,Charges from Independent Providers,474.88,CARE FIRST IW LTD
Revenue,Head of ASC & Community Wellbeing,5105674370,18.06.2014,Elderly Frail Homecare,Charges from Independent Providers,259.70,CARE FIRST IW LTD
Revenue,Head of ASC & Community Wellbeing,5105674374,18.06.2014,Elderly Frail Homecare,Charges from Independent Providers,649.25,CARE FIRST IW LTD
Revenue,Head of ASC & Community Wellbeing,5105674391,18.06.2014,Elderly Frail Homecare,Charges from Independent Providers,"1,558.20",CARE FIRST IW LTD
Revenue,Head of ASC & Community Wellbeing,5105674380,18.06.2014,Elderly Frail Homecare,Charges from Independent Providers,296.80,CARE FIRST IW LTD
Revenue,Head of ASC & Community Wellbeing,5105674378,18.06.2014,Elderly Frail Homecare,Charges from Independent Providers,779.10,CARE FIRST IW LTD
Revenue,Head of ASC & Community Wellbeing,5105674403,18.06.2014,Elderly Frail Homecare,Charges from Independent Providers,44.52,CARE FIRST IW LTD
Revenue,Head of ASC & Community Wellbeing,5105674387,18.06.2014,Elderly Mentally Ill Homecare,Charges from Independent Providers,779.10,CARE FIRST IW LTD
Revenue,Head of ASC & Community Wellbeing,5105674377,18.06.2014,Elderly Mentally Ill Homecare,Charges from Independent Providers,"2,671.20",CARE FIRST IW LTD
Revenue,Head of ASC & Community Wellbeing,5105674388,18.06.2014,Elderly Mentally Ill Homecare,Regular Respite Care,148.40,CARE FIRST IW LTD
Revenue,Head of ASC & Community Wellbeing,5105672263,06.06.2014,Carers Support,Payments to Voluntary and Other Associations,"1,500.00",CARERS UK IW
Revenue,Head of ASC & Community Wellbeing,5105674756,18.06.2014,Physical Disability Homecare,Charges from Independent Providers,148.40,CAREWATCH (SOUTHAMPTON NEW FOREST & IOW)
Revenue,Head of ASC & Community Wellbeing,5105674751,18.06.2014,Physical Disability Homecare,Charges from Independent Providers,927.50,CAREWATCH (SOUTHAMPTON NEW FOREST & IOW)
Revenue,Head of ASC & Community Wellbeing,5105674810,18.06.2014,Physical Disability Homecare,Charges from Independent Providers,478.59,CAREWATCH (SOUTHAMPTON NEW FOREST & IOW)
Revenue,Head of ASC & Community Wellbeing,5105674781,18.06.2014,Physical Disability Homecare,Charges from Independent Providers,"1,317.05",CAREWATCH (SOUTHAMPTON NEW FOREST & IOW)
Revenue,Head of ASC & Community Wellbeing,5105674757,18.06.2014,Physical Disability Homecare,Charges from Independent Providers,"1,558.20",CAREWATCH (SOUTHAMPTON NEW FOREST & IOW)
Revenue,Director of Childrens Services,5105676515,27.06.2014,Support for Looked After Children - Disabled Childrens Team,Transport of Clients,267.12,CAREWATCH (SOUTHAMPTON NEW FOREST & IOW)
Revenue,Director of Childrens Services,5105673095,13.06.2014,Support for Looked After Children - Disabled Childrens Team,Charges from Independent Providers,281.96,CAREWATCH (SOUTHAMPTON NEW FOREST & IOW)
Revenue,Director of Childrens Services,5105676514,27.06.2014,Support for Looked After Children - Disabled Childrens Team,Support Children,445.20,CAREWATCH (SOUTHAMPTON NEW FOREST & IOW)
Revenue,Head of ASC & Community Wellbeing,5105674796,18.06.2014,Physical Disability Homecare,Charges from Independent Providers,"2,597.00",CAREWATCH (SOUTHAMPTON NEW FOREST & IOW)
Revenue,Head of ASC & Community Wellbeing,5105674802,18.06.2014,Physical Disability Homecare,Charges from Independent Providers,920.08,CAREWATCH (SOUTHAMPTON NEW FOREST & IOW)
Revenue,Head of ASC & Community Wellbeing,5105674828,18.06.2014,Physical Disability Homecare,Regular Respite Care,118.72,CAREWATCH (SOUTHAMPTON NEW FOREST & IOW)
Revenue,Head of ASC & Community Wellbeing,5105674836,18.06.2014,Physical Disability Homecare,Regular Respite Care,59.36,CAREWATCH (SOUTHAMPTON NEW FOREST & IOW)
Revenue,Head of ASC & Community Wellbeing,5105675775,25.06.2014,Physical Disability Homecare,Charges from Independent Providers,"1,303.38",CAREWATCH (SOUTHAMPTON NEW FOREST & IOW)
Revenue,Head of ASC & Community Wellbeing,5105674821,18.06.2014,Physical Disability Homecare,Charges from Independent Providers,133.56,CAREWATCH (SOUTHAMPTON NEW FOREST & IOW)
Revenue,Head of ASC & Community Wellbeing,5105674782,18.06.2014,Physical Disability Homecare,Charges from Independent Providers,148.40,CAREWATCH (SOUTHAMPTON NEW FOREST & IOW)
Revenue,Head of ASC & Community Wellbeing,5105674825,18.06.2014,Physical Disability Homecare,Charges from Independent Providers,445.20,CAREWATCH (SOUTHAMPTON NEW FOREST & IOW)
Revenue,Head of ASC & Community Wellbeing,5105674767,18.06.2014,Physical Disability Homecare,Charges from Independent Providers,445.20,CAREWATCH (SOUTHAMPTON NEW FOREST & IOW)
Revenue,Head of ASC & Community Wellbeing,5105674827,18.06.2014,Physical Disability Homecare,Charges from Independent Providers,"1,038.80",CAREWATCH (SOUTHAMPTON NEW FOREST & IOW)
Revenue,Head of ASC & Community Wellbeing,5105674831,18.06.2014,Physical Disability Homecare,Charges from Independent Providers,871.85,CAREWATCH (SOUTHAMPTON NEW FOREST & IOW)
Revenue,Head of ASC & Community Wellbeing,5105674315,18.06.2014,Mental Health Homecare,Charges from Independent Providers,771.68,CAREWATCH (SOUTHAMPTON NEW FOREST & IOW)
Revenue,Head of ASC & Community Wellbeing,5105674315,18.06.2014,Mental Health Homecare,Charges from Independent Providers,148.40,CAREWATCH (SOUTHAMPTON NEW FOREST & IOW)
Revenue,Head of ASC & Community Wellbeing,5105674819,18.06.2014,Mental Health Homecare,Charges from Independent Providers,"2,129.54",CAREWATCH (SOUTHAMPTON NEW FOREST & IOW)
Revenue,Head of ASC & Community Wellbeing,5105674771,18.06.2014,Mental Health Homecare,Charges from Independent Providers,118.72,CAREWATCH (SOUTHAMPTON NEW FOREST & IOW)
Revenue,Head of ASC & Community Wellbeing,5105674749,18.06.2014,Mental Health Homecare,Charges from Independent Providers,133.56,CAREWATCH (SOUTHAMPTON NEW FOREST & IOW)
Revenue,Head of ASC & Community Wellbeing,5105674776,18.06.2014,Mental Health Homecare,Charges from Independent Providers,148.40,CAREWATCH (SOUTHAMPTON NEW FOREST & IOW)
Revenue,Head of ASC & Community Wellbeing,5105674803,18.06.2014,Mental Health Homecare,Charges from Independent Providers,259.70,CAREWATCH (SOUTHAMPTON NEW FOREST & IOW)
Revenue,Head of ASC & Community Wellbeing,5105675773,25.06.2014,Elderly Frail Homecare,Regular Respite Care,29.04,CAREWATCH (SOUTHAMPTON NEW FOREST & IOW)
Revenue,Head of ASC & Community Wellbeing,5105675773,25.06.2014,Elderly Frail Homecare,Regular Respite Care,21.78,CAREWATCH (SOUTHAMPTON NEW FOREST & IOW)
Revenue,Head of ASC & Community Wellbeing,5105674783,18.06.2014,Elderly Frail Homecare,Regular Respite Care,445.20,CAREWATCH (SOUTHAMPTON NEW FOREST & IOW)
Revenue,Head of ASC & Community Wellbeing,5105674788,18.06.2014,Elderly Frail Homecare,Regular Respite Care,148.40,CAREWATCH (SOUTHAMPTON NEW FOREST & IOW)
Revenue,Head of ASC & Community Wellbeing,5105674801,18.06.2014,Elderly Frail Homecare,Regular Respite Care,148.40,CAREWATCH (SOUTHAMPTON NEW FOREST & IOW)
Revenue,Head of ASC & Community Wellbeing,5105674784,18.06.2014,Elderly Frail Homecare,Regular Respite Care,118.72,CAREWATCH (SOUTHAMPTON NEW FOREST & IOW)
Revenue,Head of ASC & Community Wellbeing,5105674823,18.06.2014,Elderly Frail Homecare,Regular Respite Care,148.40,CAREWATCH (SOUTHAMPTON NEW FOREST & IOW)
Revenue,Head of ASC & Community Wellbeing,5105674795,18.06.2014,Elderly Frail Homecare,Regular Respite Care,415.52,CAREWATCH (SOUTHAMPTON NEW FOREST & IOW)
Revenue,Head of ASC & Community Wellbeing,5105674794,18.06.2014,Elderly Frail Homecare,Regular Respite Care,118.72,CAREWATCH (SOUTHAMPTON NEW FOREST & IOW)
Revenue,Head of ASC & Community Wellbeing,5105674805,18.06.2014,Elderly Frail Homecare,Regular Respite Care,118.72,CAREWATCH (SOUTHAMPTON NEW FOREST & IOW)
Revenue,Head of ASC & Community Wellbeing,5105674812,18.06.2014,Elderly Frail Homecare,Regular Respite Care,178.08,CAREWATCH (SOUTHAMPTON NEW FOREST & IOW)
Revenue,Head of ASC & Community Wellbeing,5105674842,18.06.2014,Elderly Frail Homecare,Regular Respite Care,148.40,CAREWATCH (SOUTHAMPTON NEW FOREST & IOW)
Revenue,Head of ASC & Community Wellbeing,5105674314,18.06.2014,Elderly Frail Homecare,Regular Respite Care,118.72,CAREWATCH (SOUTHAMPTON NEW FOREST & IOW)
Revenue,Head of ASC & Community Wellbeing,5105674829,18.06.2014,Elderly Frail Homecare,Regular Respite Care,148.40,CAREWATCH (SOUTHAMPTON NEW FOREST & IOW)
Revenue,Head of ASC & Community Wellbeing,5105674789,18.06.2014,Elderly Frail Homecare,Regular Respite Care,319.06,CAREWATCH (SOUTHAMPTON NEW FOREST & IOW)
Revenue,Head of ASC & Community Wellbeing,5105674790,18.06.2014,Elderly Frail Homecare,Regular Respite Care,148.40,CAREWATCH (SOUTHAMPTON NEW FOREST & IOW)
Revenue,Head of ASC & Community Wellbeing,5105674770,18.06.2014,Elderly Frail Homecare,Regular Respite Care,103.88,CAREWATCH (SOUTHAMPTON NEW FOREST & IOW)
Revenue,Head of ASC & Community Wellbeing,5105674772,18.06.2014,Elderly Frail Homecare,Regular Respite Care,178.08,CAREWATCH (SOUTHAMPTON NEW FOREST & IOW)
Revenue,Head of ASC & Community Wellbeing,5105675774,25.06.2014,Elderly Frail Homecare,Charges from Independent Providers,74.20,CAREWATCH (SOUTHAMPTON NEW FOREST & IOW)
Revenue,Head of ASC & Community Wellbeing,5105675772,25.06.2014,Elderly Frail Homecare,Charges from Independent Providers,760.55,CAREWATCH (SOUTHAMPTON NEW FOREST & IOW)
Revenue,Head of ASC & Community Wellbeing,5105675776,25.06.2014,Elderly Frail Homecare,Charges from Independent Providers,129.85,CAREWATCH (SOUTHAMPTON NEW FOREST & IOW)
Revenue,Head of ASC & Community Wellbeing,5105675770,25.06.2014,Elderly Frail Homecare,Charges from Independent Providers,779.10,CAREWATCH (SOUTHAMPTON NEW FOREST & IOW)
Revenue,Head of ASC & Community Wellbeing,5105675771,25.06.2014,Elderly Frail Homecare,Charges from Independent Providers,222.60,CAREWATCH (SOUTHAMPTON NEW FOREST & IOW)
Revenue,Head of ASC & Community Wellbeing,5105675777,25.06.2014,Elderly Frail Homecare,Charges from Independent Providers,341.32,CAREWATCH (SOUTHAMPTON NEW FOREST & IOW)
Revenue,Head of ASC & Community Wellbeing,5105675778,25.06.2014,Elderly Frail Homecare,Charges from Independent Providers,155.82,CAREWATCH (SOUTHAMPTON NEW FOREST & IOW)
Revenue,Head of ASC & Community Wellbeing,5105674813,18.06.2014,Elderly Frail Homecare,Charges from Independent Providers,908.95,CAREWATCH (SOUTHAMPTON NEW FOREST & IOW)
Revenue,Head of ASC & Community Wellbeing,5105674798,18.06.2014,Elderly Frail Homecare,Charges from Independent Providers,326.48,CAREWATCH (SOUTHAMPTON NEW FOREST & IOW)
Revenue,Head of ASC & Community Wellbeing,5105674808,18.06.2014,Elderly Frail Homecare,Charges from Independent Providers,422.94,CAREWATCH (SOUTHAMPTON NEW FOREST & IOW)
Revenue,Head of ASC & Community Wellbeing,5105674818,18.06.2014,Elderly Frail Homecare,Charges from Independent Providers,259.70,CAREWATCH (SOUTHAMPTON NEW FOREST & IOW)
Revenue,Head of ASC & Community Wellbeing,5105674837,18.06.2014,Elderly Frail Homecare,Charges from Independent Providers,129.85,CAREWATCH (SOUTHAMPTON NEW FOREST & IOW)
Revenue,Head of ASC & Community Wellbeing,5105675149,20.06.2014,Elderly Frail Homecare,Charges from Independent Providers,296.80,CAREWATCH (SOUTHAMPTON NEW FOREST & IOW)
Revenue,Head of ASC & Community Wellbeing,5105674841,18.06.2014,Elderly Frail Homecare,Charges from Independent Providers,682.64,CAREWATCH (SOUTHAMPTON NEW FOREST & IOW)
Revenue,Head of ASC & Community Wellbeing,5105674843,18.06.2014,Elderly Frail Homecare,Charges from Independent Providers,81.62,CAREWATCH (SOUTHAMPTON NEW FOREST & IOW)
Revenue,Head of ASC & Community Wellbeing,5105674826,18.06.2014,Elderly Frail Homecare,Charges from Independent Providers,259.70,CAREWATCH (SOUTHAMPTON NEW FOREST & IOW)
Revenue,Head of ASC & Community Wellbeing,5105674820,18.06.2014,Elderly Frail Homecare,Charges from Independent Providers,389.55,CAREWATCH (SOUTHAMPTON NEW FOREST & IOW)
Revenue,Head of ASC & Community Wellbeing,5105674817,18.06.2014,Elderly Frail Homecare,Charges from Independent Providers,278.25,CAREWATCH (SOUTHAMPTON NEW FOREST & IOW)
Revenue,Head of ASC & Community Wellbeing,5105674775,18.06.2014,Elderly Frail Homecare,Charges from Independent Providers,"1,558.20",CAREWATCH (SOUTHAMPTON NEW FOREST & IOW)
Revenue,Head of ASC & Community Wellbeing,5105674832,18.06.2014,Elderly Frail Homecare,Charges from Independent Providers,393.26,CAREWATCH (SOUTHAMPTON NEW FOREST & IOW)
Revenue,Head of ASC & Community Wellbeing,5105674806,18.06.2014,Elderly Frail Homecare,Charges from Independent Providers,519.40,CAREWATCH (SOUTHAMPTON NEW FOREST & IOW)
Revenue,Head of ASC & Community Wellbeing,5105674835,18.06.2014,Elderly Frail Homecare,Charges from Independent Providers,500.85,CAREWATCH (SOUTHAMPTON NEW FOREST & IOW)
Revenue,Head of ASC & Community Wellbeing,5105674807,18.06.2014,Elderly Frail Homecare,Charges from Independent Providers,259.70,CAREWATCH (SOUTHAMPTON NEW FOREST & IOW)
Revenue,Head of ASC & Community Wellbeing,5105674838,18.06.2014,Elderly Frail Homecare,Charges from Independent Providers,630.70,CAREWATCH (SOUTHAMPTON NEW FOREST & IOW)
Revenue,Head of ASC & Community Wellbeing,5105674830,18.06.2014,Elderly Frail Homecare,Charges from Independent Providers,259.70,CAREWATCH (SOUTHAMPTON NEW FOREST & IOW)
Revenue,Head of ASC & Community Wellbeing,5105675485,20.06.2014,Elderly Frail Homecare,Charges from Independent Providers,"1,038.80",CAREWATCH (SOUTHAMPTON NEW FOREST & IOW)
Revenue,Head of ASC & Community Wellbeing,5105674839,18.06.2014,Elderly Frail Homecare,Charges from Independent Providers,348.74,CAREWATCH (SOUTHAMPTON NEW FOREST & IOW)
Revenue,Head of ASC & Community Wellbeing,5105674833,18.06.2014,Elderly Frail Homecare,Charges from Independent Providers,452.62,CAREWATCH (SOUTHAMPTON NEW FOREST & IOW)
Revenue,Head of ASC & Community Wellbeing,5105674815,18.06.2014,Elderly Frail Homecare,Charges from Independent Providers,51.94,CAREWATCH (SOUTHAMPTON NEW FOREST & IOW)
Revenue,Head of ASC & Community Wellbeing,5105674840,18.06.2014,Elderly Frail Homecare,Charges from Independent Providers,44.52,CAREWATCH (SOUTHAMPTON NEW FOREST & IOW)
Revenue,Head of ASC & Community Wellbeing,5105674754,18.06.2014,Elderly Frail Homecare,Charges from Independent Providers,519.40,CAREWATCH (SOUTHAMPTON NEW FOREST & IOW)
Revenue,Head of ASC & Community Wellbeing,5105674752,18.06.2014,Elderly Frail Homecare,Charges from Independent Providers,816.20,CAREWATCH (SOUTHAMPTON NEW FOREST & IOW)
Revenue,Head of ASC & Community Wellbeing,5105674750,18.06.2014,Elderly Frail Homecare,Charges from Independent Providers,508.27,CAREWATCH (SOUTHAMPTON NEW FOREST & IOW)
Revenue,Head of ASC & Community Wellbeing,5105674748,18.06.2014,Elderly Frail Homecare,Charges from Independent Providers,259.70,CAREWATCH (SOUTHAMPTON NEW FOREST & IOW)
Revenue,Head of ASC & Community Wellbeing,5105674747,18.06.2014,Elderly Frail Homecare,Charges from Independent Providers,259.70,CAREWATCH (SOUTHAMPTON NEW FOREST & IOW)
Revenue,Head of ASC & Community Wellbeing,5105674780,18.06.2014,Elderly Frail Homecare,Charges from Independent Providers,111.30,CAREWATCH (SOUTHAMPTON NEW FOREST & IOW)
Revenue,Head of ASC & Community Wellbeing,5105674766,18.06.2014,Elderly Frail Homecare,Charges from Independent Providers,178.08,CAREWATCH (SOUTHAMPTON NEW FOREST & IOW)
Revenue,Head of ASC & Community Wellbeing,5105674786,18.06.2014,Elderly Frail Homecare,Charges from Independent Providers,"1,105.58",CAREWATCH (SOUTHAMPTON NEW FOREST & IOW)
Revenue,Head of ASC & Community Wellbeing,5105674759,18.06.2014,Elderly Frail Homecare,Charges from Independent Providers,259.70,CAREWATCH (SOUTHAMPTON NEW FOREST & IOW)
Revenue,Head of ASC & Community Wellbeing,5105674769,18.06.2014,Elderly Frail Homecare,Charges from Independent Providers,"1,298.50",CAREWATCH (SOUTHAMPTON NEW FOREST & IOW)
Revenue,Head of ASC & Community Wellbeing,5105674760,18.06.2014,Elderly Frail Homecare,Charges from Independent Providers,389.55,CAREWATCH (SOUTHAMPTON NEW FOREST & IOW)
Revenue,Head of ASC & Community Wellbeing,5105674800,18.06.2014,Elderly Frail Homecare,Charges from Independent Providers,519.40,CAREWATCH (SOUTHAMPTON NEW FOREST & IOW)
Revenue,Head of ASC & Community Wellbeing,5105674768,18.06.2014,Elderly Frail Homecare,Charges from Independent Providers,901.53,CAREWATCH (SOUTHAMPTON NEW FOREST & IOW)
Revenue,Head of ASC & Community Wellbeing,5105674814,18.06.2014,Elderly Frail Homecare,Charges from Independent Providers,333.90,CAREWATCH (SOUTHAMPTON NEW FOREST & IOW)
Revenue,Head of ASC & Community Wellbeing,5105674787,18.06.2014,Elderly Frail Homecare,Charges from Independent Providers,519.40,CAREWATCH (SOUTHAMPTON NEW FOREST & IOW)
Revenue,Head of ASC & Community Wellbeing,5105674824,18.06.2014,Elderly Frail Homecare,Charges from Independent Providers,"2,077.60",CAREWATCH (SOUTHAMPTON NEW FOREST & IOW)
Revenue,Head of ASC & Community Wellbeing,5105674793,18.06.2014,Elderly Frail Homecare,Charges from Independent Providers,779.10,CAREWATCH (SOUTHAMPTON NEW FOREST & IOW)
Revenue,Head of ASC & Community Wellbeing,5105674778,18.06.2014,Elderly Frail Homecare,Charges from Independent Providers,"1,038.80",CAREWATCH (SOUTHAMPTON NEW FOREST & IOW)
Revenue,Head of ASC & Community Wellbeing,5105674761,18.06.2014,Elderly Frail Homecare,Charges from Independent Providers,489.72,CAREWATCH (SOUTHAMPTON NEW FOREST & IOW)
Revenue,Head of ASC & Community Wellbeing,5105674762,18.06.2014,Elderly Frail Homecare,Charges from Independent Providers,14.84,CAREWATCH (SOUTHAMPTON NEW FOREST & IOW)
Revenue,Head of ASC & Community Wellbeing,5105674804,18.06.2014,Elderly Frail Homecare,Charges from Independent Providers,771.68,CAREWATCH (SOUTHAMPTON NEW FOREST & IOW)
Revenue,Head of ASC & Community Wellbeing,5105674763,18.06.2014,Elderly Frail Homecare,Charges from Independent Providers,389.55,CAREWATCH (SOUTHAMPTON NEW FOREST & IOW)
Revenue,Head of ASC & Community Wellbeing,5105674809,18.06.2014,Elderly Frail Homecare,Charges from Independent Providers,779.10,CAREWATCH (SOUTHAMPTON NEW FOREST & IOW)
Revenue,Head of ASC & Community Wellbeing,5105674773,18.06.2014,Elderly Frail Homecare,Charges from Independent Providers,192.92,CAREWATCH (SOUTHAMPTON NEW FOREST & IOW)
Revenue,Head of ASC & Community Wellbeing,5105674792,18.06.2014,Elderly Frail Homecare,Charges from Independent Providers,389.55,CAREWATCH (SOUTHAMPTON NEW FOREST & IOW)
Revenue,Head of ASC & Community Wellbeing,5105674785,18.06.2014,Elderly Frail Homecare,Charges from Independent Providers,593.60,CAREWATCH (SOUTHAMPTON NEW FOREST & IOW)
Revenue,Head of ASC & Community Wellbeing,5105674765,18.06.2014,Elderly Frail Homecare,Charges from Independent Providers,742.00,CAREWATCH (SOUTHAMPTON NEW FOREST & IOW)
Revenue,Head of ASC & Community Wellbeing,5105674774,18.06.2014,Elderly Frail Homecare,Charges from Independent Providers,"1,038.80",CAREWATCH (SOUTHAMPTON NEW FOREST & IOW)
Revenue,Head of ASC & Community Wellbeing,5105674791,18.06.2014,Elderly Frail Homecare,Charges from Independent Providers,519.40,CAREWATCH (SOUTHAMPTON NEW FOREST & IOW)
Revenue,Head of ASC & Community Wellbeing,5105674753,18.06.2014,Elderly Frail Homecare,Charges from Independent Providers,"1,298.50",CAREWATCH (SOUTHAMPTON NEW FOREST & IOW)
Revenue,Head of ASC & Community Wellbeing,5105674811,18.06.2014,Elderly Frail Homecare,Charges from Independent Providers,259.70,CAREWATCH (SOUTHAMPTON NEW FOREST & IOW)
Revenue,Head of ASC & Community Wellbeing,5105674316,18.06.2014,Elderly Frail Homecare,Charges from Independent Providers,81.62,CAREWATCH (SOUTHAMPTON NEW FOREST & IOW)
Revenue,Head of ASC & Community Wellbeing,5105674755,18.06.2014,Elderly Frail Homecare,Charges from Independent Providers,163.24,CAREWATCH (SOUTHAMPTON NEW FOREST & IOW)
Revenue,Head of ASC & Community Wellbeing,5105674758,18.06.2014,Elderly Frail Homecare,Charges from Independent Providers,259.70,CAREWATCH (SOUTHAMPTON NEW FOREST & IOW)
Revenue,Head of ASC & Community Wellbeing,5105674313,18.06.2014,Elderly Frail Homecare,Charges from Independent Providers,51.94,CAREWATCH (SOUTHAMPTON NEW FOREST & IOW)
Revenue,Head of ASC & Community Wellbeing,5105674764,18.06.2014,Elderly Frail Homecare,Charges from Independent Providers,389.55,CAREWATCH (SOUTHAMPTON NEW FOREST & IOW)
Revenue,Head of ASC & Community Wellbeing,5105673328,18.06.2014,Elderly Frail Homecare,Charges from Independent Providers,267.12,CAREWATCH (SOUTHAMPTON NEW FOREST & IOW)
Revenue,Director of Childrens Services,5105676516,20.06.2014,Independ. & Non-Maint. Special Schls & Independ. Specialist Provision,Transport of Clients,267.12,CAREWATCH (SOUTHAMPTON NEW FOREST & IOW)
Revenue,Head of ASC & Community Wellbeing,5105674822,18.06.2014,Learning Disability Homecare,Charges from Independent Providers,148.40,CAREWATCH (SOUTHAMPTON NEW FOREST & IOW)
Revenue,Director of Childrens Services,5105673094,13.06.2014,S17 Disabled Children,Charges from Independent Providers,430.64,CAREWATCH (SOUTHAMPTON NEW FOREST & IOW)
Revenue,Head of ASC & Community Wellbeing,5105674777,18.06.2014,Elderly Mentally Ill Homecare,Charges from Independent Providers,608.44,CAREWATCH (SOUTHAMPTON NEW FOREST & IOW)
Revenue,Head of ASC & Community Wellbeing,5105674799,18.06.2014,Elderly Mentally Ill Homecare,Charges from Independent Providers,74.20,CAREWATCH (SOUTHAMPTON NEW FOREST & IOW)
Revenue,Head of ASC & Community Wellbeing,5105674797,18.06.2014,Elderly Mentally Ill Homecare,Charges from Independent Providers,779.10,CAREWATCH (SOUTHAMPTON NEW FOREST & IOW)
Revenue,Head of ASC & Community Wellbeing,5105674779,18.06.2014,Elderly Mentally Ill Homecare,Charges from Independent Providers,853.30,CAREWATCH (SOUTHAMPTON NEW FOREST & IOW)
Revenue,Head of ASC & Community Wellbeing,5105674746,18.06.2014,Elderly Mentally Ill Homecare,Regular Respite Care,178.08,CAREWATCH (SOUTHAMPTON NEW FOREST & IOW)
Revenue,Head of ASC & Community Wellbeing,5105674816,18.06.2014,Elderly Mentally Ill Homecare,Charges from Independent Providers,652.96,CAREWATCH (SOUTHAMPTON NEW FOREST & IOW)
Revenue,Head of ASC & Community Wellbeing,5105674834,18.06.2014,Elderly Mentally Ill Homecare,Charges from Independent Providers,304.22,CAREWATCH (SOUTHAMPTON NEW FOREST & IOW)
Revenue,Director of Childrens Services,5105673092,13.06.2014,Agency Domiciliary Care,Charges from Independent Providers,178.08,CAREWATCH (SOUTHAMPTON NEW FOREST & IOW)
Revenue,Director of Childrens Services,5105673089,13.06.2014,Agency Domiciliary Care,Charges from Independent Providers,100.17,CAREWATCH (SOUTHAMPTON NEW FOREST & IOW)
